Posting date,Supplier number,Supplier Name,Expense type,Department,Amount
14/12/2023,1249077,The Advocacy Project,Hired and Contracted Services,ASC Procurement and Business Intelligenc,51294
04/10/2023,1243869,Addison Lee Limited,HTM / Other Vehicle - Hire Charges,Adult Social Care Finance and Resources,988.92
12/10/2023,1246072,Bates Office Services Ltd,Stationery and other office consumables,Adult Social Care Finance and Resources,595.76
25/10/2023,1245051,City of London,Hired and Contracted Services,Adult Social Care Finance and Resources,2609
25/10/2023,1251199,Cornerstone Barristers,Legal Costs,Adult Social Care Finance and Resources,1000
25/10/2023,1252498,Field Court Chambers,Legal Costs,Adult Social Care Finance and Resources,972
25/10/2023,1252498,Field Court Chambers,Legal Costs,Adult Social Care Finance and Resources,650
25/10/2023,1252498,Field Court Chambers,Legal Costs,Adult Social Care Finance and Resources,650
25/10/2023,1252498,Field Court Chambers,Legal Costs,Adult Social Care Finance and Resources,650
08/11/2023,1247258,Healthcare Conferences Uk,Training related expenditure,Adult Social Care Finance and Resources,708
03/11/2023,1243776,Royal Borough of Kensington &,B*Payments to OLAs - Southampton City Co,Adult Social Care Finance and Resources,27761
11/10/2023,1314456,PERSONAL PAYMENTS,Hired and Contracted Services,Adult Social Care Finance and Resources,8400
03/11/2023,1243776,Royal Borough of Kensington &,B*Payments to OLAs - Southampton City Co,Adult Social Care Finance and Resources,11990
03/11/2023,1243776,Royal Borough of Kensington &,B*Payments to OLAs - Southampton City Co,Adult Social Care Finance and Resources,9279
06/10/2023,1245228,Pohwer,Hired and Contracted Services,Adult Social Care Finance and Resources,2896.12
06/10/2023,1245228,Pohwer,Hired and Contracted Services,Adult Social Care Finance and Resources,2982.29
08/12/2023,1245228,Pohwer,Hired and Contracted Services,Adult Social Care Finance and Resources,2302.47
08/12/2023,1245228,Pohwer,Hired and Contracted Services,Adult Social Care Finance and Resources,2733.98
10/10/2023,1307441,PERSONAL PAYMENTS,"Publicity, Promotions and Advertisement",Adult Social Care Finance and Resources,3800
01/11/2023,1243776,Royal Borough of Kensington &,B*Payments to OLAs - Portsmouth City Coun,Adult Social Care Finance and Resources,21258.5
03/11/2023,1243776,Royal Borough of Kensington &,B*Payments to OLAs - Southampton City Co,Adult Social Care Finance and Resources,8946
22/11/2023,1243774,Royal Borough of Kensington &,Training related expenditure,Adult Social Care Finance and Resources,2995
04/10/2023,1290804,Doro Care UK Ltd,###,Bi-Borough Director of Integrated Care,2844
25/10/2023,1290804,Doro Care UK Ltd,###,Bi-Borough Director of Integrated Care,18900
25/10/2023,1290804,Doro Care UK Ltd,###,Bi-Borough Director of Integrated Care,2960
24/11/2023,1290804,Doro Care UK Ltd,###,Bi-Borough Director of Integrated Care,790
29/11/2023,1290804,Doro Care UK Ltd,###,Bi-Borough Director of Integrated Care,3088
30/11/2023,1290804,Doro Care UK Ltd,###,Bi-Borough Director of Integrated Care,600
30/11/2023,1290804,Doro Care UK Ltd,###,Bi-Borough Director of Integrated Care,690
30/11/2023,1290804,Doro Care UK Ltd,###,Bi-Borough Director of Integrated Care,990
15/12/2023,1290804,Doro Care UK Ltd,###,Bi-Borough Director of Integrated Care,18900
15/12/2023,1290804,Doro Care UK Ltd,###,Bi-Borough Director of Integrated Care,1050
17/10/2023,1292281,The Community Housing Group Limited,Hired and Contracted Services,Bi-Borough Director of Integrated Care,6257.16
20/10/2023,1273817,GCH Alan Morkill House Ltd,Hired and Contracted Services,Bi-Borough Director of Integrated Care,381251.52
09/11/2023,1273817,GCH Alan Morkill House Ltd,Hired and Contracted Services,Bi-Borough Director of Integrated Care,381251.52
14/12/2023,1273817,GCH Alan Morkill House Ltd,Hired and Contracted Services,Bi-Borough Director of Integrated Care,381251.52
03/11/2023,1243776,Royal Borough of Kensington &,B*Payments to OLAs - Southampton City Co,Bi-Borough Director of Integrated Care,61724
24/10/2023,1245693,London Borough Of Hammersmith &,B*Payments to OLAs - Southampton City Co,Bi-Borough Director of Integrated Care,82464
27/10/2023,1251196,Royal Borough of Kensington and,B*Payments to OLAs - Southampton City Co,Bi-Borough Director of Integrated Care,69025.71
27/10/2023,1251196,Royal Borough of Kensington and,B*Payments to OLAs - Southampton City Co,Bi-Borough Director of Integrated Care,13016.56
20/11/2023,1243775,Royal Borough of Kensington &,Payments to Other Local Authorities,Bi-Borough Director of Integrated Care,106053.54
12/10/2023,1245595,Skyguard Ltd,Security Costs,Bi-Borough Director of Integrated Care,2710
12/10/2023,1292095,365 Care Solutions Ltd,,Bi-Borough Director of Integrated Care,9141.43
12/10/2023,1292095,365 Care Solutions Ltd,,Bi-Borough Director of Integrated Care,10597.5
08/11/2023,1292095,365 Care Solutions Ltd,,Bi-Borough Director of Integrated Care,9480
08/11/2023,1292095,365 Care Solutions Ltd,,Bi-Borough Director of Integrated Care,10990
06/12/2023,1292095,365 Care Solutions Ltd,,Bi-Borough Director of Integrated Care,9480
06/12/2023,1292095,365 Care Solutions Ltd,,Bi-Borough Director of Integrated Care,10990
21/12/2023,1292095,365 Care Solutions Ltd,,Bi-Borough Director of Integrated Care,10990
21/12/2023,1292095,365 Care Solutions Ltd,,Bi-Borough Director of Integrated Care,9480
18/10/2023,1255843,A.I. Care Services Ltd,,Bi-Borough Director of Integrated Care,614.72
18/10/2023,1255843,A.I. Care Services Ltd,,Bi-Borough Director of Integrated Care,7454.32
16/11/2023,1255843,A.I. Care Services Ltd,,Bi-Borough Director of Integrated Care,614.72
16/11/2023,1255843,A.I. Care Services Ltd,,Bi-Borough Director of Integrated Care,7454.32
12/12/2023,1255843,A.I. Care Services Ltd,,Bi-Borough Director of Integrated Care,614.72
12/12/2023,1255843,A.I. Care Services Ltd,,Bi-Borough Director of Integrated Care,7454.32
12/12/2023,1255843,A.I. Care Services Ltd,,Bi-Borough Director of Integrated Care,1498.4
12/10/2023,1245929,ACHIEVE TOGETHER LIMITED,,Bi-Borough Director of Integrated Care,10073.12
12/10/2023,1245929,ACHIEVE TOGETHER LIMITED,,Bi-Borough Director of Integrated Care,15742.89
08/11/2023,1245929,ACHIEVE TOGETHER LIMITED,,Bi-Borough Director of Integrated Care,16325.96
08/11/2023,1245929,ACHIEVE TOGETHER LIMITED,,Bi-Borough Director of Integrated Care,10446.2
06/12/2023,1245929,ACHIEVE TOGETHER LIMITED,,Bi-Borough Director of Integrated Care,10446.2
06/12/2023,1245929,ACHIEVE TOGETHER LIMITED,,Bi-Borough Director of Integrated Care,16325.96
21/12/2023,1245929,ACHIEVE TOGETHER LIMITED,,Bi-Borough Director of Integrated Care,10446.2
21/12/2023,1245929,ACHIEVE TOGETHER LIMITED,,Bi-Borough Director of Integrated Care,16325.96
12/10/2023,1271174,ASPECTS 2 LIMITED,,Bi-Borough Director of Integrated Care,2879.45
12/10/2023,1271174,ASPECTS 2 LIMITED,,Bi-Borough Director of Integrated Care,4091.85
08/11/2023,1271174,ASPECTS 2 LIMITED,,Bi-Borough Director of Integrated Care,4243.4
06/12/2023,1271174,ASPECTS 2 LIMITED,,Bi-Borough Director of Integrated Care,4243.4
21/12/2023,1271174,ASPECTS 2 LIMITED,,Bi-Borough Director of Integrated Care,4243.4
12/10/2023,1243851,Accomplish Group Ltd,,Bi-Borough Director of Integrated Care,10607.14
12/10/2023,1243851,Accomplish Group Ltd,,Bi-Borough Director of Integrated Care,7071.43
08/11/2023,1243851,Accomplish Group Ltd,,Bi-Borough Director of Integrated Care,11000
06/12/2023,1243851,Accomplish Group Ltd,,Bi-Borough Director of Integrated Care,11000
21/12/2023,1243851,Accomplish Group Ltd,,Bi-Borough Director of Integrated Care,11000
12/10/2023,1243435,Acorn Village,,Bi-Borough Director of Integrated Care,18923.03
08/11/2023,1243435,Acorn Village,,Bi-Borough Director of Integrated Care,9178.84
06/12/2023,1243435,Acorn Village,,Bi-Borough Director of Integrated Care,9178.84
21/12/2023,1243435,Acorn Village,,Bi-Borough Director of Integrated Care,9178.84
12/10/2023,1243942,Aspens Charities,,Bi-Borough Director of Integrated Care,7222.5
08/11/2023,1243942,Aspens Charities,,Bi-Borough Director of Integrated Care,7490
06/12/2023,1243942,Aspens Charities,,Bi-Borough Director of Integrated Care,7490
21/12/2023,1243942,Aspens Charities,,Bi-Borough Director of Integrated Care,7490
12/10/2023,1243961,Autism Anglia,,Bi-Borough Director of Integrated Care,10263.86
08/11/2023,1243961,Autism Anglia,,Bi-Borough Director of Integrated Care,10644
06/12/2023,1243961,Autism Anglia,,Bi-Borough Director of Integrated Care,10644
21/12/2023,1243961,Autism Anglia,,Bi-Borough Director of Integrated Care,10644
29/11/2023,1246247,Blitz Home Environmental Cleaning,,Bi-Borough Director of Integrated Care,700
19/12/2023,1246247,Blitz Home Environmental Cleaning,,Bi-Borough Director of Integrated Care,550
12/10/2023,1243445,Broadstreet House Limited,,Bi-Borough Director of Integrated Care,4440.03
08/11/2023,1243445,Broadstreet House Limited,,Bi-Borough Director of Integrated Care,4604.48
06/12/2023,1243445,Broadstreet House Limited,,Bi-Borough Director of Integrated Care,4604.48
21/12/2023,1243445,Broadstreet House Limited,,Bi-Borough Director of Integrated Care,4604.48
12/10/2023,1246286,Brunswick Supported Living,,Bi-Borough Director of Integrated Care,1267.69
12/10/2023,1246286,Brunswick Supported Living,,Bi-Borough Director of Integrated Care,892.08
08/11/2023,1246286,Brunswick Supported Living,,Bi-Borough Director of Integrated Care,1314.64
06/12/2023,1246286,Brunswick Supported Living,,Bi-Borough Director of Integrated Care,1314.64
21/12/2023,1246286,Brunswick Supported Living,,Bi-Borough Director of Integrated Care,1314.64
10/11/2023,1302645,CENTRE 404,B*Voluntary-Spot-V Dep-Enhanced - do not u,Bi-Borough Director of Integrated Care,1025
18/12/2023,1302645,CENTRE 404,B*Voluntary-Spot-V Dep-Enhanced - do not u,Bi-Borough Director of Integrated Care,820
12/10/2023,1273390,CHILTERN SUPPORT & HOUSING LTD,,Bi-Borough Director of Integrated Care,15946.12
08/11/2023,1273390,CHILTERN SUPPORT & HOUSING LTD,,Bi-Borough Director of Integrated Care,16536.72
06/12/2023,1273390,CHILTERN SUPPORT & HOUSING LTD,,Bi-Borough Director of Integrated Care,6857.15
12/10/2023,1244092,Cambrian Learning Disabilities Ltd,,Bi-Borough Director of Integrated Care,6757.83
08/11/2023,1244092,Cambrian Learning Disabilities Ltd,,Bi-Borough Director of Integrated Care,7008.12
06/12/2023,1244092,Cambrian Learning Disabilities Ltd,,Bi-Borough Director of Integrated Care,7008.12
21/12/2023,1244092,Cambrian Learning Disabilities Ltd,,Bi-Borough Director of Integrated Care,7008.12
12/10/2023,1246321,Camphill Village Trust,,Bi-Borough Director of Integrated Care,4030.83
08/11/2023,1246321,Camphill Village Trust,,Bi-Borough Director of Integrated Care,4180.12
06/12/2023,1246321,Camphill Village Trust,,Bi-Borough Director of Integrated Care,4180.12
21/12/2023,1246321,Camphill Village Trust,,Bi-Borough Director of Integrated Care,4180.12
08/11/2023,1311552,Camphill Village Trust Ltd,,Bi-Borough Director of Integrated Care,30905.15
06/12/2023,1311552,Camphill Village Trust Ltd,,Bi-Borough Director of Integrated Care,5846.92
21/12/2023,1311552,Camphill Village Trust Ltd,,Bi-Borough Director of Integrated Care,5846.92
12/10/2023,1246324,Candour Care Services (Broadview),,Bi-Borough Director of Integrated Care,7169.39
08/11/2023,1246324,Candour Care Services (Broadview),,Bi-Borough Director of Integrated Care,7434.92
06/12/2023,1246324,Candour Care Services (Broadview),,Bi-Borough Director of Integrated Care,7434.92
21/12/2023,1246324,Candour Care Services (Broadview),,Bi-Borough Director of Integrated Care,7434.92
12/10/2023,1246327,Canterbury Oast Trust Ltd,,Bi-Borough Director of Integrated Care,1298.7
08/11/2023,1246327,Canterbury Oast Trust Ltd,,Bi-Borough Director of Integrated Care,1346.8
06/12/2023,1246327,Canterbury Oast Trust Ltd,,Bi-Borough Director of Integrated Care,1346.8
21/12/2023,1246327,Canterbury Oast Trust Ltd,,Bi-Borough Director of Integrated Care,1346.8
18/10/2023,1245091,Care UK Community Partnerships Ltd,,Bi-Borough Director of Integrated Care,3276.6
23/11/2023,1245091,Care UK Community Partnerships Ltd,,Bi-Borough Director of Integrated Care,3397.96
14/12/2023,1245091,Care UK Community Partnerships Ltd,,Bi-Borough Director of Integrated Care,4296.57
12/10/2023,1246339,Caretech Community Services Ltd,,Bi-Borough Director of Integrated Care,11185.33
12/10/2023,1246339,Caretech Community Services Ltd,,Bi-Borough Director of Integrated Care,6057.23
12/10/2023,1246339,Caretech Community Services Ltd,,Bi-Borough Director of Integrated Care,7722.96
08/11/2023,1246339,Caretech Community Services Ltd,,Bi-Borough Director of Integrated Care,5182.28
08/11/2023,1246339,Caretech Community Services Ltd,,Bi-Borough Director of Integrated Care,7505.68
06/12/2023,1246339,Caretech Community Services Ltd,,Bi-Borough Director of Integrated Care,7505.68
06/12/2023,1246339,Caretech Community Services Ltd,,Bi-Borough Director of Integrated Care,5182.28
21/12/2023,1246339,Caretech Community Services Ltd,,Bi-Borough Director of Integrated Care,7505.68
21/12/2023,1246339,Caretech Community Services Ltd,,Bi-Borough Director of Integrated Care,5182.28
12/10/2023,1276470,Certitude (Support for Living),,Bi-Borough Director of Integrated Care,12524.18
12/10/2023,1276470,Certitude (Support for Living),,Bi-Borough Director of Integrated Care,8280.59
12/10/2023,1276470,Certitude (Support for Living),,Bi-Borough Director of Integrated Care,11840.23
12/10/2023,1276470,Certitude (Support for Living),,Bi-Borough Director of Integrated Care,5180.22
12/10/2023,1276470,Certitude (Support for Living),,Bi-Borough Director of Integrated Care,1562.28
12/10/2023,1276470,Certitude (Support for Living),,Bi-Borough Director of Integrated Care,4328.99
12/10/2023,1276470,Certitude (Support for Living),,Bi-Borough Director of Integrated Care,5611.64
12/10/2023,1276470,Certitude (Support for Living),,Bi-Borough Director of Integrated Care,5611.64
12/10/2023,1276470,Certitude (Support for Living),,Bi-Borough Director of Integrated Care,4104.89
12/10/2023,1276470,Certitude (Support for Living),,Bi-Borough Director of Integrated Care,22803
08/11/2023,1276470,Certitude (Support for Living),,Bi-Borough Director of Integrated Care,5819.48
08/11/2023,1276470,Certitude (Support for Living),,Bi-Borough Director of Integrated Care,4256.92
08/11/2023,1276470,Certitude (Support for Living),,Bi-Borough Director of Integrated Care,20495.52
08/11/2023,1276470,Certitude (Support for Living),,Bi-Borough Director of Integrated Care,5372.08
08/11/2023,1276470,Certitude (Support for Living),,Bi-Borough Director of Integrated Care,12988.04
08/11/2023,1276470,Certitude (Support for Living),,Bi-Borough Director of Integrated Care,4489.32
08/11/2023,1276470,Certitude (Support for Living),,Bi-Borough Director of Integrated Care,5819.48
08/11/2023,1276470,Certitude (Support for Living),,Bi-Borough Director of Integrated Care,8587.28
08/11/2023,1276470,Certitude (Support for Living),,Bi-Borough Director of Integrated Care,12278.76
06/12/2023,1276470,Certitude (Support for Living),,Bi-Borough Director of Integrated Care,12988.04
06/12/2023,1276470,Certitude (Support for Living),,Bi-Borough Director of Integrated Care,5372.08
06/12/2023,1276470,Certitude (Support for Living),,Bi-Borough Director of Integrated Care,4489.32
06/12/2023,1276470,Certitude (Support for Living),,Bi-Borough Director of Integrated Care,7109.48
06/12/2023,1276470,Certitude (Support for Living),,Bi-Borough Director of Integrated Care,8433.29
06/12/2023,1276470,Certitude (Support for Living),,Bi-Borough Director of Integrated Care,12278.76
06/12/2023,1276470,Certitude (Support for Living),,Bi-Borough Director of Integrated Care,5819.48
06/12/2023,1276470,Certitude (Support for Living),,Bi-Borough Director of Integrated Care,4256.92
06/12/2023,1276470,Certitude (Support for Living),,Bi-Borough Director of Integrated Care,17243.52
21/12/2023,1276470,Certitude (Support for Living),,Bi-Borough Director of Integrated Care,12988.04
21/12/2023,1276470,Certitude (Support for Living),,Bi-Borough Director of Integrated Care,5372.08
21/12/2023,1276470,Certitude (Support for Living),,Bi-Borough Director of Integrated Care,15554.76
21/12/2023,1276470,Certitude (Support for Living),,Bi-Borough Director of Integrated Care,8381.96
21/12/2023,1276470,Certitude (Support for Living),,Bi-Borough Director of Integrated Care,4489.32
21/12/2023,1276470,Certitude (Support for Living),,Bi-Borough Director of Integrated Care,6335.48
21/12/2023,1276470,Certitude (Support for Living),,Bi-Borough Director of Integrated Care,5819.48
21/12/2023,1276470,Certitude (Support for Living),,Bi-Borough Director of Integrated Care,4256.92
21/12/2023,1276470,Certitude (Support for Living),,Bi-Borough Director of Integrated Care,17243.52
12/10/2023,1293636,Choice Support,,Bi-Borough Director of Integrated Care,661.04
12/10/2023,1293636,Choice Support,,Bi-Borough Director of Integrated Care,4640.14
12/10/2023,1293636,Choice Support,,Bi-Borough Director of Integrated Care,11632.76
08/11/2023,1293636,Choice Support,,Bi-Borough Director of Integrated Care,9382.8
08/11/2023,1293636,Choice Support,,Bi-Borough Director of Integrated Care,685.52
08/11/2023,1293636,Choice Support,,Bi-Borough Director of Integrated Care,4812
06/12/2023,1293636,Choice Support,,Bi-Borough Director of Integrated Care,685.52
06/12/2023,1293636,Choice Support,,Bi-Borough Director of Integrated Care,4812
06/12/2023,1293636,Choice Support,,Bi-Borough Director of Integrated Care,9382.8
21/12/2023,1293636,Choice Support,,Bi-Borough Director of Integrated Care,685.52
21/12/2023,1293636,Choice Support,,Bi-Borough Director of Integrated Care,4812
21/12/2023,1293636,Choice Support,,Bi-Borough Director of Integrated Care,9382.8
12/10/2023,1243458,Cocklebury Farmhouse Homes Ltd,,Bi-Borough Director of Integrated Care,5338.29
12/10/2023,1243458,Cocklebury Farmhouse Homes Ltd,,Bi-Borough Director of Integrated Care,6179.14
12/10/2023,1243458,Cocklebury Farmhouse Homes Ltd,,Bi-Borough Director of Integrated Care,4775.14
12/10/2023,1243458,Cocklebury Farmhouse Homes Ltd,,Bi-Borough Director of Integrated Care,5369.14
12/10/2023,1243458,Cocklebury Farmhouse Homes Ltd,,Bi-Borough Director of Integrated Care,6777
08/11/2023,1243458,Cocklebury Farmhouse Homes Ltd,,Bi-Borough Director of Integrated Care,4952
08/11/2023,1243458,Cocklebury Farmhouse Homes Ltd,,Bi-Borough Director of Integrated Care,5568
08/11/2023,1243458,Cocklebury Farmhouse Homes Ltd,,Bi-Borough Director of Integrated Care,7028
08/11/2023,1243458,Cocklebury Farmhouse Homes Ltd,,Bi-Borough Director of Integrated Care,5536
08/11/2023,1243458,Cocklebury Farmhouse Homes Ltd,,Bi-Borough Director of Integrated Care,6408
06/12/2023,1243458,Cocklebury Farmhouse Homes Ltd,,Bi-Borough Director of Integrated Care,15210
06/12/2023,1243458,Cocklebury Farmhouse Homes Ltd,,Bi-Borough Director of Integrated Care,17622
06/12/2023,1243458,Cocklebury Farmhouse Homes Ltd,,Bi-Borough Director of Integrated Care,13618
06/12/2023,1243458,Cocklebury Farmhouse Homes Ltd,,Bi-Borough Director of Integrated Care,15312
06/12/2023,1243458,Cocklebury Farmhouse Homes Ltd,,Bi-Borough Director of Integrated Care,19327
21/12/2023,1243458,Cocklebury Farmhouse Homes Ltd,,Bi-Borough Director of Integrated Care,6641.6
21/12/2023,1243458,Cocklebury Farmhouse Homes Ltd,,Bi-Borough Director of Integrated Care,7689.6
21/12/2023,1243458,Cocklebury Farmhouse Homes Ltd,,Bi-Borough Director of Integrated Care,5942.4
21/12/2023,1243458,Cocklebury Farmhouse Homes Ltd,,Bi-Borough Director of Integrated Care,8433.6
21/12/2023,1243458,Cocklebury Farmhouse Homes Ltd,,Bi-Borough Director of Integrated Care,6681.6
12/12/2023,1246600,Community Focus Inclusive Arts,B*Voluntary-Spot-V Dep-Enhanced - do not u,Bi-Borough Director of Integrated Care,1180
12/10/2023,1280687,Community Integrated Care,,Bi-Borough Director of Integrated Care,10435.58
12/10/2023,1280687,Community Integrated Care,,Bi-Borough Director of Integrated Care,8154.46
12/10/2023,1280687,Community Integrated Care,,Bi-Borough Director of Integrated Care,10435.58
12/10/2023,1280687,Community Integrated Care,,Bi-Borough Director of Integrated Care,11152.2
12/10/2023,1280687,Community Integrated Care,,Bi-Borough Director of Integrated Care,10119.06
12/10/2023,1280687,Community Integrated Care,,Bi-Borough Director of Integrated Care,6168.88
08/11/2023,1280687,Community Integrated Care,,Bi-Borough Director of Integrated Care,89630.61
08/11/2023,1280687,Community Integrated Care,,Bi-Borough Director of Integrated Care,53050.3
08/11/2023,1280687,Community Integrated Care,,Bi-Borough Director of Integrated Care,16667.75
08/11/2023,1280687,Community Integrated Care,,Bi-Borough Director of Integrated Care,8456.48
08/11/2023,1280687,Community Integrated Care,,Bi-Borough Director of Integrated Care,16667.75
08/11/2023,1280687,Community Integrated Care,,Bi-Borough Director of Integrated Care,11565.24
06/12/2023,1280687,Community Integrated Care,,Bi-Borough Director of Integrated Care,11576.36
06/12/2023,1280687,Community Integrated Care,,Bi-Borough Director of Integrated Care,8456.48
06/12/2023,1280687,Community Integrated Care,,Bi-Borough Director of Integrated Care,6845.2
06/12/2023,1280687,Community Integrated Care,,Bi-Borough Director of Integrated Care,11576.36
06/12/2023,1280687,Community Integrated Care,,Bi-Borough Director of Integrated Care,11565.24
06/12/2023,1280687,Community Integrated Care,,Bi-Borough Director of Integrated Care,11565.24
21/12/2023,1280687,Community Integrated Care,,Bi-Borough Director of Integrated Care,11576.36
21/12/2023,1280687,Community Integrated Care,,Bi-Borough Director of Integrated Care,8456.48
21/12/2023,1280687,Community Integrated Care,,Bi-Borough Director of Integrated Care,6845.2
21/12/2023,1280687,Community Integrated Care,,Bi-Borough Director of Integrated Care,11576.36
21/12/2023,1280687,Community Integrated Care,,Bi-Borough Director of Integrated Care,11565.24
21/12/2023,1280687,Community Integrated Care,,Bi-Borough Director of Integrated Care,11565.24
12/10/2023,1243470,Downing (Chertsey Road) Ltd,,Bi-Borough Director of Integrated Care,5757.94
08/11/2023,1243470,Downing (Chertsey Road) Ltd,,Bi-Borough Director of Integrated Care,5971.2
06/12/2023,1243470,Downing (Chertsey Road) Ltd,,Bi-Borough Director of Integrated Care,5971.2
21/12/2023,1243470,Downing (Chertsey Road) Ltd,,Bi-Borough Director of Integrated Care,5971.2
12/10/2023,1247651,ELYSIUM CARE PARTNERSHIPS LIMITED,,Bi-Borough Director of Integrated Care,12846.68
08/11/2023,1247651,ELYSIUM CARE PARTNERSHIPS LIMITED,,Bi-Borough Director of Integrated Care,9567.2
06/12/2023,1247651,ELYSIUM CARE PARTNERSHIPS LIMITED,,Bi-Borough Director of Integrated Care,9567.2
21/12/2023,1247651,ELYSIUM CARE PARTNERSHIPS LIMITED,,Bi-Borough Director of Integrated Care,9567.2
12/10/2023,1245108,Elysium Healthcare No 2 Ltd,,Bi-Borough Director of Integrated Care,13421.55
08/11/2023,1245108,Elysium Healthcare No 2 Ltd,,Bi-Borough Director of Integrated Care,9995.36
06/12/2023,1245108,Elysium Healthcare No 2 Ltd,,Bi-Borough Director of Integrated Care,9995.36
21/12/2023,1245108,Elysium Healthcare No 2 Ltd,,Bi-Borough Director of Integrated Care,9995.36
12/10/2023,1245110,Eric Patrick Care Ltd,,Bi-Borough Director of Integrated Care,7787.57
17/10/2023,1259597,Ethica Services LTD,,Bi-Borough Director of Integrated Care,4840.92
27/11/2023,1259597,Ethica Services LTD,,Bi-Borough Director of Integrated Care,4840.92
12/12/2023,1259597,Ethica Services LTD,,Bi-Borough Director of Integrated Care,4840.92
08/11/2023,1314883,FIT SHIRTS LTD,Hire of Accommodation and Facilities,Bi-Borough Director of Integrated Care,1279.1
11/12/2023,1252498,Field Court Chambers,Legal Costs,Bi-Borough Director of Integrated Care,1055
12/10/2023,1243483,Greenview Healthcare Ltd,,Bi-Borough Director of Integrated Care,8497.75
12/10/2023,1243483,Greenview Healthcare Ltd,,Bi-Borough Director of Integrated Care,4311.32
08/11/2023,1243483,Greenview Healthcare Ltd,,Bi-Borough Director of Integrated Care,4471
08/11/2023,1243483,Greenview Healthcare Ltd,,Bi-Borough Director of Integrated Care,2504.6
06/12/2023,1243483,Greenview Healthcare Ltd,,Bi-Borough Director of Integrated Care,2504.6
21/12/2023,1243483,Greenview Healthcare Ltd,,Bi-Borough Director of Integrated Care,2504.6
08/11/2023,1243485,Grove Care Partnership Ltd,,Bi-Borough Director of Integrated Care,20489.54
21/12/2023,1243485,Grove Care Partnership Ltd,,Bi-Borough Director of Integrated Care,20862.08
12/10/2023,1258503,Guyatt House Care Limited,,Bi-Borough Director of Integrated Care,7287.26
08/11/2023,1258503,Guyatt House Care Limited,,Bi-Borough Director of Integrated Care,7557.16
06/12/2023,1258503,Guyatt House Care Limited,,Bi-Borough Director of Integrated Care,7557.16
21/12/2023,1258503,Guyatt House Care Limited,,Bi-Borough Director of Integrated Care,7557.16
05/10/2023,1244531,HCP Staffing Services Ltd,,Bi-Borough Director of Integrated Care,717.88
06/10/2023,1244531,HCP Staffing Services Ltd,,Bi-Borough Director of Integrated Care,717.88
17/10/2023,1244531,HCP Staffing Services Ltd,,Bi-Borough Director of Integrated Care,717.88
17/10/2023,1244531,HCP Staffing Services Ltd,,Bi-Borough Director of Integrated Care,717.88
17/10/2023,1244531,HCP Staffing Services Ltd,,Bi-Borough Director of Integrated Care,717.88
30/10/2023,1244531,HCP Staffing Services Ltd,,Bi-Borough Director of Integrated Care,717.88
30/10/2023,1244531,HCP Staffing Services Ltd,,Bi-Borough Director of Integrated Care,717.88
03/11/2023,1244531,HCP Staffing Services Ltd,,Bi-Borough Director of Integrated Care,717.88
10/11/2023,1244531,HCP Staffing Services Ltd,,Bi-Borough Director of Integrated Care,717.88
13/12/2023,1244531,HCP Staffing Services Ltd,,Bi-Borough Director of Integrated Care,717.88
13/12/2023,1244531,HCP Staffing Services Ltd,,Bi-Borough Director of Integrated Care,717.88
13/12/2023,1244531,HCP Staffing Services Ltd,,Bi-Borough Director of Integrated Care,717.88
18/12/2023,1244531,HCP Staffing Services Ltd,,Bi-Borough Director of Integrated Care,717.88
12/10/2023,1244549,HF Trust Ltd,,Bi-Borough Director of Integrated Care,14577.92
12/10/2023,1244549,HF Trust Ltd,,Bi-Borough Director of Integrated Care,3761.33
30/10/2023,1244549,HF Trust Ltd,B*Voluntary-Spot-V Dep-Enhanced - do not u,Bi-Borough Director of Integrated Care,736.8
08/11/2023,1244549,HF Trust Ltd,,Bi-Borough Director of Integrated Care,3900.64
08/11/2023,1244549,HF Trust Ltd,,Bi-Borough Director of Integrated Care,15117.84
06/12/2023,1244549,HF Trust Ltd,,Bi-Borough Director of Integrated Care,15117.84
06/12/2023,1244549,HF Trust Ltd,,Bi-Borough Director of Integrated Care,3900.64
21/12/2023,1244549,HF Trust Ltd,,Bi-Borough Director of Integrated Care,3900.64
21/12/2023,1244549,HF Trust Ltd,,Bi-Borough Director of Integrated Care,15117.84
12/10/2023,1244515,Hampshire Autistic Society,,Bi-Borough Director of Integrated Care,9075.2
08/11/2023,1244515,Hampshire Autistic Society,,Bi-Borough Director of Integrated Care,9411.32
06/12/2023,1244515,Hampshire Autistic Society,,Bi-Borough Director of Integrated Care,9411.32
21/12/2023,1244515,Hampshire Autistic Society,,Bi-Borough Director of Integrated Care,9411.32
12/10/2023,1243490,Haydon Park Lodge Ltd,,Bi-Borough Director of Integrated Care,3857.14
08/11/2023,1243490,Haydon Park Lodge Ltd,,Bi-Borough Director of Integrated Care,25545
06/12/2023,1243490,Haydon Park Lodge Ltd,,Bi-Borough Director of Integrated Care,6780
21/12/2023,1243490,Haydon Park Lodge Ltd,,Bi-Borough Director of Integrated Care,6780
12/10/2023,1260257,Hazel Homes for Autism Ltd,,Bi-Borough Director of Integrated Care,553.5
12/10/2023,1260257,Hazel Homes for Autism Ltd,,Bi-Borough Director of Integrated Care,14353.62
08/11/2023,1260257,Hazel Homes for Autism Ltd,,Bi-Borough Director of Integrated Care,14885.24
06/12/2023,1260257,Hazel Homes for Autism Ltd,,Bi-Borough Director of Integrated Care,14885.24
21/12/2023,1260257,Hazel Homes for Autism Ltd,,Bi-Borough Director of Integrated Care,14885.24
12/10/2023,1245125,Heathcotes (Southern) Ltd,,Bi-Borough Director of Integrated Care,11753.83
08/11/2023,1245125,Heathcotes (Southern) Ltd,,Bi-Borough Director of Integrated Care,20690.91
06/12/2023,1245125,Heathcotes (Southern) Ltd,,Bi-Borough Director of Integrated Care,13286.16
21/12/2023,1245125,Heathcotes (Southern) Ltd,,Bi-Borough Director of Integrated Care,13286.16
18/10/2023,1254857,Hope Care Agency,,Bi-Borough Director of Integrated Care,941.29
18/10/2023,1254857,Hope Care Agency,,Bi-Borough Director of Integrated Care,2151.52
18/10/2023,1254857,Hope Care Agency,,Bi-Borough Director of Integrated Care,2151.52
18/10/2023,1254857,Hope Care Agency,,Bi-Borough Director of Integrated Care,17750.04
18/10/2023,1254857,Hope Care Agency,,Bi-Borough Director of Integrated Care,4303.04
08/11/2023,1254857,Hope Care Agency,,Bi-Borough Director of Integrated Care,2151.52
08/11/2023,1254857,Hope Care Agency,,Bi-Borough Director of Integrated Care,2151.52
08/11/2023,1254857,Hope Care Agency,,Bi-Borough Director of Integrated Care,4303.04
08/11/2023,1254857,Hope Care Agency,,Bi-Borough Director of Integrated Care,17750.04
14/12/2023,1254857,Hope Care Agency,,Bi-Borough Director of Integrated Care,2151.52
14/12/2023,1254857,Hope Care Agency,,Bi-Borough Director of Integrated Care,2151.52
14/12/2023,1254857,Hope Care Agency,,Bi-Borough Director of Integrated Care,17750.04
14/12/2023,1254857,Hope Care Agency,,Bi-Borough Director of Integrated Care,4303.04
12/10/2023,1267460,Hunters Lodge Care Home,,Bi-Borough Director of Integrated Care,3790.26
08/11/2023,1267460,Hunters Lodge Care Home,,Bi-Borough Director of Integrated Care,3930.64
06/12/2023,1267460,Hunters Lodge Care Home,,Bi-Borough Director of Integrated Care,3930.64
21/12/2023,1267460,Hunters Lodge Care Home,,Bi-Borough Director of Integrated Care,3930.64
06/10/2023,1247526,Integrity Care and Support Ltd,B*Voluntary-Spot-V Dep-Enhanced - do not u,Bi-Borough Director of Integrated Care,2045.76
06/10/2023,1247526,Integrity Care and Support Ltd,B*Voluntary-Spot-V Dep-Enhanced - do not u,Bi-Borough Director of Integrated Care,767.16
06/10/2023,1247526,Integrity Care and Support Ltd,B*Voluntary-Spot-V Dep-Enhanced - do not u,Bi-Borough Director of Integrated Care,1619.56
06/10/2023,1247526,Integrity Care and Support Ltd,B*Voluntary-Spot-V Dep-Enhanced - do not u,Bi-Borough Director of Integrated Care,639.3
06/10/2023,1247526,Integrity Care and Support Ltd,B*Voluntary-Spot-V Dep-Enhanced - do not u,Bi-Borough Director of Integrated Care,1790.04
06/10/2023,1247526,Integrity Care and Support Ltd,B*Voluntary-Spot-V Dep-Enhanced - do not u,Bi-Borough Director of Integrated Care,1129.44
06/10/2023,1247526,Integrity Care and Support Ltd,B*Voluntary-Spot-V Dep-Enhanced - do not u,Bi-Borough Director of Integrated Care,639.3
06/10/2023,1247526,Integrity Care and Support Ltd,B*Voluntary-Spot-V Dep-Enhanced - do not u,Bi-Borough Director of Integrated Care,1022.88
06/10/2023,1247526,Integrity Care and Support Ltd,B*Voluntary-Spot-V Dep-Enhanced - do not u,Bi-Borough Director of Integrated Care,1331.89
06/10/2023,1247526,Integrity Care and Support Ltd,B*Voluntary-Spot-V Dep-Enhanced - do not u,Bi-Borough Director of Integrated Care,852.4
06/10/2023,1247526,Integrity Care and Support Ltd,B*Voluntary-Spot-V Dep-Enhanced - do not u,Bi-Borough Director of Integrated Care,1790.04
06/10/2023,1247526,Integrity Care and Support Ltd,B*Voluntary-Spot-V Dep-Enhanced - do not u,Bi-Borough Director of Integrated Care,681.92
06/10/2023,1247526,Integrity Care and Support Ltd,B*Voluntary-Spot-V Dep-Enhanced - do not u,Bi-Borough Director of Integrated Care,1044.18
06/10/2023,1247526,Integrity Care and Support Ltd,B*Voluntary-Spot-V Dep-Enhanced - do not u,Bi-Borough Director of Integrated Care,1108.12
06/10/2023,1247526,Integrity Care and Support Ltd,B*Voluntary-Spot-V Dep-Enhanced - do not u,Bi-Borough Director of Integrated Care,596.68
30/10/2023,1247526,Integrity Care and Support Ltd,B*Voluntary-Spot-V Dep-Enhanced - do not u,Bi-Borough Director of Integrated Care,1726.22
02/11/2023,1247526,Integrity Care and Support Ltd,B*Voluntary-Spot-V Dep-Enhanced - do not u,Bi-Borough Director of Integrated Care,1001.57
02/11/2023,1247526,Integrity Care and Support Ltd,B*Voluntary-Spot-V Dep-Enhanced - do not u,Bi-Borough Director of Integrated Care,767.16
02/11/2023,1247526,Integrity Care and Support Ltd,B*Voluntary-Spot-V Dep-Enhanced - do not u,Bi-Borough Director of Integrated Care,554.08
02/11/2023,1247526,Integrity Care and Support Ltd,B*Voluntary-Spot-V Dep-Enhanced - do not u,Bi-Borough Director of Integrated Care,1662.18
02/11/2023,1247526,Integrity Care and Support Ltd,B*Voluntary-Spot-V Dep-Enhanced - do not u,Bi-Borough Director of Integrated Care,2045.76
02/11/2023,1247526,Integrity Care and Support Ltd,B*Voluntary-Spot-V Dep-Enhanced - do not u,Bi-Borough Director of Integrated Care,1054.85
02/11/2023,1247526,Integrity Care and Support Ltd,B*Voluntary-Spot-V Dep-Enhanced - do not u,Bi-Borough Director of Integrated Care,1022.88
02/11/2023,1247526,Integrity Care and Support Ltd,B*Voluntary-Spot-V Dep-Enhanced - do not u,Bi-Borough Director of Integrated Care,703.23
02/11/2023,1247526,Integrity Care and Support Ltd,B*Voluntary-Spot-V Dep-Enhanced - do not u,Bi-Borough Director of Integrated Care,1790.04
02/11/2023,1247526,Integrity Care and Support Ltd,B*Voluntary-Spot-V Dep-Enhanced - do not u,Bi-Borough Director of Integrated Care,1342.53
02/11/2023,1247526,Integrity Care and Support Ltd,B*Voluntary-Spot-V Dep-Enhanced - do not u,Bi-Borough Director of Integrated Care,852.4
02/11/2023,1247526,Integrity Care and Support Ltd,B*Voluntary-Spot-V Dep-Enhanced - do not u,Bi-Borough Director of Integrated Care,575.37
14/11/2023,1247526,Integrity Care and Support Ltd,B*Voluntary-Spot-V Dep-Enhanced - do not u,Bi-Borough Director of Integrated Care,1193.36
14/11/2023,1247526,Integrity Care and Support Ltd,B*Voluntary-Spot-V Dep-Enhanced - do not u,Bi-Borough Director of Integrated Care,2152.31
14/11/2023,1247526,Integrity Care and Support Ltd,B*Voluntary-Spot-V Dep-Enhanced - do not u,Bi-Borough Director of Integrated Care,1619.56
14/11/2023,1247526,Integrity Care and Support Ltd,B*Voluntary-Spot-V Dep-Enhanced - do not u,Bi-Borough Director of Integrated Care,532.75
12/12/2023,1247526,Integrity Care and Support Ltd,B*Voluntary-Spot-V Dep-Enhanced - do not u,Bi-Borough Director of Integrated Care,767.16
12/12/2023,1247526,Integrity Care and Support Ltd,B*Voluntary-Spot-V Dep-Enhanced - do not u,Bi-Borough Director of Integrated Care,895.31
12/12/2023,1247526,Integrity Care and Support Ltd,B*Voluntary-Spot-V Dep-Enhanced - do not u,Bi-Borough Director of Integrated Care,828.83
12/12/2023,1247526,Integrity Care and Support Ltd,B*Voluntary-Spot-V Dep-Enhanced - do not u,Bi-Borough Director of Integrated Care,739.78
12/12/2023,1247526,Integrity Care and Support Ltd,B*Voluntary-Spot-V Dep-Enhanced - do not u,Bi-Borough Director of Integrated Care,790.02
12/12/2023,1247526,Integrity Care and Support Ltd,B*Voluntary-Spot-V Dep-Enhanced - do not u,Bi-Borough Director of Integrated Care,1587.38
12/12/2023,1247526,Integrity Care and Support Ltd,B*Voluntary-Spot-V Dep-Enhanced - do not u,Bi-Borough Director of Integrated Care,699.7
12/12/2023,1247526,Integrity Care and Support Ltd,B*Voluntary-Spot-V Dep-Enhanced - do not u,Bi-Borough Director of Integrated Care,1103.46
12/12/2023,1247526,Integrity Care and Support Ltd,B*Voluntary-Spot-V Dep-Enhanced - do not u,Bi-Borough Director of Integrated Care,633.23
12/12/2023,1247526,Integrity Care and Support Ltd,B*Voluntary-Spot-V Dep-Enhanced - do not u,Bi-Borough Director of Integrated Care,1525
12/12/2023,1247526,Integrity Care and Support Ltd,B*Voluntary-Spot-V Dep-Enhanced - do not u,Bi-Borough Director of Integrated Care,681.92
12/12/2023,1247526,Integrity Care and Support Ltd,B*Voluntary-Spot-V Dep-Enhanced - do not u,Bi-Borough Director of Integrated Care,1803.8
12/12/2023,1247526,Integrity Care and Support Ltd,B*Voluntary-Spot-V Dep-Enhanced - do not u,Bi-Borough Director of Integrated Care,576.15
12/12/2023,1247526,Integrity Care and Support Ltd,B*Voluntary-Spot-V Dep-Enhanced - do not u,Bi-Borough Director of Integrated Care,1321.01
12/12/2023,1247526,Integrity Care and Support Ltd,B*Voluntary-Spot-V Dep-Enhanced - do not u,Bi-Borough Director of Integrated Care,568.04
12/12/2023,1247526,Integrity Care and Support Ltd,B*Voluntary-Spot-V Dep-Enhanced - do not u,Bi-Borough Director of Integrated Care,1006.93
17/10/2023,1256893,Kapital Care WCC,,Bi-Borough Director of Integrated Care,1613.92
09/11/2023,1256893,Kapital Care WCC,,Bi-Borough Director of Integrated Care,1613.92
07/12/2023,1256893,Kapital Care WCC,,Bi-Borough Director of Integrated Care,1613.92
12/10/2023,1247598,Kisimul Group Ltd,,Bi-Borough Director of Integrated Care,16158.92
08/11/2023,1247598,Kisimul Group Ltd,,Bi-Borough Director of Integrated Care,16757.4
06/12/2023,1247598,Kisimul Group Ltd,,Bi-Borough Director of Integrated Care,16757.4
21/12/2023,1247598,Kisimul Group Ltd,,Bi-Borough Director of Integrated Care,16757.4
08/11/2023,1243535,LIAISE (LONDON) LIMITED,,Bi-Borough Director of Integrated Care,7466.24
08/11/2023,1243535,LIAISE (LONDON) LIMITED,,Bi-Borough Director of Integrated Care,29528.71
08/11/2023,1243535,LIAISE (LONDON) LIMITED,,Bi-Borough Director of Integrated Care,21612.8
08/11/2023,1243535,LIAISE (LONDON) LIMITED,,Bi-Borough Director of Integrated Care,37533.41
06/12/2023,1243535,LIAISE (LONDON) LIMITED,,Bi-Borough Director of Integrated Care,19107.92
06/12/2023,1243535,LIAISE (LONDON) LIMITED,,Bi-Borough Director of Integrated Care,11002.88
06/12/2023,1243535,LIAISE (LONDON) LIMITED,,Bi-Borough Director of Integrated Care,15032.8
01/10/2023,1310068,Learning Disability Network London,,Bi-Borough Director of Integrated Care,8205
12/10/2023,1310068,Learning Disability Network London,,Bi-Borough Director of Integrated Care,754.86
12/10/2023,1310068,Learning Disability Network London,,Bi-Borough Director of Integrated Care,1603.49
09/11/2023,1310068,Learning Disability Network London,,Bi-Borough Director of Integrated Care,1006.48
09/11/2023,1310068,Learning Disability Network London,,Bi-Borough Director of Integrated Care,1662.88
06/12/2023,1310068,Learning Disability Network London,,Bi-Borough Director of Integrated Care,1006.48
06/12/2023,1310068,Learning Disability Network London,,Bi-Borough Director of Integrated Care,1662.88
12/12/2023,1310068,Learning Disability Network London,Rent,Bi-Borough Director of Integrated Care,19714.88
14/12/2023,1310068,Learning Disability Network London,Rent,Bi-Borough Director of Integrated Care,20323.58
14/12/2023,1310068,Learning Disability Network London,Rent,Bi-Borough Director of Integrated Care,16137.65
14/12/2023,1310068,Learning Disability Network London,Rent,Bi-Borough Director of Integrated Care,19789.84
18/12/2023,1310068,Learning Disability Network London,Rent,Bi-Borough Director of Integrated Care,16863
21/12/2023,1310068,Learning Disability Network London,,Bi-Borough Director of Integrated Care,1006.48
21/12/2023,1310068,Learning Disability Network London,,Bi-Borough Director of Integrated Care,1662.88
12/10/2023,1243506,Lifeways Community Care Ltd,,Bi-Borough Director of Integrated Care,13112.09
12/10/2023,1243506,Lifeways Community Care Ltd,,Bi-Borough Director of Integrated Care,7620.48
08/11/2023,1243506,Lifeways Community Care Ltd,,Bi-Borough Director of Integrated Care,13597.72
08/11/2023,1243506,Lifeways Community Care Ltd,,Bi-Borough Director of Integrated Care,9025.24
06/12/2023,1243506,Lifeways Community Care Ltd,,Bi-Borough Director of Integrated Care,13597.72
06/12/2023,1243506,Lifeways Community Care Ltd,,Bi-Borough Director of Integrated Care,8139.04
21/12/2023,1243506,Lifeways Community Care Ltd,,Bi-Borough Director of Integrated Care,13597.72
21/12/2023,1243506,Lifeways Community Care Ltd,,Bi-Borough Director of Integrated Care,8139.04
12/10/2023,1249729,Linden Lodge School,,Bi-Borough Director of Integrated Care,6379.71
08/11/2023,1249729,Linden Lodge School,,Bi-Borough Director of Integrated Care,6616
06/12/2023,1249729,Linden Lodge School,,Bi-Borough Director of Integrated Care,6616
21/12/2023,1249729,Linden Lodge School,,Bi-Borough Director of Integrated Care,6616
12/10/2023,1244762,Livability,,Bi-Borough Director of Integrated Care,6364.29
08/11/2023,1244762,Livability,,Bi-Borough Director of Integrated Care,6600
06/12/2023,1244762,Livability,,Bi-Borough Director of Integrated Care,6600
21/12/2023,1244762,Livability,,Bi-Borough Director of Integrated Care,6600
12/10/2023,1247650,London Care Ltd,,Bi-Borough Director of Integrated Care,1023.24
12/10/2023,1247650,London Care Ltd,,Bi-Borough Director of Integrated Care,848.4
12/10/2023,1247650,London Care Ltd,,Bi-Borough Director of Integrated Care,1731.71
12/10/2023,1247650,London Care Ltd,,Bi-Borough Director of Integrated Care,1417.76
12/10/2023,1247650,London Care Ltd,,Bi-Borough Director of Integrated Care,1152.64
03/11/2023,1247650,London Care Ltd,,Bi-Borough Director of Integrated Care,848.4
03/11/2023,1247650,London Care Ltd,,Bi-Borough Director of Integrated Care,1762.83
03/11/2023,1247650,London Care Ltd,,Bi-Borough Director of Integrated Care,1362.97
03/11/2023,1247650,London Care Ltd,,Bi-Borough Director of Integrated Care,938.55
08/11/2023,1247650,London Care Ltd,,Bi-Borough Director of Integrated Care,1152.64
06/12/2023,1247650,London Care Ltd,,Bi-Borough Director of Integrated Care,1152.64
07/12/2023,1247650,London Care Ltd,,Bi-Borough Director of Integrated Care,848.05
07/12/2023,1247650,London Care Ltd,,Bi-Borough Director of Integrated Care,1757.52
07/12/2023,1247650,London Care Ltd,,Bi-Borough Director of Integrated Care,1457.35
07/12/2023,1247650,London Care Ltd,,Bi-Borough Director of Integrated Care,1022.32
22/12/2023,1247650,London Care Ltd,,Bi-Borough Director of Integrated Care,848.4
22/12/2023,1247650,London Care Ltd,,Bi-Borough Director of Integrated Care,1763.18
22/12/2023,1247650,London Care Ltd,,Bi-Borough Director of Integrated Care,1464.77
22/12/2023,1247650,London Care Ltd,,Bi-Borough Director of Integrated Care,1039.36
12/10/2023,1247656,London Cyrenians Housing Ltd,,Bi-Borough Director of Integrated Care,6094.29
12/10/2023,1247656,London Cyrenians Housing Ltd,,Bi-Borough Director of Integrated Care,4288.58
08/11/2023,1247656,London Cyrenians Housing Ltd,,Bi-Borough Director of Integrated Care,6320
06/12/2023,1247656,London Cyrenians Housing Ltd,,Bi-Borough Director of Integrated Care,6320
21/12/2023,1247656,London Cyrenians Housing Ltd,,Bi-Borough Director of Integrated Care,6320
10/10/2023,1247846,London Vip Cars,Payments to Transport Operators,Bi-Borough Director of Integrated Care,1438.86
24/10/2023,1247846,London Vip Cars,Payments to Transport Operators,Bi-Borough Director of Integrated Care,1899
24/11/2023,1247846,London Vip Cars,Payments to Transport Operators,Bi-Borough Director of Integrated Care,1960
18/12/2023,1247846,London Vip Cars,Payments to Transport Operators,Bi-Borough Director of Integrated Care,2109
12/10/2023,1243508,Lukka Care Homes (2010) Ltd T/A,,Bi-Borough Director of Integrated Care,5771.48
08/11/2023,1243508,Lukka Care Homes (2010) Ltd T/A,,Bi-Borough Director of Integrated Care,5985.24
06/12/2023,1243508,Lukka Care Homes (2010) Ltd T/A,,Bi-Borough Director of Integrated Care,5985.24
21/12/2023,1243508,Lukka Care Homes (2010) Ltd T/A,,Bi-Borough Director of Integrated Care,5985.24
12/10/2023,1282320,Marcus and Marcus,,Bi-Borough Director of Integrated Care,1274.4
12/10/2023,1282320,Marcus and Marcus,,Bi-Borough Director of Integrated Care,5714.09
12/10/2023,1282320,Marcus and Marcus,,Bi-Borough Director of Integrated Care,6845.62
08/11/2023,1282320,Marcus and Marcus,,Bi-Borough Director of Integrated Care,1321.6
08/11/2023,1282320,Marcus and Marcus,,Bi-Borough Director of Integrated Care,7355.33
06/12/2023,1282320,Marcus and Marcus,,Bi-Borough Director of Integrated Care,1321.6
06/12/2023,1282320,Marcus and Marcus,,Bi-Borough Director of Integrated Care,7298.4
21/12/2023,1282320,Marcus and Marcus,,Bi-Borough Director of Integrated Care,1321.6
21/12/2023,1282320,Marcus and Marcus,,Bi-Borough Director of Integrated Care,7298.4
12/10/2023,1245144,Methodist Homes For The Aged,,Bi-Borough Director of Integrated Care,3118.11
08/11/2023,1245144,Methodist Homes For The Aged,,Bi-Borough Director of Integrated Care,3233.6
06/12/2023,1245144,Methodist Homes For The Aged,,Bi-Borough Director of Integrated Care,3233.6
21/12/2023,1245144,Methodist Homes For The Aged,,Bi-Borough Director of Integrated Care,3233.6
20/10/2023,1244905,Nas Services Ltd (Residential),B*Voluntary-Spot-V Dep-Enhanced - do not u,Bi-Borough Director of Integrated Care,1418.44
20/10/2023,1244905,Nas Services Ltd (Residential),B*Voluntary-Spot-V Dep-Enhanced - do not u,Bi-Borough Director of Integrated Care,1418.44
20/10/2023,1244905,Nas Services Ltd (Residential),B*Voluntary-Spot-V Dep-Enhanced - do not u,Bi-Borough Director of Integrated Care,2915.36
08/11/2023,1244905,Nas Services Ltd (Residential),,Bi-Borough Director of Integrated Care,62585.25
08/11/2023,1244905,Nas Services Ltd (Residential),,Bi-Borough Director of Integrated Care,18986.48
08/11/2023,1244905,Nas Services Ltd (Residential),,Bi-Borough Director of Integrated Care,23659.56
06/12/2023,1244905,Nas Services Ltd (Residential),,Bi-Borough Director of Integrated Care,9002.92
06/12/2023,1244905,Nas Services Ltd (Residential),,Bi-Borough Director of Integrated Care,13600
06/12/2023,1244905,Nas Services Ltd (Residential),,Bi-Borough Director of Integrated Care,5480
20/10/2023,1244906,Nas Services Ltd (Use 3009018),B*Voluntary-Spot-V Dep-Enhanced - do not u,Bi-Borough Director of Integrated Care,5243.8
20/10/2023,1244906,Nas Services Ltd (Use 3009018),B*Voluntary-Spot-V Dep-Enhanced - do not u,Bi-Borough Director of Integrated Care,5243.8
20/10/2023,1244906,Nas Services Ltd (Use 3009018),B*Voluntary-Spot-V Dep-Enhanced - do not u,Bi-Borough Director of Integrated Care,2027.52
20/10/2023,1244906,Nas Services Ltd (Use 3009018),B*Voluntary-Spot-V Dep-Enhanced - do not u,Bi-Borough Director of Integrated Care,2027.52
20/10/2023,1244906,Nas Services Ltd (Use 3009018),B*Voluntary-Spot-V Dep-Enhanced - do not u,Bi-Borough Director of Integrated Care,1308.36
20/10/2023,1244906,Nas Services Ltd (Use 3009018),B*Voluntary-Spot-V Dep-Enhanced - do not u,Bi-Borough Director of Integrated Care,2915.36
20/10/2023,1244906,Nas Services Ltd (Use 3009018),B*Voluntary-Spot-V Dep-Enhanced - do not u,Bi-Borough Director of Integrated Care,4879.2
20/10/2023,1244906,Nas Services Ltd (Use 3009018),B*Voluntary-Spot-V Dep-Enhanced - do not u,Bi-Borough Director of Integrated Care,1124.96
20/10/2023,1244906,Nas Services Ltd (Use 3009018),B*Voluntary-Spot-V Dep-Enhanced - do not u,Bi-Borough Director of Integrated Care,2970.72
20/10/2023,1244906,Nas Services Ltd (Use 3009018),B*Voluntary-Spot-V Dep-Enhanced - do not u,Bi-Borough Director of Integrated Care,1744.52
20/10/2023,1244906,Nas Services Ltd (Use 3009018),B*Voluntary-Spot-V Dep-Enhanced - do not u,Bi-Borough Director of Integrated Care,1124.96
20/10/2023,1244906,Nas Services Ltd (Use 3009018),B*Voluntary-Spot-V Dep-Enhanced - do not u,Bi-Borough Director of Integrated Care,2970.72
20/10/2023,1244906,Nas Services Ltd (Use 3009018),B*Voluntary-Spot-V Dep-Enhanced - do not u,Bi-Borough Director of Integrated Care,1772.04
20/10/2023,1244906,Nas Services Ltd (Use 3009018),B*Voluntary-Spot-V Dep-Enhanced - do not u,Bi-Borough Director of Integrated Care,1308.36
20/10/2023,1244906,Nas Services Ltd (Use 3009018),B*Voluntary-Spot-V Dep-Enhanced - do not u,Bi-Borough Director of Integrated Care,4879.2
20/10/2023,1244906,Nas Services Ltd (Use 3009018),B*Voluntary-Spot-V Dep-Enhanced - do not u,Bi-Borough Director of Integrated Care,5243.8
12/10/2023,1282551,Nisacraftcare Limited,,Bi-Borough Director of Integrated Care,10587.9
12/10/2023,1282551,Nisacraftcare Limited,,Bi-Borough Director of Integrated Care,7362.55
12/10/2023,1282551,Nisacraftcare Limited,,Bi-Borough Director of Integrated Care,7777.16
08/11/2023,1282551,Nisacraftcare Limited,,Bi-Borough Director of Integrated Care,10980.04
08/11/2023,1282551,Nisacraftcare Limited,,Bi-Borough Director of Integrated Care,7635.24
08/11/2023,1282551,Nisacraftcare Limited,,Bi-Borough Director of Integrated Care,8065.2
06/12/2023,1282551,Nisacraftcare Limited,,Bi-Borough Director of Integrated Care,10980.04
06/12/2023,1282551,Nisacraftcare Limited,,Bi-Borough Director of Integrated Care,7635.24
06/12/2023,1282551,Nisacraftcare Limited,,Bi-Borough Director of Integrated Care,8065.2
21/12/2023,1282551,Nisacraftcare Limited,,Bi-Borough Director of Integrated Care,10980.04
21/12/2023,1282551,Nisacraftcare Limited,,Bi-Borough Director of Integrated Care,7635.24
21/12/2023,1282551,Nisacraftcare Limited,,Bi-Borough Director of Integrated Care,8065.2
12/10/2023,1247147,Norwood Schools Ltd,,Bi-Borough Director of Integrated Care,11826
12/10/2023,1247147,Norwood Schools Ltd,,Bi-Borough Director of Integrated Care,4917.63
12/10/2023,1247147,Norwood Schools Ltd,,Bi-Borough Director of Integrated Care,8485.71
12/10/2023,1247147,Norwood Schools Ltd,,Bi-Borough Director of Integrated Care,12728.57
08/11/2023,1247147,Norwood Schools Ltd,,Bi-Borough Director of Integrated Care,12264
08/11/2023,1247147,Norwood Schools Ltd,,Bi-Borough Director of Integrated Care,5099.76
08/11/2023,1247147,Norwood Schools Ltd,,Bi-Borough Director of Integrated Care,8800
08/11/2023,1247147,Norwood Schools Ltd,,Bi-Borough Director of Integrated Care,13200
06/12/2023,1247147,Norwood Schools Ltd,,Bi-Borough Director of Integrated Care,12264
06/12/2023,1247147,Norwood Schools Ltd,,Bi-Borough Director of Integrated Care,5099.76
06/12/2023,1247147,Norwood Schools Ltd,,Bi-Borough Director of Integrated Care,8800
06/12/2023,1247147,Norwood Schools Ltd,,Bi-Borough Director of Integrated Care,13200
21/12/2023,1247147,Norwood Schools Ltd,,Bi-Borough Director of Integrated Care,8800
21/12/2023,1247147,Norwood Schools Ltd,,Bi-Borough Director of Integrated Care,13200
21/12/2023,1247147,Norwood Schools Ltd,,Bi-Borough Director of Integrated Care,12264
21/12/2023,1247147,Norwood Schools Ltd,,Bi-Borough Director of Integrated Care,5099.76
12/10/2023,1273024,Oakland Support Ltd,,Bi-Borough Director of Integrated Care,677.54
12/10/2023,1273024,Oakland Support Ltd,,Bi-Borough Director of Integrated Care,962.82
08/11/2023,1273024,Oakland Support Ltd,,Bi-Borough Director of Integrated Care,3947.58
06/12/2023,1273024,Oakland Support Ltd,,Bi-Borough Director of Integrated Care,2070.88
21/12/2023,1273024,Oakland Support Ltd,,Bi-Borough Director of Integrated Care,2070.88
12/10/2023,1243520,Oakview Care (Berkshire) Ltd,,Bi-Borough Director of Integrated Care,7262.69
08/11/2023,1243520,Oakview Care (Berkshire) Ltd,,Bi-Borough Director of Integrated Care,7531.68
06/12/2023,1243520,Oakview Care (Berkshire) Ltd,,Bi-Borough Director of Integrated Care,7531.68
21/12/2023,1243520,Oakview Care (Berkshire) Ltd,,Bi-Borough Director of Integrated Care,7531.68
17/10/2023,1248252,Origin Housing Ltd,B*Voluntary-Spot-V Dep-Enhanced - do not u,Bi-Borough Director of Integrated Care,1716
17/10/2023,1248252,Origin Housing Ltd,B*Voluntary-Spot-V Dep-Enhanced - do not u,Bi-Borough Director of Integrated Care,993.72
12/10/2023,1243524,Ormsby Lodge,,Bi-Borough Director of Integrated Care,902.57
12/10/2023,1243524,Ormsby Lodge,,Bi-Borough Director of Integrated Care,3356.83
08/11/2023,1243524,Ormsby Lodge,,Bi-Borough Director of Integrated Care,936
08/11/2023,1243524,Ormsby Lodge,,Bi-Borough Director of Integrated Care,3481.16
06/12/2023,1243524,Ormsby Lodge,,Bi-Borough Director of Integrated Care,936
06/12/2023,1243524,Ormsby Lodge,,Bi-Borough Director of Integrated Care,3481.16
21/12/2023,1243524,Ormsby Lodge,,Bi-Borough Director of Integrated Care,936
21/12/2023,1243524,Ormsby Lodge,,Bi-Borough Director of Integrated Care,3481.16
12/10/2023,1245005,Outlook Care,,Bi-Borough Director of Integrated Care,2070.21
12/10/2023,1245005,Outlook Care,,Bi-Borough Director of Integrated Care,1682.49
12/10/2023,1245005,Outlook Care,,Bi-Borough Director of Integrated Care,2799.28
12/10/2023,1245005,Outlook Care,,Bi-Borough Director of Integrated Care,3250.49
12/10/2023,1245005,Outlook Care,,Bi-Borough Director of Integrated Care,2070.21
12/10/2023,1245005,Outlook Care,,Bi-Borough Director of Integrated Care,1289.91
08/11/2023,1245005,Outlook Care,,Bi-Borough Director of Integrated Care,2146.88
08/11/2023,1245005,Outlook Care,,Bi-Borough Director of Integrated Care,1337.68
08/11/2023,1245005,Outlook Care,,Bi-Borough Director of Integrated Care,2902.96
08/11/2023,1245005,Outlook Care,,Bi-Borough Director of Integrated Care,3370.88
08/11/2023,1245005,Outlook Care,,Bi-Borough Director of Integrated Care,1744.8
08/11/2023,1245005,Outlook Care,,Bi-Borough Director of Integrated Care,2146.88
06/12/2023,1245005,Outlook Care,,Bi-Borough Director of Integrated Care,1744.8
06/12/2023,1245005,Outlook Care,,Bi-Borough Director of Integrated Care,2146.88
06/12/2023,1245005,Outlook Care,,Bi-Borough Director of Integrated Care,2902.96
06/12/2023,1245005,Outlook Care,,Bi-Borough Director of Integrated Care,3370.88
06/12/2023,1245005,Outlook Care,,Bi-Borough Director of Integrated Care,2146.88
06/12/2023,1245005,Outlook Care,,Bi-Borough Director of Integrated Care,1337.68
21/12/2023,1245005,Outlook Care,,Bi-Borough Director of Integrated Care,1744.8
21/12/2023,1245005,Outlook Care,,Bi-Borough Director of Integrated Care,2146.88
21/12/2023,1245005,Outlook Care,,Bi-Borough Director of Integrated Care,2902.96
21/12/2023,1245005,Outlook Care,,Bi-Borough Director of Integrated Care,3370.88
21/12/2023,1245005,Outlook Care,,Bi-Borough Director of Integrated Care,1337.68
21/12/2023,1245005,Outlook Care,,Bi-Borough Director of Integrated Care,2146.88
19/10/2023,1250674,PERSONAL PAYMENTS,Adult Social Care - Other Transfer Pay,Bi-Borough Director of Integrated Care,6975.31
19/10/2023,1250656,PERSONAL PAYMENTS,Adult Social Care - Other Transfer Pay,Bi-Borough Director of Integrated Care,1118.36
19/10/2023,1246066,PERSONAL PAYMENTS,Adult Social Care - Other Transfer Pay,Bi-Borough Director of Integrated Care,1029.88
19/10/2023,1246066,PERSONAL PAYMENTS,Adult Social Care - Other Transfer Pay,Bi-Borough Director of Integrated Care,2452.2
19/10/2023,1246066,PERSONAL PAYMENTS,Adult Social Care - Other Transfer Pay,Bi-Borough Director of Integrated Care,11674.68
19/10/2023,1246066,PERSONAL PAYMENTS,Adult Social Care - Other Transfer Pay,Bi-Borough Director of Integrated Care,1991
19/10/2023,1246066,PERSONAL PAYMENTS,Adult Social Care - Other Transfer Pay,Bi-Borough Director of Integrated Care,2501.48
19/10/2023,1246066,PERSONAL PAYMENTS,Adult Social Care - Other Transfer Pay,Bi-Borough Director of Integrated Care,3166.36
19/10/2023,1246066,PERSONAL PAYMENTS,Adult Social Care - Other Transfer Pay,Bi-Borough Director of Integrated Care,918.96
19/10/2023,1291747,PERSONAL PAYMENTS,Adult Social Care - Other Transfer Pay,Bi-Borough Director of Integrated Care,1295.6
19/10/2023,1292106,PERSONAL PAYMENTS,Adult Social Care - Other Transfer Pay,Bi-Borough Director of Integrated Care,1093.6
19/10/2023,1280973,PERSONAL PAYMENTS,Adult Social Care - Other Transfer Pay,Bi-Borough Director of Integrated Care,6394.48
19/10/2023,1268346,PERSONAL PAYMENTS,Adult Social Care - Other Transfer Pay,Bi-Borough Director of Integrated Care,2234.8
19/10/2023,1246066,PERSONAL PAYMENTS,Adult Social Care - Other Transfer Pay,Bi-Borough Director of Integrated Care,858.2
19/10/2023,1246066,PERSONAL PAYMENTS,Adult Social Care - Other Transfer Pay,Bi-Borough Director of Integrated Care,1066.28
19/10/2023,1246066,PERSONAL PAYMENTS,Adult Social Care - Other Transfer Pay,Bi-Borough Director of Integrated Care,6462.56
19/10/2023,1291747,PERSONAL PAYMENTS,Adult Social Care - Other Transfer Pay,Bi-Borough Director of Integrated Care,1682.52
19/10/2023,1247820,PERSONAL PAYMENTS,Adult Social Care - Other Transfer Pay,Bi-Borough Director of Integrated Care,8751.04
19/10/2023,1249942,PERSONAL PAYMENTS,Adult Social Care - Other Transfer Pay,Bi-Borough Director of Integrated Care,6343.36
19/10/2023,1314455,PERSONAL PAYMENTS,Adult Social Care - Other Transfer Pay,Bi-Borough Director of Integrated Care,1714.16
19/10/2023,1254540,PERSONAL PAYMENTS,Adult Social Care - Other Transfer Pay,Bi-Borough Director of Integrated Care,939.92
19/10/2023,1246066,PERSONAL PAYMENTS,Adult Social Care - Other Transfer Pay,Bi-Borough Director of Integrated Care,2690.16
19/10/2023,1246066,PERSONAL PAYMENTS,Adult Social Care - Other Transfer Pay,Bi-Borough Director of Integrated Care,1688.6
19/10/2023,1246066,PERSONAL PAYMENTS,Adult Social Care - Other Transfer Pay,Bi-Borough Director of Integrated Care,733.8
19/10/2023,1291747,PERSONAL PAYMENTS,Adult Social Care - Other Transfer Pay,Bi-Borough Director of Integrated Care,2041.76
19/10/2023,1291747,PERSONAL PAYMENTS,Adult Social Care - Other Transfer Pay,Bi-Borough Director of Integrated Care,2599.32
19/10/2023,1291747,PERSONAL PAYMENTS,Adult Social Care - Other Transfer Pay,Bi-Borough Director of Integrated Care,1278.6
19/10/2023,1250536,PERSONAL PAYMENTS,Adult Social Care - Other Transfer Pay,Bi-Borough Director of Integrated Care,678.64
19/10/2023,1269674,PERSONAL PAYMENTS,Adult Social Care - Other Transfer Pay,Bi-Borough Director of Integrated Care,1121.07
19/10/2023,1248354,PERSONAL PAYMENTS,Adult Social Care - Other Transfer Pay,Bi-Borough Director of Integrated Care,2425.36
19/10/2023,1250215,PERSONAL PAYMENTS,Adult Social Care - Other Transfer Pay,Bi-Borough Director of Integrated Care,1954.74
19/10/2023,1246066,PERSONAL PAYMENTS,Adult Social Care - Other Transfer Pay,Bi-Borough Director of Integrated Care,5914.56
19/10/2023,1246066,PERSONAL PAYMENTS,Adult Social Care - Other Transfer Pay,Bi-Borough Director of Integrated Care,5754.04
19/10/2023,1246066,PERSONAL PAYMENTS,Adult Social Care - Other Transfer Pay,Bi-Borough Director of Integrated Care,5725.72
19/10/2023,1291747,PERSONAL PAYMENTS,Adult Social Care - Other Transfer Pay,Bi-Borough Director of Integrated Care,1480.36
19/10/2023,1250037,PERSONAL PAYMENTS,Adult Social Care - Other Transfer Pay,Bi-Borough Director of Integrated Care,5393.37
19/10/2023,1246066,PERSONAL PAYMENTS,Adult Social Care - Other Transfer Pay,Bi-Borough Director of Integrated Care,544
19/10/2023,1291747,PERSONAL PAYMENTS,Adult Social Care - Other Transfer Pay,Bi-Borough Director of Integrated Care,1531.32
19/10/2023,1291747,PERSONAL PAYMENTS,Adult Social Care - Other Transfer Pay,Bi-Borough Director of Integrated Care,4521
19/10/2023,1291747,PERSONAL PAYMENTS,Adult Social Care - Other Transfer Pay,Bi-Borough Director of Integrated Care,4125.92
19/10/2023,1291747,PERSONAL PAYMENTS,Adult Social Care - Other Transfer Pay,Bi-Borough Director of Integrated Care,3892.72
19/10/2023,1291747,PERSONAL PAYMENTS,Adult Social Care - Other Transfer Pay,Bi-Borough Director of Integrated Care,6277.39
19/10/2023,1248010,PERSONAL PAYMENTS,Adult Social Care - Other Transfer Pay,Bi-Borough Director of Integrated Care,646.16
19/10/2023,1248154,PERSONAL PAYMENTS,Adult Social Care - Other Transfer Pay,Bi-Borough Director of Integrated Care,3347.28
19/10/2023,1248148,PERSONAL PAYMENTS,Adult Social Care - Other Transfer Pay,Bi-Borough Director of Integrated Care,1638.96
19/10/2023,1246066,PERSONAL PAYMENTS,Adult Social Care - Other Transfer Pay,Bi-Borough Director of Integrated Care,2585.32
19/10/2023,1250074,PERSONAL PAYMENTS,Adult Social Care - Other Transfer Pay,Bi-Borough Director of Integrated Care,6904.8
19/10/2023,1249876,PERSONAL PAYMENTS,Adult Social Care - Other Transfer Pay,Bi-Borough Director of Integrated Care,648.92
19/10/2023,1257487,PERSONAL PAYMENTS,Adult Social Care - Other Transfer Pay,Bi-Borough Director of Integrated Care,550
19/10/2023,1311623,PERSONAL PAYMENTS,Adult Social Care - Other Transfer Pay,Bi-Borough Director of Integrated Care,3025.21
19/10/2023,1246066,PERSONAL PAYMENTS,Adult Social Care - Other Transfer Pay,Bi-Borough Director of Integrated Care,788.12
19/10/2023,1291747,PERSONAL PAYMENTS,Adult Social Care - Other Transfer Pay,Bi-Borough Director of Integrated Care,3350.2
19/10/2023,1247804,PERSONAL PAYMENTS,Adult Social Care - Other Transfer Pay,Bi-Borough Director of Integrated Care,752.2
19/10/2023,1250670,PERSONAL PAYMENTS,Adult Social Care - Other Transfer Pay,Bi-Borough Director of Integrated Care,1571.52
19/10/2023,1250627,PERSONAL PAYMENTS,Adult Social Care - Other Transfer Pay,Bi-Borough Director of Integrated Care,2508
19/10/2023,1250044,PERSONAL PAYMENTS,Adult Social Care - Other Transfer Pay,Bi-Borough Director of Integrated Care,724.04
19/10/2023,1250012,PERSONAL PAYMENTS,Adult Social Care - Other Transfer Pay,Bi-Borough Director of Integrated Care,838.6
19/10/2023,1250138,PERSONAL PAYMENTS,Adult Social Care - Other Transfer Pay,Bi-Borough Director of Integrated Care,916
19/10/2023,1246066,PERSONAL PAYMENTS,Adult Social Care - Other Transfer Pay,Bi-Borough Director of Integrated Care,843.96
19/10/2023,1246066,PERSONAL PAYMENTS,Adult Social Care - Other Transfer Pay,Bi-Borough Director of Integrated Care,1070.52
19/10/2023,1250186,PERSONAL PAYMENTS,Adult Social Care - Other Transfer Pay,Bi-Borough Director of Integrated Care,3404.96
19/10/2023,1248828,PERSONAL PAYMENTS,Adult Social Care - Other Transfer Pay,Bi-Borough Director of Integrated Care,868.76
19/10/2023,1272570,PERSONAL PAYMENTS,Adult Social Care - Other Transfer Pay,Bi-Borough Director of Integrated Care,1051.24
16/11/2023,1246066,PERSONAL PAYMENTS,Adult Social Care - Other Transfer Pay,Bi-Borough Director of Integrated Care,1029.88
16/11/2023,1246066,PERSONAL PAYMENTS,Adult Social Care - Other Transfer Pay,Bi-Borough Director of Integrated Care,2452.2
16/11/2023,1246066,PERSONAL PAYMENTS,Adult Social Care - Other Transfer Pay,Bi-Borough Director of Integrated Care,11674.68
16/11/2023,1246066,PERSONAL PAYMENTS,Adult Social Care - Other Transfer Pay,Bi-Borough Director of Integrated Care,1991
16/11/2023,1246066,PERSONAL PAYMENTS,Adult Social Care - Other Transfer Pay,Bi-Borough Director of Integrated Care,2225.08
16/11/2023,1246066,PERSONAL PAYMENTS,Adult Social Care - Other Transfer Pay,Bi-Borough Director of Integrated Care,3166.36
16/11/2023,1246066,PERSONAL PAYMENTS,Adult Social Care - Other Transfer Pay,Bi-Borough Director of Integrated Care,918.96
16/11/2023,1291747,PERSONAL PAYMENTS,Adult Social Care - Other Transfer Pay,Bi-Borough Director of Integrated Care,1295.6
16/11/2023,1292106,PERSONAL PAYMENTS,Adult Social Care - Other Transfer Pay,Bi-Borough Director of Integrated Care,1093.6
16/11/2023,1280973,PERSONAL PAYMENTS,Adult Social Care - Other Transfer Pay,Bi-Borough Director of Integrated Care,6394.48
16/11/2023,1268346,PERSONAL PAYMENTS,Adult Social Care - Other Transfer Pay,Bi-Borough Director of Integrated Care,2234.8
16/11/2023,1246066,PERSONAL PAYMENTS,Adult Social Care - Other Transfer Pay,Bi-Borough Director of Integrated Care,858.2
16/11/2023,1246066,PERSONAL PAYMENTS,Adult Social Care - Other Transfer Pay,Bi-Borough Director of Integrated Care,1066.28
16/11/2023,1246066,PERSONAL PAYMENTS,Adult Social Care - Other Transfer Pay,Bi-Borough Director of Integrated Care,3176
16/11/2023,1291747,PERSONAL PAYMENTS,Adult Social Care - Other Transfer Pay,Bi-Borough Director of Integrated Care,1682.52
16/11/2023,1246066,PERSONAL PAYMENTS,Adult Social Care - Other Transfer Pay,Bi-Borough Director of Integrated Care,616.08
16/11/2023,1246066,PERSONAL PAYMENTS,Adult Social Care - Other Transfer Pay,Bi-Borough Director of Integrated Care,2690.16
16/11/2023,1246066,PERSONAL PAYMENTS,Adult Social Care - Other Transfer Pay,Bi-Borough Director of Integrated Care,1688.6
16/11/2023,1246066,PERSONAL PAYMENTS,Adult Social Care - Other Transfer Pay,Bi-Borough Director of Integrated Care,733.8
16/11/2023,1291747,PERSONAL PAYMENTS,Adult Social Care - Other Transfer Pay,Bi-Borough Director of Integrated Care,2041.76
16/11/2023,1291747,PERSONAL PAYMENTS,Adult Social Care - Other Transfer Pay,Bi-Borough Director of Integrated Care,2599.32
16/11/2023,1291747,PERSONAL PAYMENTS,Adult Social Care - Other Transfer Pay,Bi-Borough Director of Integrated Care,1278.6
16/11/2023,1250627,PERSONAL PAYMENTS,Adult Social Care - Other Transfer Pay,Bi-Borough Director of Integrated Care,2508
16/11/2023,1250536,PERSONAL PAYMENTS,Adult Social Care - Other Transfer Pay,Bi-Borough Director of Integrated Care,678.64
16/11/2023,1247820,PERSONAL PAYMENTS,Adult Social Care - Other Transfer Pay,Bi-Borough Director of Integrated Care,8751.04
16/11/2023,1249942,PERSONAL PAYMENTS,Adult Social Care - Other Transfer Pay,Bi-Borough Director of Integrated Care,6343.36
16/11/2023,1314455,PERSONAL PAYMENTS,Adult Social Care - Other Transfer Pay,Bi-Borough Director of Integrated Care,1714.16
16/11/2023,1254540,PERSONAL PAYMENTS,Adult Social Care - Other Transfer Pay,Bi-Borough Director of Integrated Care,939.92
16/11/2023,1248354,PERSONAL PAYMENTS,Adult Social Care - Other Transfer Pay,Bi-Borough Director of Integrated Care,3637.61
16/11/2023,1269674,PERSONAL PAYMENTS,Adult Social Care - Other Transfer Pay,Bi-Borough Director of Integrated Care,999.28
16/11/2023,1250215,PERSONAL PAYMENTS,Adult Social Care - Other Transfer Pay,Bi-Borough Director of Integrated Care,1486.44
16/11/2023,1246066,PERSONAL PAYMENTS,Adult Social Care - Other Transfer Pay,Bi-Borough Director of Integrated Care,5914.56
16/11/2023,1246066,PERSONAL PAYMENTS,Adult Social Care - Other Transfer Pay,Bi-Borough Director of Integrated Care,5754.04
16/11/2023,1291747,PERSONAL PAYMENTS,Adult Social Care - Other Transfer Pay,Bi-Borough Director of Integrated Care,1480.36
16/11/2023,1250037,PERSONAL PAYMENTS,Adult Social Care - Other Transfer Pay,Bi-Borough Director of Integrated Care,2727.68
16/11/2023,1246066,PERSONAL PAYMENTS,Adult Social Care - Other Transfer Pay,Bi-Borough Director of Integrated Care,844.86
16/11/2023,1291747,PERSONAL PAYMENTS,Adult Social Care - Other Transfer Pay,Bi-Borough Director of Integrated Care,1531.32
16/11/2023,1291747,PERSONAL PAYMENTS,Adult Social Care - Other Transfer Pay,Bi-Borough Director of Integrated Care,4521
16/11/2023,1291747,PERSONAL PAYMENTS,Adult Social Care - Other Transfer Pay,Bi-Borough Director of Integrated Care,4125.92
16/11/2023,1291747,PERSONAL PAYMENTS,Adult Social Care - Other Transfer Pay,Bi-Borough Director of Integrated Care,3892.72
16/11/2023,1291747,PERSONAL PAYMENTS,Adult Social Care - Other Transfer Pay,Bi-Borough Director of Integrated Care,2043.8
16/11/2023,1248010,PERSONAL PAYMENTS,Adult Social Care - Other Transfer Pay,Bi-Borough Director of Integrated Care,646.16
16/11/2023,1248148,PERSONAL PAYMENTS,Adult Social Care - Other Transfer Pay,Bi-Borough Director of Integrated Care,1638.96
16/11/2023,1248154,PERSONAL PAYMENTS,Adult Social Care - Other Transfer Pay,Bi-Borough Director of Integrated Care,2088.4
16/11/2023,1250074,PERSONAL PAYMENTS,Adult Social Care - Other Transfer Pay,Bi-Borough Director of Integrated Care,6904.8
16/11/2023,1249876,PERSONAL PAYMENTS,Adult Social Care - Other Transfer Pay,Bi-Borough Director of Integrated Care,648.92
16/11/2023,1257487,PERSONAL PAYMENTS,Adult Social Care - Other Transfer Pay,Bi-Borough Director of Integrated Care,550
16/11/2023,1311623,PERSONAL PAYMENTS,Adult Social Care - Other Transfer Pay,Bi-Borough Director of Integrated Care,1033
16/11/2023,1246066,PERSONAL PAYMENTS,Adult Social Care - Other Transfer Pay,Bi-Borough Director of Integrated Care,1289.4
16/11/2023,1246066,PERSONAL PAYMENTS,Adult Social Care - Other Transfer Pay,Bi-Borough Director of Integrated Care,6285.83
16/11/2023,1291747,PERSONAL PAYMENTS,Adult Social Care - Other Transfer Pay,Bi-Borough Director of Integrated Care,3008.2
16/11/2023,1291747,PERSONAL PAYMENTS,Adult Social Care - Other Transfer Pay,Bi-Borough Director of Integrated Care,5010.88
16/11/2023,1247804,PERSONAL PAYMENTS,Adult Social Care - Other Transfer Pay,Bi-Borough Director of Integrated Care,752.2
16/11/2023,1250670,PERSONAL PAYMENTS,Adult Social Care - Other Transfer Pay,Bi-Borough Director of Integrated Care,1571.52
16/11/2023,1250044,PERSONAL PAYMENTS,Adult Social Care - Other Transfer Pay,Bi-Borough Director of Integrated Care,724.04
16/11/2023,1250012,PERSONAL PAYMENTS,Adult Social Care - Other Transfer Pay,Bi-Borough Director of Integrated Care,838.6
16/11/2023,1250138,PERSONAL PAYMENTS,Adult Social Care - Other Transfer Pay,Bi-Borough Director of Integrated Care,916
16/11/2023,1246066,PERSONAL PAYMENTS,Adult Social Care - Other Transfer Pay,Bi-Borough Director of Integrated Care,843.96
16/11/2023,1246066,PERSONAL PAYMENTS,Adult Social Care - Other Transfer Pay,Bi-Borough Director of Integrated Care,1070.52
16/11/2023,1250186,PERSONAL PAYMENTS,Adult Social Care - Other Transfer Pay,Bi-Borough Director of Integrated Care,3404.96
16/11/2023,1248828,PERSONAL PAYMENTS,Adult Social Care - Other Transfer Pay,Bi-Borough Director of Integrated Care,558.49
16/11/2023,1272570,PERSONAL PAYMENTS,Adult Social Care - Other Transfer Pay,Bi-Borough Director of Integrated Care,1051.24
16/11/2023,1250674,PERSONAL PAYMENTS,Adult Social Care - Other Transfer Pay,Bi-Borough Director of Integrated Care,3347.84
16/11/2023,1250656,PERSONAL PAYMENTS,Adult Social Care - Other Transfer Pay,Bi-Borough Director of Integrated Care,1118.36
24/11/2023,1293435,PERSONAL PAYMENTS,Adult Social Care - Other Transfer Pay,Bi-Borough Director of Integrated Care,840
24/11/2023,1291747,PERSONAL PAYMENTS,Adult Social Care - Other Transfer Pay,Bi-Borough Director of Integrated Care,2856
24/11/2023,1246066,PERSONAL PAYMENTS,Adult Social Care - Other Transfer Pay,Bi-Borough Director of Integrated Care,2908.66
24/11/2023,1291747,PERSONAL PAYMENTS,Adult Social Care - Other Transfer Pay,Bi-Borough Director of Integrated Care,4571.06
14/12/2023,1246066,PERSONAL PAYMENTS,Adult Social Care - Other Transfer Pay,Bi-Borough Director of Integrated Care,1070.52
14/12/2023,1291747,PERSONAL PAYMENTS,Adult Social Care - Other Transfer Pay,Bi-Borough Director of Integrated Care,1406.48
14/12/2023,1250186,PERSONAL PAYMENTS,Adult Social Care - Other Transfer Pay,Bi-Borough Director of Integrated Care,3404.96
14/12/2023,1272570,PERSONAL PAYMENTS,Adult Social Care - Other Transfer Pay,Bi-Borough Director of Integrated Care,1051.24
14/12/2023,1250674,PERSONAL PAYMENTS,Adult Social Care - Other Transfer Pay,Bi-Borough Director of Integrated Care,3347.84
14/12/2023,1250656,PERSONAL PAYMENTS,Adult Social Care - Other Transfer Pay,Bi-Borough Director of Integrated Care,1118.36
14/12/2023,1246066,PERSONAL PAYMENTS,Adult Social Care - Other Transfer Pay,Bi-Borough Director of Integrated Care,1029.88
14/12/2023,1246066,PERSONAL PAYMENTS,Adult Social Care - Other Transfer Pay,Bi-Borough Director of Integrated Care,2452.2
14/12/2023,1246066,PERSONAL PAYMENTS,Adult Social Care - Other Transfer Pay,Bi-Borough Director of Integrated Care,11674.68
14/12/2023,1246066,PERSONAL PAYMENTS,Adult Social Care - Other Transfer Pay,Bi-Borough Director of Integrated Care,1991
14/12/2023,1246066,PERSONAL PAYMENTS,Adult Social Care - Other Transfer Pay,Bi-Borough Director of Integrated Care,2225.08
14/12/2023,1246066,PERSONAL PAYMENTS,Adult Social Care - Other Transfer Pay,Bi-Borough Director of Integrated Care,3166.36
14/12/2023,1246066,PERSONAL PAYMENTS,Adult Social Care - Other Transfer Pay,Bi-Borough Director of Integrated Care,918.96
14/12/2023,1291747,PERSONAL PAYMENTS,Adult Social Care - Other Transfer Pay,Bi-Borough Director of Integrated Care,1295.6
14/12/2023,1292106,PERSONAL PAYMENTS,Adult Social Care - Other Transfer Pay,Bi-Borough Director of Integrated Care,1093.6
14/12/2023,1280973,PERSONAL PAYMENTS,Adult Social Care - Other Transfer Pay,Bi-Borough Director of Integrated Care,6394.48
14/12/2023,1268346,PERSONAL PAYMENTS,Adult Social Care - Other Transfer Pay,Bi-Borough Director of Integrated Care,2234.8
14/12/2023,1293435,PERSONAL PAYMENTS,Adult Social Care - Other Transfer Pay,Bi-Borough Director of Integrated Care,560
14/12/2023,1246066,PERSONAL PAYMENTS,Adult Social Care - Other Transfer Pay,Bi-Borough Director of Integrated Care,858.2
14/12/2023,1246066,PERSONAL PAYMENTS,Adult Social Care - Other Transfer Pay,Bi-Borough Director of Integrated Care,1066.28
14/12/2023,1246066,PERSONAL PAYMENTS,Adult Social Care - Other Transfer Pay,Bi-Borough Director of Integrated Care,3176
14/12/2023,1291747,PERSONAL PAYMENTS,Adult Social Care - Other Transfer Pay,Bi-Borough Director of Integrated Care,1682.52
14/12/2023,1291747,PERSONAL PAYMENTS,Adult Social Care - Other Transfer Pay,Bi-Borough Director of Integrated Care,816
14/12/2023,1247820,PERSONAL PAYMENTS,Adult Social Care - Other Transfer Pay,Bi-Borough Director of Integrated Care,8751.04
14/12/2023,1249942,PERSONAL PAYMENTS,Adult Social Care - Other Transfer Pay,Bi-Borough Director of Integrated Care,6343.36
14/12/2023,1314455,PERSONAL PAYMENTS,Adult Social Care - Other Transfer Pay,Bi-Borough Director of Integrated Care,1714.16
14/12/2023,1254540,PERSONAL PAYMENTS,Adult Social Care - Other Transfer Pay,Bi-Borough Director of Integrated Care,939.92
14/12/2023,1246066,PERSONAL PAYMENTS,Adult Social Care - Other Transfer Pay,Bi-Borough Director of Integrated Care,534.44
14/12/2023,1246066,PERSONAL PAYMENTS,Adult Social Care - Other Transfer Pay,Bi-Borough Director of Integrated Care,2690.16
14/12/2023,1246066,PERSONAL PAYMENTS,Adult Social Care - Other Transfer Pay,Bi-Borough Director of Integrated Care,1688.6
14/12/2023,1246066,PERSONAL PAYMENTS,Adult Social Care - Other Transfer Pay,Bi-Borough Director of Integrated Care,733.8
14/12/2023,1291747,PERSONAL PAYMENTS,Adult Social Care - Other Transfer Pay,Bi-Borough Director of Integrated Care,2041.76
14/12/2023,1291747,PERSONAL PAYMENTS,Adult Social Care - Other Transfer Pay,Bi-Borough Director of Integrated Care,1278.6
14/12/2023,1291747,PERSONAL PAYMENTS,Adult Social Care - Other Transfer Pay,Bi-Borough Director of Integrated Care,2599.32
14/12/2023,1250536,PERSONAL PAYMENTS,Adult Social Care - Other Transfer Pay,Bi-Borough Director of Integrated Care,678.64
14/12/2023,1248354,PERSONAL PAYMENTS,Adult Social Care - Other Transfer Pay,Bi-Borough Director of Integrated Care,2899.36
14/12/2023,1269674,PERSONAL PAYMENTS,Adult Social Care - Other Transfer Pay,Bi-Borough Director of Integrated Care,999.28
14/12/2023,1250215,PERSONAL PAYMENTS,Adult Social Care - Other Transfer Pay,Bi-Borough Director of Integrated Care,1486.44
14/12/2023,1246066,PERSONAL PAYMENTS,Adult Social Care - Other Transfer Pay,Bi-Borough Director of Integrated Care,5914.56
14/12/2023,1246066,PERSONAL PAYMENTS,Adult Social Care - Other Transfer Pay,Bi-Borough Director of Integrated Care,5754.04
14/12/2023,1291747,PERSONAL PAYMENTS,Adult Social Care - Other Transfer Pay,Bi-Borough Director of Integrated Care,1480.36
14/12/2023,1250037,PERSONAL PAYMENTS,Adult Social Care - Other Transfer Pay,Bi-Borough Director of Integrated Care,2727.68
14/12/2023,1246066,PERSONAL PAYMENTS,Adult Social Care - Other Transfer Pay,Bi-Borough Director of Integrated Care,590.8
14/12/2023,1291747,PERSONAL PAYMENTS,Adult Social Care - Other Transfer Pay,Bi-Borough Director of Integrated Care,1531.32
14/12/2023,1291747,PERSONAL PAYMENTS,Adult Social Care - Other Transfer Pay,Bi-Borough Director of Integrated Care,4521
14/12/2023,1291747,PERSONAL PAYMENTS,Adult Social Care - Other Transfer Pay,Bi-Borough Director of Integrated Care,4125.92
14/12/2023,1291747,PERSONAL PAYMENTS,Adult Social Care - Other Transfer Pay,Bi-Borough Director of Integrated Care,3892.72
14/12/2023,1291747,PERSONAL PAYMENTS,Adult Social Care - Other Transfer Pay,Bi-Borough Director of Integrated Care,2043.8
14/12/2023,1248010,PERSONAL PAYMENTS,Adult Social Care - Other Transfer Pay,Bi-Borough Director of Integrated Care,646.16
14/12/2023,1248148,PERSONAL PAYMENTS,Adult Social Care - Other Transfer Pay,Bi-Borough Director of Integrated Care,1638.96
14/12/2023,1248154,PERSONAL PAYMENTS,Adult Social Care - Other Transfer Pay,Bi-Borough Director of Integrated Care,2088.4
14/12/2023,1250074,PERSONAL PAYMENTS,Adult Social Care - Other Transfer Pay,Bi-Borough Director of Integrated Care,6904.8
14/12/2023,1249876,PERSONAL PAYMENTS,Adult Social Care - Other Transfer Pay,Bi-Borough Director of Integrated Care,648.92
14/12/2023,1257487,PERSONAL PAYMENTS,Adult Social Care - Other Transfer Pay,Bi-Borough Director of Integrated Care,550
14/12/2023,1311623,PERSONAL PAYMENTS,Adult Social Care - Other Transfer Pay,Bi-Borough Director of Integrated Care,1033
14/12/2023,1246066,PERSONAL PAYMENTS,Adult Social Care - Other Transfer Pay,Bi-Borough Director of Integrated Care,1289.4
14/12/2023,1246066,PERSONAL PAYMENTS,Adult Social Care - Other Transfer Pay,Bi-Borough Director of Integrated Care,3384.68
14/12/2023,1291747,PERSONAL PAYMENTS,Adult Social Care - Other Transfer Pay,Bi-Borough Director of Integrated Care,3008.2
14/12/2023,1291747,PERSONAL PAYMENTS,Adult Social Care - Other Transfer Pay,Bi-Borough Director of Integrated Care,1252.72
14/12/2023,1247804,PERSONAL PAYMENTS,Adult Social Care - Other Transfer Pay,Bi-Borough Director of Integrated Care,1474.2
14/12/2023,1250670,PERSONAL PAYMENTS,Adult Social Care - Other Transfer Pay,Bi-Borough Director of Integrated Care,1571.52
14/12/2023,1250044,PERSONAL PAYMENTS,Adult Social Care - Other Transfer Pay,Bi-Borough Director of Integrated Care,724.04
14/12/2023,1250012,PERSONAL PAYMENTS,Adult Social Care - Other Transfer Pay,Bi-Borough Director of Integrated Care,838.6
14/12/2023,1250138,PERSONAL PAYMENTS,Adult Social Care - Other Transfer Pay,Bi-Borough Director of Integrated Care,916
14/12/2023,1246066,PERSONAL PAYMENTS,Adult Social Care - Other Transfer Pay,Bi-Borough Director of Integrated Care,843.96
19/12/2023,1250627,PERSONAL PAYMENTS,Adult Social Care - Other Transfer Pay,Bi-Borough Director of Integrated Care,1806
19/12/2023,1246066,PERSONAL PAYMENTS,Adult Social Care - Other Transfer Pay,Bi-Borough Director of Integrated Care,5353.87
19/12/2023,1291747,PERSONAL PAYMENTS,Adult Social Care - Other Transfer Pay,Bi-Borough Director of Integrated Care,12568.44
19/12/2023,1249942,PERSONAL PAYMENTS,Adult Social Care - Other Transfer Pay,Bi-Borough Director of Integrated Care,4347.92
12/10/2023,1258049,PSS (UK),,Bi-Borough Director of Integrated Care,2694.21
08/11/2023,1258049,PSS (UK),,Bi-Borough Director of Integrated Care,2794
06/12/2023,1258049,PSS (UK),,Bi-Borough Director of Integrated Care,2794
21/12/2023,1258049,PSS (UK),,Bi-Borough Director of Integrated Care,2794
12/10/2023,1245021,Paradise Community,,Bi-Borough Director of Integrated Care,10745.73
08/11/2023,1245021,Paradise Community,,Bi-Borough Director of Integrated Care,11143.72
06/12/2023,1245021,Paradise Community,,Bi-Borough Director of Integrated Care,11143.72
21/12/2023,1245021,Paradise Community,,Bi-Borough Director of Integrated Care,11143.72
12/10/2023,1292143,Pathway for Care Ltd T/a Transformi,,Bi-Borough Director of Integrated Care,10563.4
08/11/2023,1292143,Pathway for Care Ltd T/a Transformi,,Bi-Borough Director of Integrated Care,10954.64
06/12/2023,1292143,Pathway for Care Ltd T/a Transformi,,Bi-Borough Director of Integrated Care,10954.64
21/12/2023,1292143,Pathway for Care Ltd T/a Transformi,,Bi-Borough Director of Integrated Care,10954.64
12/10/2023,1250448,PERSONAL PAYMENTS,,Bi-Borough Director of Integrated Care,1368.55
08/11/2023,1250448,PERSONAL PAYMENTS,,Bi-Borough Director of Integrated Care,1419.24
06/12/2023,1250448,PERSONAL PAYMENTS,,Bi-Borough Director of Integrated Care,1419.24
21/12/2023,1250448,PERSONAL PAYMENTS,,Bi-Borough Director of Integrated Care,1419.24
12/10/2023,1245163,Poor Servants of the mother of,,Bi-Borough Director of Integrated Care,3664.29
08/11/2023,1245163,Poor Servants of the mother of,,Bi-Borough Director of Integrated Care,3800
06/12/2023,1245163,Poor Servants of the mother of,,Bi-Borough Director of Integrated Care,3800
21/12/2023,1245163,Poor Servants of the mother of,,Bi-Borough Director of Integrated Care,3800
12/10/2023,1245166,Precious Homes Support Ltd,,Bi-Borough Director of Integrated Care,1795.5
12/10/2023,1245166,Precious Homes Support Ltd,,Bi-Borough Director of Integrated Care,2693.25
08/11/2023,1245166,Precious Homes Support Ltd,,Bi-Borough Director of Integrated Care,2793
06/12/2023,1245166,Precious Homes Support Ltd,,Bi-Borough Director of Integrated Care,2793
21/12/2023,1245166,Precious Homes Support Ltd,,Bi-Borough Director of Integrated Care,2793
16/11/2023,1291747,PERSONAL PAYMENTS,B*Junior group rec activities,Bi-Borough Director of Integrated Care,679.64
13/10/2023,1248563,Pursuing Independent Paths,B*Voluntary-Spot-V Dep-Enhanced - do not u,Bi-Borough Director of Integrated Care,1531.32
13/10/2023,1248563,Pursuing Independent Paths,B*Voluntary-Spot-V Dep-Enhanced - do not u,Bi-Borough Director of Integrated Care,1276.1
13/10/2023,1248563,Pursuing Independent Paths,B*Voluntary-Spot-V Dep-Enhanced - do not u,Bi-Borough Director of Integrated Care,1531.32
13/10/2023,1248563,Pursuing Independent Paths,B*Voluntary-Spot-V Dep-Enhanced - do not u,Bi-Borough Director of Integrated Care,1786.54
13/10/2023,1248563,Pursuing Independent Paths,B*Voluntary-Spot-V Dep-Enhanced - do not u,Bi-Borough Director of Integrated Care,1289.32
13/10/2023,1248563,Pursuing Independent Paths,B*Voluntary-Spot-V Dep-Enhanced - do not u,Bi-Borough Director of Integrated Care,510.44
13/10/2023,1248563,Pursuing Independent Paths,B*Voluntary-Spot-V Dep-Enhanced - do not u,Bi-Borough Director of Integrated Care,1020.88
13/10/2023,1248563,Pursuing Independent Paths,B*Voluntary-Spot-V Dep-Enhanced - do not u,Bi-Borough Director of Integrated Care,1020.88
13/10/2023,1248563,Pursuing Independent Paths,B*Voluntary-Spot-V Dep-Enhanced - do not u,Bi-Borough Director of Integrated Care,1531.32
13/10/2023,1248563,Pursuing Independent Paths,B*Voluntary-Spot-V Dep-Enhanced - do not u,Bi-Borough Director of Integrated Care,1531.32
13/10/2023,1248563,Pursuing Independent Paths,B*Voluntary-Spot-V Dep-Enhanced - do not u,Bi-Borough Director of Integrated Care,1531.32
13/10/2023,1248563,Pursuing Independent Paths,B*Voluntary-Spot-V Dep-Enhanced - do not u,Bi-Borough Director of Integrated Care,1531.32
13/10/2023,1248563,Pursuing Independent Paths,B*Voluntary-Spot-V Dep-Enhanced - do not u,Bi-Borough Director of Integrated Care,1276.1
13/10/2023,1248563,Pursuing Independent Paths,B*Voluntary-Spot-V Dep-Enhanced - do not u,Bi-Borough Director of Integrated Care,2552.2
13/10/2023,1248563,Pursuing Independent Paths,B*Voluntary-Spot-V Dep-Enhanced - do not u,Bi-Borough Director of Integrated Care,1531.32
13/10/2023,1248563,Pursuing Independent Paths,B*Voluntary-Spot-V Dep-Enhanced - do not u,Bi-Borough Director of Integrated Care,1531.32
13/10/2023,1248563,Pursuing Independent Paths,B*Voluntary-Spot-V Dep-Enhanced - do not u,Bi-Borough Director of Integrated Care,1531.32
13/10/2023,1248563,Pursuing Independent Paths,B*Voluntary-Spot-V Dep-Enhanced - do not u,Bi-Borough Director of Integrated Care,1276.1
13/10/2023,1248563,Pursuing Independent Paths,B*Voluntary-Spot-V Dep-Enhanced - do not u,Bi-Borough Director of Integrated Care,1252.72
13/10/2023,1248563,Pursuing Independent Paths,B*Voluntary-Spot-V Dep-Enhanced - do not u,Bi-Borough Director of Integrated Care,510.44
13/10/2023,1248563,Pursuing Independent Paths,B*Voluntary-Spot-V Dep-Enhanced - do not u,Bi-Borough Director of Integrated Care,1879.08
13/10/2023,1248563,Pursuing Independent Paths,B*Voluntary-Spot-V Dep-Enhanced - do not u,Bi-Borough Director of Integrated Care,1531.32
13/10/2023,1248563,Pursuing Independent Paths,B*Voluntary-Spot-V Dep-Enhanced - do not u,Bi-Borough Director of Integrated Care,510.44
13/10/2023,1248563,Pursuing Independent Paths,B*Voluntary-Spot-V Dep-Enhanced - do not u,Bi-Borough Director of Integrated Care,1020.88
13/10/2023,1248563,Pursuing Independent Paths,B*Voluntary-Spot-V Dep-Enhanced - do not u,Bi-Borough Director of Integrated Care,583.36
13/10/2023,1248563,Pursuing Independent Paths,B*Voluntary-Spot-V Dep-Enhanced - do not u,Bi-Borough Director of Integrated Care,510.44
13/10/2023,1248563,Pursuing Independent Paths,B*Voluntary-Spot-V Dep-Enhanced - do not u,Bi-Borough Director of Integrated Care,1531.32
13/10/2023,1248563,Pursuing Independent Paths,B*Voluntary-Spot-V Dep-Enhanced - do not u,Bi-Borough Director of Integrated Care,1020.88
13/10/2023,1248563,Pursuing Independent Paths,B*Voluntary-Spot-V Dep-Enhanced - do not u,Bi-Borough Director of Integrated Care,1020.88
13/10/2023,1248563,Pursuing Independent Paths,B*Voluntary-Spot-V Dep-Enhanced - do not u,Bi-Borough Director of Integrated Care,1531.32
13/10/2023,1248563,Pursuing Independent Paths,B*Voluntary-Spot-V Dep-Enhanced - do not u,Bi-Borough Director of Integrated Care,510.44
13/10/2023,1248563,Pursuing Independent Paths,B*Voluntary-Spot-V Dep-Enhanced - do not u,Bi-Borough Director of Integrated Care,1531.32
13/10/2023,1248563,Pursuing Independent Paths,B*Voluntary-Spot-V Dep-Enhanced - do not u,Bi-Borough Director of Integrated Care,1020.88
13/10/2023,1248563,Pursuing Independent Paths,B*Voluntary-Spot-V Dep-Enhanced - do not u,Bi-Borough Director of Integrated Care,1020.88
13/10/2023,1248563,Pursuing Independent Paths,B*Voluntary-Spot-V Dep-Enhanced - do not u,Bi-Borough Director of Integrated Care,2041.76
13/10/2023,1248563,Pursuing Independent Paths,B*Voluntary-Spot-V Dep-Enhanced - do not u,Bi-Borough Director of Integrated Care,1531.32
13/10/2023,1248563,Pursuing Independent Paths,B*Voluntary-Spot-V Dep-Enhanced - do not u,Bi-Borough Director of Integrated Care,1531.32
13/10/2023,1248563,Pursuing Independent Paths,B*Voluntary-Spot-V Dep-Enhanced - do not u,Bi-Borough Director of Integrated Care,1531.32
22/11/2023,1248563,Pursuing Independent Paths,B*Voluntary-Spot-V Dep-Enhanced - do not u,Bi-Borough Director of Integrated Care,1531.32
22/11/2023,1248563,Pursuing Independent Paths,B*Voluntary-Spot-V Dep-Enhanced - do not u,Bi-Borough Director of Integrated Care,1276.1
22/11/2023,1248563,Pursuing Independent Paths,B*Voluntary-Spot-V Dep-Enhanced - do not u,Bi-Borough Director of Integrated Care,1531.32
22/11/2023,1248563,Pursuing Independent Paths,B*Voluntary-Spot-V Dep-Enhanced - do not u,Bi-Borough Director of Integrated Care,1786.54
22/11/2023,1248563,Pursuing Independent Paths,B*Voluntary-Spot-V Dep-Enhanced - do not u,Bi-Borough Director of Integrated Care,1289.32
22/11/2023,1248563,Pursuing Independent Paths,B*Voluntary-Spot-V Dep-Enhanced - do not u,Bi-Borough Director of Integrated Care,510.44
22/11/2023,1248563,Pursuing Independent Paths,B*Voluntary-Spot-V Dep-Enhanced - do not u,Bi-Borough Director of Integrated Care,1020.88
22/11/2023,1248563,Pursuing Independent Paths,B*Voluntary-Spot-V Dep-Enhanced - do not u,Bi-Borough Director of Integrated Care,1020.88
22/11/2023,1248563,Pursuing Independent Paths,B*Voluntary-Spot-V Dep-Enhanced - do not u,Bi-Borough Director of Integrated Care,1531.32
22/11/2023,1248563,Pursuing Independent Paths,B*Voluntary-Spot-V Dep-Enhanced - do not u,Bi-Borough Director of Integrated Care,1531.32
22/11/2023,1248563,Pursuing Independent Paths,B*Voluntary-Spot-V Dep-Enhanced - do not u,Bi-Borough Director of Integrated Care,1531.32
22/11/2023,1248563,Pursuing Independent Paths,B*Voluntary-Spot-V Dep-Enhanced - do not u,Bi-Borough Director of Integrated Care,1531.32
22/11/2023,1248563,Pursuing Independent Paths,B*Voluntary-Spot-V Dep-Enhanced - do not u,Bi-Borough Director of Integrated Care,1276.1
22/11/2023,1248563,Pursuing Independent Paths,B*Voluntary-Spot-V Dep-Enhanced - do not u,Bi-Borough Director of Integrated Care,2552.2
22/11/2023,1248563,Pursuing Independent Paths,B*Voluntary-Spot-V Dep-Enhanced - do not u,Bi-Borough Director of Integrated Care,1531.32
22/11/2023,1248563,Pursuing Independent Paths,B*Voluntary-Spot-V Dep-Enhanced - do not u,Bi-Borough Director of Integrated Care,1531.32
22/11/2023,1248563,Pursuing Independent Paths,B*Voluntary-Spot-V Dep-Enhanced - do not u,Bi-Borough Director of Integrated Care,1531.32
22/11/2023,1248563,Pursuing Independent Paths,B*Voluntary-Spot-V Dep-Enhanced - do not u,Bi-Borough Director of Integrated Care,1276.1
22/11/2023,1248563,Pursuing Independent Paths,B*Voluntary-Spot-V Dep-Enhanced - do not u,Bi-Borough Director of Integrated Care,1252.72
22/11/2023,1248563,Pursuing Independent Paths,B*Voluntary-Spot-V Dep-Enhanced - do not u,Bi-Borough Director of Integrated Care,510.44
22/11/2023,1248563,Pursuing Independent Paths,B*Voluntary-Spot-V Dep-Enhanced - do not u,Bi-Borough Director of Integrated Care,1879.08
22/11/2023,1248563,Pursuing Independent Paths,B*Voluntary-Spot-V Dep-Enhanced - do not u,Bi-Borough Director of Integrated Care,1531.32
22/11/2023,1248563,Pursuing Independent Paths,B*Voluntary-Spot-V Dep-Enhanced - do not u,Bi-Borough Director of Integrated Care,510.44
22/11/2023,1248563,Pursuing Independent Paths,B*Voluntary-Spot-V Dep-Enhanced - do not u,Bi-Borough Director of Integrated Care,1020.88
22/11/2023,1248563,Pursuing Independent Paths,B*Voluntary-Spot-V Dep-Enhanced - do not u,Bi-Borough Director of Integrated Care,583.36
22/11/2023,1248563,Pursuing Independent Paths,B*Voluntary-Spot-V Dep-Enhanced - do not u,Bi-Borough Director of Integrated Care,510.44
22/11/2023,1248563,Pursuing Independent Paths,B*Voluntary-Spot-V Dep-Enhanced - do not u,Bi-Borough Director of Integrated Care,1531.32
22/11/2023,1248563,Pursuing Independent Paths,B*Voluntary-Spot-V Dep-Enhanced - do not u,Bi-Borough Director of Integrated Care,1020.88
22/11/2023,1248563,Pursuing Independent Paths,B*Voluntary-Spot-V Dep-Enhanced - do not u,Bi-Borough Director of Integrated Care,1020.88
22/11/2023,1248563,Pursuing Independent Paths,B*Voluntary-Spot-V Dep-Enhanced - do not u,Bi-Borough Director of Integrated Care,1531.32
22/11/2023,1248563,Pursuing Independent Paths,B*Voluntary-Spot-V Dep-Enhanced - do not u,Bi-Borough Director of Integrated Care,510.44
22/11/2023,1248563,Pursuing Independent Paths,B*Voluntary-Spot-V Dep-Enhanced - do not u,Bi-Borough Director of Integrated Care,1531.32
22/11/2023,1248563,Pursuing Independent Paths,B*Voluntary-Spot-V Dep-Enhanced - do not u,Bi-Borough Director of Integrated Care,510.44
22/11/2023,1248563,Pursuing Independent Paths,B*Voluntary-Spot-V Dep-Enhanced - do not u,Bi-Borough Director of Integrated Care,1020.88
22/11/2023,1248563,Pursuing Independent Paths,B*Voluntary-Spot-V Dep-Enhanced - do not u,Bi-Borough Director of Integrated Care,2041.76
22/11/2023,1248563,Pursuing Independent Paths,B*Voluntary-Spot-V Dep-Enhanced - do not u,Bi-Borough Director of Integrated Care,1531.32
22/11/2023,1248563,Pursuing Independent Paths,B*Voluntary-Spot-V Dep-Enhanced - do not u,Bi-Borough Director of Integrated Care,1531.32
22/11/2023,1248563,Pursuing Independent Paths,B*Voluntary-Spot-V Dep-Enhanced - do not u,Bi-Borough Director of Integrated Care,1531.32
12/10/2023,1245169,Rcp Residential Care Providers Ltd,,Bi-Borough Director of Integrated Care,7803.42
08/11/2023,1245169,Rcp Residential Care Providers Ltd,,Bi-Borough Director of Integrated Care,8092.44
06/12/2023,1245169,Rcp Residential Care Providers Ltd,,Bi-Borough Director of Integrated Care,8092.44
21/12/2023,1245169,Rcp Residential Care Providers Ltd,,Bi-Borough Director of Integrated Care,8092.44
12/10/2023,1269718,Reliant Care Limited,,Bi-Borough Director of Integrated Care,3579.43
12/10/2023,1269718,Reliant Care Limited,,Bi-Borough Director of Integrated Care,2518.86
12/10/2023,1269718,Reliant Care Limited,,Bi-Borough Director of Integrated Care,8451
08/11/2023,1269718,Reliant Care Limited,,Bi-Borough Director of Integrated Care,3712
08/11/2023,1269718,Reliant Care Limited,,Bi-Borough Director of Integrated Care,8764
06/12/2023,1269718,Reliant Care Limited,,Bi-Borough Director of Integrated Care,3712
06/12/2023,1269718,Reliant Care Limited,,Bi-Borough Director of Integrated Care,8764
21/12/2023,1269718,Reliant Care Limited,,Bi-Borough Director of Integrated Care,3712
21/12/2023,1269718,Reliant Care Limited,,Bi-Borough Director of Integrated Care,8764
06/10/2023,1298287,Residential Care Services Ltd,B*Voluntary-Spot-V Dep-Enhanced - do not u,Bi-Borough Director of Integrated Care,1653.84
03/11/2023,1298287,Residential Care Services Ltd,B*Voluntary-Spot-V Dep-Enhanced - do not u,Bi-Borough Director of Integrated Care,1653.84
12/12/2023,1298287,Residential Care Services Ltd,B*Voluntary-Spot-V Dep-Enhanced - do not u,Bi-Borough Director of Integrated Care,1653.84
30/10/2023,1245316,Respect Care Services Ltd,,Bi-Borough Director of Integrated Care,768.4
22/11/2023,1245316,Respect Care Services Ltd,,Bi-Borough Director of Integrated Care,1075.76
01/12/2023,1245316,Respect Care Services Ltd,,Bi-Borough Director of Integrated Care,1075.76
06/12/2023,1245316,Respect Care Services Ltd,,Bi-Borough Director of Integrated Care,1075.76
28/12/2023,1245316,Respect Care Services Ltd,,Bi-Borough Director of Integrated Care,1075.76
01/10/2023,1243775,Royal Borough of Kensington &,Rent,Bi-Borough Director of Integrated Care,2929.21
13/10/2023,1248843,Sage Care Ltd,,Bi-Borough Director of Integrated Care,636.4
13/10/2023,1248843,Sage Care Ltd,,Bi-Borough Director of Integrated Care,636.4
13/10/2023,1248843,Sage Care Ltd,,Bi-Borough Director of Integrated Care,646.91
13/10/2023,1248843,Sage Care Ltd,,Bi-Borough Director of Integrated Care,1772.09
13/10/2023,1248843,Sage Care Ltd,,Bi-Borough Director of Integrated Care,593.88
30/11/2023,1248843,Sage Care Ltd,,Bi-Borough Director of Integrated Care,568.07
30/11/2023,1248843,Sage Care Ltd,,Bi-Borough Director of Integrated Care,604.58
30/11/2023,1248843,Sage Care Ltd,,Bi-Borough Director of Integrated Care,630.74
30/11/2023,1248843,Sage Care Ltd,,Bi-Borough Director of Integrated Care,1440.91
12/10/2023,1262057,Sense - The National Deafbllind,,Bi-Borough Director of Integrated Care,3303.63
12/10/2023,1262057,Sense - The National Deafbllind,,Bi-Borough Director of Integrated Care,4694.64
08/11/2023,1262057,Sense - The National Deafbllind,,Bi-Borough Director of Integrated Care,4868.52
06/12/2023,1262057,Sense - The National Deafbllind,,Bi-Borough Director of Integrated Care,4868.52
21/12/2023,1262057,Sense - The National Deafbllind,,Bi-Borough Director of Integrated Care,4868.52
12/10/2023,1245566,Shaw Care Uk Ltd,,Bi-Borough Director of Integrated Care,5006.22
12/10/2023,1245566,Shaw Care Uk Ltd,,Bi-Borough Director of Integrated Care,3337.48
08/11/2023,1245566,Shaw Care Uk Ltd,,Bi-Borough Director of Integrated Care,5191.64
06/12/2023,1245566,Shaw Care Uk Ltd,,Bi-Borough Director of Integrated Care,5191.64
21/12/2023,1245566,Shaw Care Uk Ltd,,Bi-Borough Director of Integrated Care,5191.64
12/10/2023,1286751,Shine Partnerships Limited,,Bi-Borough Director of Integrated Care,1639.29
12/10/2023,1286751,Shine Partnerships Limited,,Bi-Borough Director of Integrated Care,2972.2
08/11/2023,1286751,Shine Partnerships Limited,,Bi-Borough Director of Integrated Care,3082.28
08/11/2023,1286751,Shine Partnerships Limited,,Bi-Borough Director of Integrated Care,607.14
06/12/2023,1286751,Shine Partnerships Limited,,Bi-Borough Director of Integrated Care,2278.16
21/12/2023,1286751,Shine Partnerships Limited,,Bi-Borough Director of Integrated Care,2400
02/10/2023,1302889,Solitions Social Care,B*Voluntary-Spot-V Dep-Enhanced - do not u,Bi-Borough Director of Integrated Care,6187
03/11/2023,1302889,Solitions Social Care,B*Voluntary-Spot-V Dep-Enhanced - do not u,Bi-Borough Director of Integrated Care,6187
19/12/2023,1302889,Solitions Social Care,B*Voluntary-Spot-V Dep-Enhanced - do not u,Bi-Borough Director of Integrated Care,6187
02/10/2023,1294228,Solutions Logistics Ltd,B*Voluntary-Spot-V Dep-Enhanced - do not u,Bi-Borough Director of Integrated Care,1575
03/11/2023,1294228,Solutions Logistics Ltd,B*Voluntary-Spot-V Dep-Enhanced - do not u,Bi-Borough Director of Integrated Care,1650
12/12/2023,1294228,Solutions Logistics Ltd,B*Voluntary-Spot-V Dep-Enhanced - do not u,Bi-Borough Director of Integrated Care,1650
12/10/2023,1248935,Southside Partnership,,Bi-Borough Director of Integrated Care,2455.73
12/10/2023,1248935,Southside Partnership,,Bi-Borough Director of Integrated Care,771.43
12/10/2023,1248935,Southside Partnership,,Bi-Borough Director of Integrated Care,771.43
12/10/2023,1248935,Southside Partnership,,Bi-Borough Director of Integrated Care,3464.49
08/11/2023,1248935,Southside Partnership,,Bi-Borough Director of Integrated Care,800
08/11/2023,1248935,Southside Partnership,,Bi-Borough Director of Integrated Care,3592.8
08/11/2023,1248935,Southside Partnership,,Bi-Borough Director of Integrated Care,2546.68
08/11/2023,1248935,Southside Partnership,,Bi-Borough Director of Integrated Care,800
06/12/2023,1248935,Southside Partnership,,Bi-Borough Director of Integrated Care,2546.68
06/12/2023,1248935,Southside Partnership,,Bi-Borough Director of Integrated Care,800
06/12/2023,1248935,Southside Partnership,,Bi-Borough Director of Integrated Care,3592.8
06/12/2023,1248935,Southside Partnership,,Bi-Borough Director of Integrated Care,800
21/12/2023,1248935,Southside Partnership,,Bi-Borough Director of Integrated Care,2546.68
21/12/2023,1248935,Southside Partnership,,Bi-Borough Director of Integrated Care,800
21/12/2023,1248935,Southside Partnership,,Bi-Borough Director of Integrated Care,3592.8
21/12/2023,1248935,Southside Partnership,,Bi-Borough Director of Integrated Care,800
04/10/2023,1248940,Special People,B*Voluntary-Spot-V Dep-Enhanced - do not u,Bi-Borough Director of Integrated Care,564
04/10/2023,1248940,Special People,B*Voluntary-Spot-V Dep-Enhanced - do not u,Bi-Borough Director of Integrated Care,2454
04/10/2023,1248940,Special People,B*Voluntary-Spot-V Dep-Enhanced - do not u,Bi-Borough Director of Integrated Care,756
30/10/2023,1248940,Special People,B*Voluntary-Spot-V Dep-Enhanced - do not u,Bi-Borough Director of Integrated Care,1356
08/11/2023,1248940,Special People,B*Voluntary-Spot-V Dep-Enhanced - do not u,Bi-Borough Director of Integrated Care,5378
12/10/2023,1245620,Spencer & Arlington,,Bi-Borough Director of Integrated Care,9354.19
12/10/2023,1245620,Spencer & Arlington,,Bi-Borough Director of Integrated Care,6582.58
08/11/2023,1245620,Spencer & Arlington,,Bi-Borough Director of Integrated Care,9700.64
06/12/2023,1245620,Spencer & Arlington,,Bi-Borough Director of Integrated Care,9700.64
21/12/2023,1245620,Spencer & Arlington,,Bi-Borough Director of Integrated Care,9700.64
12/10/2023,1243543,Springlake Care Home Ltd,,Bi-Borough Director of Integrated Care,5207.14
12/10/2023,1243543,Springlake Care Home Ltd,,Bi-Borough Director of Integrated Care,6557.14
12/10/2023,1243543,Springlake Care Home Ltd,,Bi-Borough Director of Integrated Care,5785.71
08/11/2023,1243543,Springlake Care Home Ltd,,Bi-Borough Director of Integrated Care,6000
08/11/2023,1243543,Springlake Care Home Ltd,,Bi-Borough Director of Integrated Care,5400
08/11/2023,1243543,Springlake Care Home Ltd,,Bi-Borough Director of Integrated Care,6800
06/12/2023,1243543,Springlake Care Home Ltd,,Bi-Borough Director of Integrated Care,5400
06/12/2023,1243543,Springlake Care Home Ltd,,Bi-Borough Director of Integrated Care,6800
06/12/2023,1243543,Springlake Care Home Ltd,,Bi-Borough Director of Integrated Care,6000
21/12/2023,1243543,Springlake Care Home Ltd,,Bi-Borough Director of Integrated Care,6000
21/12/2023,1243543,Springlake Care Home Ltd,,Bi-Borough Director of Integrated Care,5400
21/12/2023,1243543,Springlake Care Home Ltd,,Bi-Borough Director of Integrated Care,6800
12/10/2023,1248948,St Davids Care In The Community,,Bi-Borough Director of Integrated Care,3020.68
12/10/2023,1248948,St Davids Care In The Community,,Bi-Borough Director of Integrated Care,3317.14
08/11/2023,1248948,St Davids Care In The Community,,Bi-Borough Director of Integrated Care,3132.56
08/11/2023,1248948,St Davids Care In The Community,,Bi-Borough Director of Integrated Care,3440
06/12/2023,1248948,St Davids Care In The Community,,Bi-Borough Director of Integrated Care,12930.81
06/12/2023,1248948,St Davids Care In The Community,,Bi-Borough Director of Integrated Care,10548.15
21/12/2023,1248948,St Davids Care In The Community,,Bi-Borough Director of Integrated Care,4252.36
21/12/2023,1248948,St Davids Care In The Community,,Bi-Borough Director of Integrated Care,4252.36
21/10/2023,1245182,Supporting Care Ltd,,Bi-Borough Director of Integrated Care,998.92
09/11/2023,1245182,Supporting Care Ltd,,Bi-Borough Director of Integrated Care,998.92
12/12/2023,1245182,Supporting Care Ltd,,Bi-Borough Director of Integrated Care,998.92
17/10/2023,1260994,SureCare Chelsea & Fulham,B*Voluntary-Spot-V Dep-Enhanced - do not u,Bi-Borough Director of Integrated Care,1620
30/10/2023,1260994,SureCare Chelsea & Fulham,B*Voluntary-Spot-V Dep-Enhanced - do not u,Bi-Borough Director of Integrated Care,540
12/12/2023,1260994,SureCare Chelsea & Fulham,B*Voluntary-Spot-V Dep-Enhanced - do not u,Bi-Borough Director of Integrated Care,1800
30/10/2023,1307154,Surrey Choices Ltd,B*Voluntary-Spot-V Dep-Enhanced - do not u,Bi-Borough Director of Integrated Care,1323
12/12/2023,1307154,Surrey Choices Ltd,B*Voluntary-Spot-V Dep-Enhanced - do not u,Bi-Borough Director of Integrated Care,1323
12/12/2023,1307154,Surrey Choices Ltd,B*Voluntary-Spot-V Dep-Enhanced - do not u,Bi-Borough Director of Integrated Care,756
03/10/2023,1245825,Sweet Tree Home Care Services,,Bi-Borough Director of Integrated Care,5547.17
01/11/2023,1245825,Sweet Tree Home Care Services,,Bi-Borough Director of Integrated Care,5565.64
05/12/2023,1245825,Sweet Tree Home Care Services,,Bi-Borough Director of Integrated Care,5559.02
12/10/2023,1305461,The Frances Taylor Foundation,,Bi-Borough Director of Integrated Care,3762.26
08/11/2023,1305461,The Frances Taylor Foundation,,Bi-Borough Director of Integrated Care,3901.6
06/12/2023,1305461,The Frances Taylor Foundation,,Bi-Borough Director of Integrated Care,3901.6
21/12/2023,1305461,The Frances Taylor Foundation,,Bi-Borough Director of Integrated Care,3901.6
12/10/2023,1245900,The Grace Eyre Foundation,,Bi-Borough Director of Integrated Care,3172.65
12/10/2023,1245900,The Grace Eyre Foundation,,Bi-Borough Director of Integrated Care,4084.68
08/11/2023,1245900,The Grace Eyre Foundation,,Bi-Borough Director of Integrated Care,3290.16
08/11/2023,1245900,The Grace Eyre Foundation,,Bi-Borough Director of Integrated Care,4235.96
06/12/2023,1245900,The Grace Eyre Foundation,,Bi-Borough Director of Integrated Care,3290.16
06/12/2023,1245900,The Grace Eyre Foundation,,Bi-Borough Director of Integrated Care,4235.96
21/12/2023,1245900,The Grace Eyre Foundation,,Bi-Borough Director of Integrated Care,3290.16
21/12/2023,1245900,The Grace Eyre Foundation,,Bi-Borough Director of Integrated Care,4235.96
12/10/2023,1249156,The Wirral Autistic Society,,Bi-Borough Director of Integrated Care,4915.23
08/11/2023,1249156,The Wirral Autistic Society,,Bi-Borough Director of Integrated Care,8257.73
06/12/2023,1249156,The Wirral Autistic Society,,Bi-Borough Director of Integrated Care,6551.51
21/12/2023,1249156,The Wirral Autistic Society,,Bi-Borough Director of Integrated Care,6392.96
12/10/2023,1246095,Theana Ltd T/a Enlighten Homes,,Bi-Borough Director of Integrated Care,2840.79
12/10/2023,1246095,Theana Ltd T/a Enlighten Homes,,Bi-Borough Director of Integrated Care,1999.08
08/11/2023,1246095,Theana Ltd T/a Enlighten Homes,,Bi-Borough Director of Integrated Care,2946
06/12/2023,1246095,Theana Ltd T/a Enlighten Homes,,Bi-Borough Director of Integrated Care,2946
21/12/2023,1246095,Theana Ltd T/a Enlighten Homes,,Bi-Borough Director of Integrated Care,2946
12/10/2023,1287640,VIVID COMMUNITY CARE LTD,,Bi-Borough Director of Integrated Care,14764.68
08/11/2023,1287640,VIVID COMMUNITY CARE LTD,,Bi-Borough Director of Integrated Care,15311.52
06/12/2023,1287640,VIVID COMMUNITY CARE LTD,,Bi-Borough Director of Integrated Care,15311.52
21/12/2023,1287640,VIVID COMMUNITY CARE LTD,,Bi-Borough Director of Integrated Care,15311.52
19/10/2023,1249232,Vincentian Care Plus,,Bi-Borough Director of Integrated Care,827.19
03/11/2023,1249232,Vincentian Care Plus,,Bi-Borough Director of Integrated Care,827.19
30/11/2023,1249232,Vincentian Care Plus,,Bi-Borough Director of Integrated Care,827.19
12/10/2023,1243552,Vision Homes Association,,Bi-Borough Director of Integrated Care,19902.86
08/11/2023,1243552,Vision Homes Association,,Bi-Borough Director of Integrated Care,9600
06/12/2023,1243552,Vision Homes Association,,Bi-Borough Director of Integrated Care,9600
21/12/2023,1243552,Vision Homes Association,,Bi-Borough Director of Integrated Care,9600
12/10/2023,1243553,Voyage Care (Bridge House),,Bi-Borough Director of Integrated Care,5239.43
12/10/2023,1243553,Voyage Care (Bridge House),,Bi-Borough Director of Integrated Care,21466.3
12/10/2023,1243553,Voyage Care (Bridge House),,Bi-Borough Director of Integrated Care,7121.56
12/10/2023,1243553,Voyage Care (Bridge House),,Bi-Borough Director of Integrated Care,7845.51
08/11/2023,1243553,Voyage Care (Bridge House),,Bi-Borough Director of Integrated Care,10363.04
08/11/2023,1243553,Voyage Care (Bridge House),,Bi-Borough Director of Integrated Care,7385.32
08/11/2023,1243553,Voyage Care (Bridge House),,Bi-Borough Director of Integrated Care,8136.08
08/11/2023,1243553,Voyage Care (Bridge House),,Bi-Borough Director of Integrated Care,5433.48
06/12/2023,1243553,Voyage Care (Bridge House),,Bi-Borough Director of Integrated Care,5433.48
06/12/2023,1243553,Voyage Care (Bridge House),,Bi-Borough Director of Integrated Care,10363.04
06/12/2023,1243553,Voyage Care (Bridge House),,Bi-Borough Director of Integrated Care,7385.32
06/12/2023,1243553,Voyage Care (Bridge House),,Bi-Borough Director of Integrated Care,8136.08
21/12/2023,1243553,Voyage Care (Bridge House),,Bi-Borough Director of Integrated Care,8136.08
21/12/2023,1243553,Voyage Care (Bridge House),,Bi-Borough Director of Integrated Care,5433.48
21/12/2023,1243553,Voyage Care (Bridge House),,Bi-Borough Director of Integrated Care,10363.04
21/12/2023,1243553,Voyage Care (Bridge House),,Bi-Borough Director of Integrated Care,7385.32
12/10/2023,1243554,Voyage Care (Kenton House),,Bi-Borough Director of Integrated Care,6665.37
08/11/2023,1243554,Voyage Care (Kenton House),,Bi-Borough Director of Integrated Care,6912.24
06/12/2023,1243554,Voyage Care (Kenton House),,Bi-Borough Director of Integrated Care,6912.24
21/12/2023,1243554,Voyage Care (Kenton House),,Bi-Borough Director of Integrated Care,6912.24
02/10/2023,1249291,Westminster Society,B*Voluntary-Spot-V Dep-Enhanced - do not u,Bi-Borough Director of Integrated Care,656.4
02/10/2023,1249291,Westminster Society,B*Voluntary-Spot-V Dep-Enhanced - do not u,Bi-Borough Director of Integrated Care,984.6
02/10/2023,1249291,Westminster Society,B*Voluntary-Spot-V Dep-Enhanced - do not u,Bi-Borough Director of Integrated Care,765.8
02/10/2023,1249291,Westminster Society,B*Voluntary-Spot-V Dep-Enhanced - do not u,Bi-Borough Director of Integrated Care,514.18
02/10/2023,1249291,Westminster Society,B*Voluntary-Spot-V Dep-Enhanced - do not u,Bi-Borough Director of Integrated Care,875.2
02/10/2023,1249291,Westminster Society,B*Voluntary-Spot-V Dep-Enhanced - do not u,Bi-Borough Director of Integrated Care,3282
02/10/2023,1249291,Westminster Society,B*Voluntary-Spot-V Dep-Enhanced - do not u,Bi-Borough Director of Integrated Care,2100.48
02/10/2023,1249291,Westminster Society,B*Voluntary-Spot-V Dep-Enhanced - do not u,Bi-Borough Director of Integrated Care,1312.8
02/10/2023,1249291,Westminster Society,B*Voluntary-Spot-V Dep-Enhanced - do not u,Bi-Borough Director of Integrated Care,1094
12/10/2023,1249291,Westminster Society,,Bi-Borough Director of Integrated Care,4726.08
12/10/2023,1249291,Westminster Society,,Bi-Borough Director of Integrated Care,9198.98
12/10/2023,1249291,Westminster Society,,Bi-Borough Director of Integrated Care,1735.56
12/10/2023,1249291,Westminster Society,,Bi-Borough Director of Integrated Care,3122.59
12/10/2023,1249291,Westminster Society,,Bi-Borough Director of Integrated Care,2616.22
12/10/2023,1249291,Westminster Society,,Bi-Borough Director of Integrated Care,2869.41
12/10/2023,1249291,Westminster Society,,Bi-Borough Director of Integrated Care,590.76
12/10/2023,1249291,Westminster Society,,Bi-Borough Director of Integrated Care,1181.52
12/10/2023,1249291,Westminster Society,,Bi-Borough Director of Integrated Care,6688.25
12/10/2023,1249291,Westminster Society,,Bi-Borough Director of Integrated Care,675.15
12/10/2023,1249291,Westminster Society,,Bi-Borough Director of Integrated Care,1181.52
12/10/2023,1249291,Westminster Society,,Bi-Borough Director of Integrated Care,675.15
12/10/2023,1249291,Westminster Society,,Bi-Borough Director of Integrated Care,987.43
12/10/2023,1249291,Westminster Society,,Bi-Borough Director of Integrated Care,2363.04
12/10/2023,1249291,Westminster Society,,Bi-Borough Director of Integrated Care,3080.39
12/10/2023,1249291,Westminster Society,,Bi-Borough Director of Integrated Care,2363.04
12/10/2023,1249291,Westminster Society,,Bi-Borough Director of Integrated Care,770.27
12/10/2023,1249291,Westminster Society,,Bi-Borough Director of Integrated Care,6835.94
12/10/2023,1249291,Westminster Society,,Bi-Borough Director of Integrated Care,987.43
12/10/2023,1249291,Westminster Society,,Bi-Borough Director of Integrated Care,3839.94
12/10/2023,1249291,Westminster Society,,Bi-Borough Director of Integrated Care,2278.65
12/10/2023,1249291,Westminster Society,,Bi-Borough Director of Integrated Care,867.78
12/10/2023,1249291,Westminster Society,,Bi-Borough Director of Integrated Care,3595.2
12/10/2023,1249291,Westminster Society,,Bi-Borough Director of Integrated Care,1181.52
12/10/2023,1249291,Westminster Society,,Bi-Borough Director of Integrated Care,3038.19
12/10/2023,1249291,Westminster Society,,Bi-Borough Director of Integrated Care,3460.17
12/10/2023,1249291,Westminster Society,,Bi-Borough Director of Integrated Care,3839.94
12/10/2023,1249291,Westminster Society,,Bi-Borough Director of Integrated Care,4050.93
12/10/2023,1249291,Westminster Society,,Bi-Borough Director of Integrated Care,4810.47
12/10/2023,1249291,Westminster Society,,Bi-Borough Director of Integrated Care,7578.59
12/10/2023,1249291,Westminster Society,,Bi-Borough Director of Integrated Care,2363.04
12/10/2023,1249291,Westminster Society,,Bi-Borough Director of Integrated Care,2953.8
12/10/2023,1249291,Westminster Society,,Bi-Borough Director of Integrated Care,3206.98
12/10/2023,1249291,Westminster Society,,Bi-Borough Director of Integrated Care,5232.45
12/10/2023,1249291,Westminster Society,,Bi-Borough Director of Integrated Care,5401.23
12/10/2023,1249291,Westminster Society,,Bi-Borough Director of Integrated Care,1223.72
12/10/2023,1249291,Westminster Society,,Bi-Borough Director of Integrated Care,2953.8
12/10/2023,1249291,Westminster Society,,Bi-Borough Director of Integrated Care,7089.12
12/10/2023,1249291,Westminster Society,,Bi-Borough Director of Integrated Care,2363.04
12/10/2023,1249291,Westminster Society,,Bi-Borough Director of Integrated Care,770.27
12/10/2023,1249291,Westminster Society,,Bi-Borough Director of Integrated Care,10194.81
12/10/2023,1249291,Westminster Society,,Bi-Borough Director of Integrated Care,2363.04
12/10/2023,1249291,Westminster Society,,Bi-Borough Director of Integrated Care,770.27
12/10/2023,1249291,Westminster Society,,Bi-Borough Director of Integrated Care,9688.45
12/10/2023,1249291,Westminster Society,,Bi-Borough Director of Integrated Care,9038.64
12/10/2023,1249291,Westminster Society,,Bi-Borough Director of Integrated Care,770.27
12/10/2023,1249291,Westminster Society,,Bi-Borough Director of Integrated Care,2953.8
12/10/2023,1249291,Westminster Society,,Bi-Borough Director of Integrated Care,4304.11
12/10/2023,1249291,Westminster Society,,Bi-Borough Director of Integrated Care,1181.52
12/10/2023,1249291,Westminster Society,,Bi-Borough Director of Integrated Care,759.55
12/10/2023,1249291,Westminster Society,,Bi-Borough Director of Integrated Care,2531.83
12/10/2023,1249291,Westminster Society,,Bi-Borough Director of Integrated Care,1856.67
12/10/2023,1249291,Westminster Society,,Bi-Borough Director of Integrated Care,4734.53
12/10/2023,1249291,Westminster Society,,Bi-Borough Director of Integrated Care,987.43
12/10/2023,1249291,Westminster Society,,Bi-Borough Director of Integrated Care,577.68
12/10/2023,1249291,Westminster Society,,Bi-Borough Director of Integrated Care,2109.86
12/10/2023,1249291,Westminster Society,,Bi-Borough Director of Integrated Care,2363.04
12/10/2023,1249291,Westminster Society,,Bi-Borough Director of Integrated Care,577.68
12/10/2023,1249291,Westminster Society,,Bi-Borough Director of Integrated Care,3249.18
12/10/2023,1249291,Westminster Society,,Bi-Borough Director of Integrated Care,577.68
12/10/2023,1249291,Westminster Society,,Bi-Borough Director of Integrated Care,6498.36
12/10/2023,1249291,Westminster Society,,Bi-Borough Director of Integrated Care,1086.8
12/10/2023,1249291,Westminster Society,,Bi-Borough Director of Integrated Care,1544.4
12/10/2023,1249291,Westminster Society,,Bi-Borough Director of Integrated Care,590.76
12/10/2023,1249291,Westminster Society,,Bi-Borough Director of Integrated Care,2363.04
12/10/2023,1249291,Westminster Society,,Bi-Borough Director of Integrated Care,5612.22
12/10/2023,1249291,Westminster Society,,Bi-Borough Director of Integrated Care,987.43
12/10/2023,1249291,Westminster Society,,Bi-Borough Director of Integrated Care,6878.13
12/10/2023,1249291,Westminster Society,,Bi-Borough Director of Integrated Care,3206.98
12/10/2023,1249291,Westminster Society,,Bi-Borough Director of Integrated Care,4304.11
12/10/2023,1249291,Westminster Society,,Bi-Borough Director of Integrated Care,3375.77
12/10/2023,1249291,Westminster Society,,Bi-Borough Director of Integrated Care,3249.18
12/10/2023,1249291,Westminster Society,,Bi-Borough Director of Integrated Care,577.68
12/10/2023,1249291,Westminster Society,,Bi-Borough Director of Integrated Care,10464.89
12/10/2023,1249291,Westminster Society,,Bi-Borough Director of Integrated Care,1735.56
12/10/2023,1249291,Westminster Society,,Bi-Borough Director of Integrated Care,2363.04
12/10/2023,1249291,Westminster Society,,Bi-Borough Director of Integrated Care,675.15
12/10/2023,1249291,Westminster Society,,Bi-Borough Director of Integrated Care,2616.22
12/10/2023,1249291,Westminster Society,,Bi-Borough Director of Integrated Care,970.53
12/10/2023,1249291,Westminster Society,,Bi-Borough Director of Integrated Care,5342.14
12/10/2023,1249291,Westminster Society,,Bi-Borough Director of Integrated Care,7181.96
12/10/2023,1249291,Westminster Society,,Bi-Borough Director of Integrated Care,987.43
12/10/2023,1249291,Westminster Society,,Bi-Borough Director of Integrated Care,5299.95
12/10/2023,1249291,Westminster Society,,Bi-Borough Director of Integrated Care,987.43
12/10/2023,1249291,Westminster Society,,Bi-Borough Director of Integrated Care,2785.01
12/10/2023,1249291,Westminster Society,,Bi-Borough Director of Integrated Care,2785.01
12/10/2023,1249291,Westminster Society,,Bi-Borough Director of Integrated Care,2447.43
12/10/2023,1249291,Westminster Society,,Bi-Borough Director of Integrated Care,1181.52
12/10/2023,1249291,Westminster Society,,Bi-Borough Director of Integrated Care,6793.74
12/10/2023,1249291,Westminster Society,,Bi-Borough Director of Integrated Care,1476.9
12/10/2023,1249291,Westminster Society,,Bi-Borough Director of Integrated Care,987.43
12/10/2023,1249291,Westminster Society,,Bi-Borough Director of Integrated Care,5316.84
12/10/2023,1249291,Westminster Society,,Bi-Borough Director of Integrated Care,4578.39
12/10/2023,1249291,Westminster Society,,Bi-Borough Director of Integrated Care,770.27
12/10/2023,1249291,Westminster Society,,Bi-Borough Director of Integrated Care,2953.8
12/10/2023,1249291,Westminster Society,,Bi-Borough Director of Integrated Care,8916.25
12/10/2023,1249291,Westminster Society,,Bi-Borough Director of Integrated Care,987.43
12/10/2023,1249291,Westminster Society,,Bi-Borough Director of Integrated Care,4666.99
12/10/2023,1249291,Westminster Society,,Bi-Borough Director of Integrated Care,5907.6
12/10/2023,1249291,Westminster Society,,Bi-Borough Director of Integrated Care,577.68
12/10/2023,1249291,Westminster Society,,Bi-Borough Director of Integrated Care,3206.98
12/10/2023,1249291,Westminster Society,,Bi-Borough Director of Integrated Care,577.68
12/10/2023,1249291,Westminster Society,,Bi-Borough Director of Integrated Care,867.78
12/10/2023,1249291,Westminster Society,,Bi-Borough Director of Integrated Care,4219.71
12/10/2023,1249291,Westminster Society,,Bi-Borough Director of Integrated Care,675.15
12/10/2023,1249291,Westminster Society,,Bi-Borough Director of Integrated Care,4266.6
12/10/2023,1249291,Westminster Society,,Bi-Borough Director of Integrated Care,987.43
12/10/2023,1249291,Westminster Society,,Bi-Borough Director of Integrated Care,10042.92
12/10/2023,1249291,Westminster Society,,Bi-Borough Director of Integrated Care,10127.31
12/10/2023,1249291,Westminster Society,,Bi-Borough Director of Integrated Care,987.43
12/10/2023,1249291,Westminster Society,,Bi-Borough Director of Integrated Care,987.43
12/10/2023,1249291,Westminster Society,,Bi-Borough Director of Integrated Care,7156.62
09/11/2023,1249291,Westminster Society,,Bi-Borough Director of Integrated Care,4901.12
09/11/2023,1249291,Westminster Society,,Bi-Borough Director of Integrated Care,9539.68
09/11/2023,1249291,Westminster Society,,Bi-Borough Director of Integrated Care,1799.84
09/11/2023,1249291,Westminster Society,,Bi-Borough Director of Integrated Care,3238.24
09/11/2023,1249291,Westminster Society,,Bi-Borough Director of Integrated Care,2713.12
09/11/2023,1249291,Westminster Society,,Bi-Borough Director of Integrated Care,2975.68
09/11/2023,1249291,Westminster Society,,Bi-Borough Director of Integrated Care,612.64
09/11/2023,1249291,Westminster Society,,Bi-Borough Director of Integrated Care,6935.96
09/11/2023,1249291,Westminster Society,,Bi-Borough Director of Integrated Care,1225.28
09/11/2023,1249291,Westminster Society,,Bi-Borough Director of Integrated Care,700.16
09/11/2023,1249291,Westminster Society,,Bi-Borough Director of Integrated Care,1225.28
09/11/2023,1249291,Westminster Society,,Bi-Borough Director of Integrated Care,700.16
09/11/2023,1249291,Westminster Society,,Bi-Borough Director of Integrated Care,1024
09/11/2023,1249291,Westminster Society,,Bi-Borough Director of Integrated Care,2450.56
09/11/2023,1249291,Westminster Society,,Bi-Borough Director of Integrated Care,3194.48
09/11/2023,1249291,Westminster Society,,Bi-Borough Director of Integrated Care,7089.12
09/11/2023,1249291,Westminster Society,,Bi-Borough Director of Integrated Care,798.8
09/11/2023,1249291,Westminster Society,,Bi-Borough Director of Integrated Care,2450.56
09/11/2023,1249291,Westminster Society,,Bi-Borough Director of Integrated Care,1024
09/11/2023,1249291,Westminster Society,,Bi-Borough Director of Integrated Care,3982.16
09/11/2023,1249291,Westminster Society,,Bi-Borough Director of Integrated Care,2363.04
09/11/2023,1249291,Westminster Society,,Bi-Borough Director of Integrated Care,899.92
09/11/2023,1249291,Westminster Society,,Bi-Borough Director of Integrated Care,3728.36
09/11/2023,1249291,Westminster Society,,Bi-Borough Director of Integrated Care,1225.28
09/11/2023,1249291,Westminster Society,,Bi-Borough Director of Integrated Care,3150.72
09/11/2023,1249291,Westminster Society,,Bi-Borough Director of Integrated Care,3588.32
09/11/2023,1249291,Westminster Society,,Bi-Borough Director of Integrated Care,3982.16
09/11/2023,1249291,Westminster Society,,Bi-Borough Director of Integrated Care,4200.96
09/11/2023,1249291,Westminster Society,,Bi-Borough Director of Integrated Care,4988.64
09/11/2023,1249291,Westminster Society,,Bi-Borough Director of Integrated Care,43757.49
09/11/2023,1249291,Westminster Society,,Bi-Borough Director of Integrated Care,3063.2
09/11/2023,1249291,Westminster Society,,Bi-Borough Director of Integrated Care,514.24
09/11/2023,1249291,Westminster Society,,Bi-Borough Director of Integrated Care,3325.76
09/11/2023,1249291,Westminster Society,,Bi-Borough Director of Integrated Care,5426.24
09/11/2023,1249291,Westminster Society,,Bi-Borough Director of Integrated Care,5601.28
09/11/2023,1249291,Westminster Society,,Bi-Borough Director of Integrated Care,1269.04
09/11/2023,1249291,Westminster Society,,Bi-Borough Director of Integrated Care,3063.2
09/11/2023,1249291,Westminster Society,,Bi-Borough Director of Integrated Care,7351.68
09/11/2023,1249291,Westminster Society,,Bi-Borough Director of Integrated Care,4463.52
09/11/2023,1249291,Westminster Society,,Bi-Borough Director of Integrated Care,1225.28
09/11/2023,1249291,Westminster Society,,Bi-Borough Director of Integrated Care,787.68
09/11/2023,1249291,Westminster Society,,Bi-Borough Director of Integrated Care,2625.6
09/11/2023,1249291,Westminster Society,,Bi-Borough Director of Integrated Care,1925.44
09/11/2023,1249291,Westminster Society,,Bi-Borough Director of Integrated Care,1024
09/11/2023,1249291,Westminster Society,,Bi-Borough Director of Integrated Care,4909.88
09/11/2023,1249291,Westminster Society,,Bi-Borough Director of Integrated Care,599.08
09/11/2023,1249291,Westminster Society,,Bi-Borough Director of Integrated Care,2188
09/11/2023,1249291,Westminster Society,,Bi-Borough Director of Integrated Care,599.08
09/11/2023,1249291,Westminster Society,,Bi-Borough Director of Integrated Care,2450.56
09/11/2023,1249291,Westminster Society,,Bi-Borough Director of Integrated Care,3369.52
09/11/2023,1249291,Westminster Society,,Bi-Borough Director of Integrated Care,6739.04
09/11/2023,1249291,Westminster Society,,Bi-Borough Director of Integrated Care,599.08
09/11/2023,1249291,Westminster Society,,Bi-Borough Director of Integrated Care,1601.6
09/11/2023,1249291,Westminster Society,,Bi-Borough Director of Integrated Care,612.64
09/11/2023,1249291,Westminster Society,,Bi-Borough Director of Integrated Care,36298.56
09/11/2023,1249291,Westminster Society,,Bi-Borough Director of Integrated Care,514.24
09/11/2023,1249291,Westminster Society,,Bi-Borough Director of Integrated Care,3325.76
09/11/2023,1249291,Westminster Society,,Bi-Borough Director of Integrated Care,4463.52
09/11/2023,1249291,Westminster Society,,Bi-Borough Director of Integrated Care,3500.8
09/11/2023,1249291,Westminster Society,,Bi-Borough Director of Integrated Care,3369.52
09/11/2023,1249291,Westminster Society,,Bi-Borough Director of Integrated Care,1799.84
09/11/2023,1249291,Westminster Society,,Bi-Borough Director of Integrated Care,10852.48
09/11/2023,1249291,Westminster Society,,Bi-Borough Director of Integrated Care,599.08
09/11/2023,1249291,Westminster Society,,Bi-Borough Director of Integrated Care,2450.56
09/11/2023,1249291,Westminster Society,,Bi-Borough Director of Integrated Care,700.16
09/11/2023,1249291,Westminster Society,,Bi-Borough Director of Integrated Care,2713.12
09/11/2023,1249291,Westminster Society,,Bi-Borough Director of Integrated Care,1006.48
09/11/2023,1249291,Westminster Society,,Bi-Borough Director of Integrated Care,5540
09/11/2023,1249291,Westminster Society,,Bi-Borough Director of Integrated Care,7447.96
09/11/2023,1249291,Westminster Society,,Bi-Borough Director of Integrated Care,1024
09/11/2023,1249291,Westminster Society,,Bi-Borough Director of Integrated Care,5496.24
09/11/2023,1249291,Westminster Society,,Bi-Borough Director of Integrated Care,1024
09/11/2023,1249291,Westminster Society,,Bi-Borough Director of Integrated Care,2888.16
09/11/2023,1249291,Westminster Society,,Bi-Borough Director of Integrated Care,2888.16
09/11/2023,1249291,Westminster Society,,Bi-Borough Director of Integrated Care,2538.08
09/11/2023,1249291,Westminster Society,,Bi-Borough Director of Integrated Care,1225.28
09/11/2023,1249291,Westminster Society,,Bi-Borough Director of Integrated Care,7045.36
09/11/2023,1249291,Westminster Society,,Bi-Borough Director of Integrated Care,1531.6
09/11/2023,1249291,Westminster Society,,Bi-Borough Director of Integrated Care,5513.76
09/11/2023,1249291,Westminster Society,,Bi-Borough Director of Integrated Care,1024
09/11/2023,1249291,Westminster Society,,Bi-Borough Director of Integrated Care,4747.96
09/11/2023,1249291,Westminster Society,,Bi-Borough Director of Integrated Care,1024
09/11/2023,1249291,Westminster Society,,Bi-Borough Director of Integrated Care,4839.84
09/11/2023,1249291,Westminster Society,,Bi-Borough Director of Integrated Care,599.08
09/11/2023,1249291,Westminster Society,,Bi-Borough Director of Integrated Care,6126.4
09/11/2023,1249291,Westminster Society,,Bi-Borough Director of Integrated Care,599.08
09/11/2023,1249291,Westminster Society,,Bi-Borough Director of Integrated Care,3325.76
09/11/2023,1249291,Westminster Society,,Bi-Borough Director of Integrated Care,899.92
09/11/2023,1249291,Westminster Society,,Bi-Borough Director of Integrated Care,4376
09/11/2023,1249291,Westminster Society,,Bi-Borough Director of Integrated Care,700.16
09/11/2023,1249291,Westminster Society,,Bi-Borough Director of Integrated Care,3413.28
09/11/2023,1249291,Westminster Society,,Bi-Borough Director of Integrated Care,1024
09/11/2023,1249291,Westminster Society,,Bi-Borough Director of Integrated Care,10414.88
09/11/2023,1249291,Westminster Society,,Bi-Borough Director of Integrated Care,1024
09/11/2023,1249291,Westminster Society,,Bi-Borough Director of Integrated Care,10295.49
09/11/2023,1249291,Westminster Society,,Bi-Borough Director of Integrated Care,7421.68
09/11/2023,1249291,Westminster Society,,Bi-Borough Director of Integrated Care,1024
13/11/2023,1249291,Westminster Society,B*Voluntary-Spot-V Dep-Enhanced - do not u,Bi-Borough Director of Integrated Care,1509.72
13/11/2023,1249291,Westminster Society,B*Voluntary-Spot-V Dep-Enhanced - do not u,Bi-Borough Director of Integrated Care,1750.4
13/11/2023,1249291,Westminster Society,B*Voluntary-Spot-V Dep-Enhanced - do not u,Bi-Borough Director of Integrated Care,1050.24
13/11/2023,1249291,Westminster Society,B*Voluntary-Spot-V Dep-Enhanced - do not u,Bi-Borough Director of Integrated Care,1662.88
13/11/2023,1249291,Westminster Society,B*Voluntary-Spot-V Dep-Enhanced - do not u,Bi-Borough Director of Integrated Care,1225.28
13/11/2023,1249291,Westminster Society,B*Voluntary-Spot-V Dep-Enhanced - do not u,Bi-Borough Director of Integrated Care,787.68
13/11/2023,1249291,Westminster Society,B*Voluntary-Spot-V Dep-Enhanced - do not u,Bi-Borough Director of Integrated Care,787.68
13/11/2023,1249291,Westminster Society,B*Voluntary-Spot-V Dep-Enhanced - do not u,Bi-Borough Director of Integrated Care,875.2
13/11/2023,1249291,Westminster Society,B*Voluntary-Spot-V Dep-Enhanced - do not u,Bi-Borough Director of Integrated Care,525.12
13/11/2023,1249291,Westminster Society,B*Voluntary-Spot-V Dep-Enhanced - do not u,Bi-Borough Director of Integrated Care,700.16
13/11/2023,1249291,Westminster Society,B*Voluntary-Spot-V Dep-Enhanced - do not u,Bi-Borough Director of Integrated Care,2625.6
13/11/2023,1249291,Westminster Society,B*Voluntary-Spot-V Dep-Enhanced - do not u,Bi-Borough Director of Integrated Care,1137.76
13/11/2023,1249291,Westminster Society,B*Voluntary-Spot-Enhanced,Bi-Borough Director of Integrated Care,506
13/11/2023,1249291,Westminster Society,B*Voluntary-Spot-V Dep-Enhanced - do not u,Bi-Borough Director of Integrated Care,700.16
13/11/2023,1249291,Westminster Society,B*Voluntary-Spot-V Dep-Enhanced - do not u,Bi-Borough Director of Integrated Care,700.16
13/11/2023,1249291,Westminster Society,B*Voluntary-Spot-V Dep-Enhanced - do not u,Bi-Borough Director of Integrated Care,623.58
06/12/2023,1249291,Westminster Society,,Bi-Borough Director of Integrated Care,4901.12
06/12/2023,1249291,Westminster Society,,Bi-Borough Director of Integrated Care,9539.68
06/12/2023,1249291,Westminster Society,,Bi-Borough Director of Integrated Care,1799.84
06/12/2023,1249291,Westminster Society,,Bi-Borough Director of Integrated Care,3238.24
06/12/2023,1249291,Westminster Society,,Bi-Borough Director of Integrated Care,2713.12
06/12/2023,1249291,Westminster Society,,Bi-Borough Director of Integrated Care,2975.68
06/12/2023,1249291,Westminster Society,,Bi-Borough Director of Integrated Care,612.64
06/12/2023,1249291,Westminster Society,,Bi-Borough Director of Integrated Care,1225.28
06/12/2023,1249291,Westminster Society,,Bi-Borough Director of Integrated Care,6935.96
06/12/2023,1249291,Westminster Society,,Bi-Borough Director of Integrated Care,700.16
06/12/2023,1249291,Westminster Society,,Bi-Borough Director of Integrated Care,1225.28
06/12/2023,1249291,Westminster Society,,Bi-Borough Director of Integrated Care,700.16
06/12/2023,1249291,Westminster Society,,Bi-Borough Director of Integrated Care,2450.56
06/12/2023,1249291,Westminster Society,,Bi-Borough Director of Integrated Care,1024
06/12/2023,1249291,Westminster Society,,Bi-Borough Director of Integrated Care,3194.48
06/12/2023,1249291,Westminster Society,,Bi-Borough Director of Integrated Care,7089.12
06/12/2023,1249291,Westminster Society,,Bi-Borough Director of Integrated Care,798.8
06/12/2023,1249291,Westminster Society,,Bi-Borough Director of Integrated Care,2450.56
06/12/2023,1249291,Westminster Society,,Bi-Borough Director of Integrated Care,3982.16
06/12/2023,1249291,Westminster Society,,Bi-Borough Director of Integrated Care,1024
06/12/2023,1249291,Westminster Society,,Bi-Borough Director of Integrated Care,2363.04
06/12/2023,1249291,Westminster Society,,Bi-Borough Director of Integrated Care,3728.36
06/12/2023,1249291,Westminster Society,,Bi-Borough Director of Integrated Care,899.92
06/12/2023,1249291,Westminster Society,,Bi-Borough Director of Integrated Care,1225.28
06/12/2023,1249291,Westminster Society,,Bi-Borough Director of Integrated Care,3150.72
06/12/2023,1249291,Westminster Society,,Bi-Borough Director of Integrated Care,3588.32
06/12/2023,1249291,Westminster Society,,Bi-Borough Director of Integrated Care,3982.16
06/12/2023,1249291,Westminster Society,,Bi-Borough Director of Integrated Care,4988.64
06/12/2023,1249291,Westminster Society,,Bi-Borough Director of Integrated Care,7859.28
06/12/2023,1249291,Westminster Society,,Bi-Borough Director of Integrated Care,2450.56
06/12/2023,1249291,Westminster Society,,Bi-Borough Director of Integrated Care,3063.2
06/12/2023,1249291,Westminster Society,,Bi-Borough Director of Integrated Care,514.24
06/12/2023,1249291,Westminster Society,,Bi-Borough Director of Integrated Care,3325.76
06/12/2023,1249291,Westminster Society,,Bi-Borough Director of Integrated Care,5426.24
06/12/2023,1249291,Westminster Society,,Bi-Borough Director of Integrated Care,7351.68
06/12/2023,1249291,Westminster Society,,Bi-Borough Director of Integrated Care,787.43
06/12/2023,1249291,Westminster Society,,Bi-Borough Director of Integrated Care,5601.28
06/12/2023,1249291,Westminster Society,,Bi-Borough Director of Integrated Care,1269.04
06/12/2023,1249291,Westminster Society,,Bi-Borough Director of Integrated Care,3063.2
06/12/2023,1249291,Westminster Society,,Bi-Borough Director of Integrated Care,7351.68
06/12/2023,1249291,Westminster Society,,Bi-Borough Director of Integrated Care,20094.56
06/12/2023,1249291,Westminster Society,,Bi-Borough Director of Integrated Care,1597.6
06/12/2023,1249291,Westminster Society,,Bi-Borough Director of Integrated Care,4901.12
06/12/2023,1249291,Westminster Society,,Bi-Borough Director of Integrated Care,4901.12
06/12/2023,1249291,Westminster Society,,Bi-Borough Director of Integrated Care,1597.6
06/12/2023,1249291,Westminster Society,,Bi-Borough Director of Integrated Care,21144.8
06/12/2023,1249291,Westminster Society,,Bi-Borough Director of Integrated Care,3133.65
06/12/2023,1249291,Westminster Society,,Bi-Borough Director of Integrated Care,829.47
06/12/2023,1249291,Westminster Society,,Bi-Borough Director of Integrated Care,1597.6
06/12/2023,1249291,Westminster Society,,Bi-Borough Director of Integrated Care,18746.8
06/12/2023,1249291,Westminster Society,,Bi-Borough Director of Integrated Care,4463.52
06/12/2023,1249291,Westminster Society,,Bi-Borough Director of Integrated Care,1225.28
06/12/2023,1249291,Westminster Society,,Bi-Borough Director of Integrated Care,787.68
06/12/2023,1249291,Westminster Society,,Bi-Borough Director of Integrated Care,2625.6
06/12/2023,1249291,Westminster Society,,Bi-Borough Director of Integrated Care,1925.44
06/12/2023,1249291,Westminster Society,,Bi-Borough Director of Integrated Care,1024
06/12/2023,1249291,Westminster Society,,Bi-Borough Director of Integrated Care,4909.88
06/12/2023,1249291,Westminster Society,,Bi-Borough Director of Integrated Care,599.08
06/12/2023,1249291,Westminster Society,,Bi-Borough Director of Integrated Care,2188
06/12/2023,1249291,Westminster Society,,Bi-Borough Director of Integrated Care,2450.56
06/12/2023,1249291,Westminster Society,,Bi-Borough Director of Integrated Care,599.08
06/12/2023,1249291,Westminster Society,,Bi-Borough Director of Integrated Care,3369.52
06/12/2023,1249291,Westminster Society,,Bi-Borough Director of Integrated Care,20371.56
06/12/2023,1249291,Westminster Society,,Bi-Borough Director of Integrated Care,599.08
06/12/2023,1249291,Westminster Society,,Bi-Borough Director of Integrated Care,1601.6
06/12/2023,1249291,Westminster Society,,Bi-Borough Director of Integrated Care,612.64
06/12/2023,1249291,Westminster Society,,Bi-Borough Director of Integrated Care,23717.92
06/12/2023,1249291,Westminster Society,,Bi-Borough Director of Integrated Care,514.24
06/12/2023,1249291,Westminster Society,,Bi-Borough Director of Integrated Care,3325.76
06/12/2023,1249291,Westminster Society,,Bi-Borough Director of Integrated Care,4463.52
06/12/2023,1249291,Westminster Society,,Bi-Borough Director of Integrated Care,3500.8
06/12/2023,1249291,Westminster Society,,Bi-Borough Director of Integrated Care,3369.52
06/12/2023,1249291,Westminster Society,,Bi-Borough Director of Integrated Care,599.08
06/12/2023,1249291,Westminster Society,,Bi-Borough Director of Integrated Care,10852.48
06/12/2023,1249291,Westminster Society,,Bi-Borough Director of Integrated Care,1799.84
06/12/2023,1249291,Westminster Society,,Bi-Borough Director of Integrated Care,2450.56
06/12/2023,1249291,Westminster Society,,Bi-Borough Director of Integrated Care,700.16
06/12/2023,1249291,Westminster Society,,Bi-Borough Director of Integrated Care,2713.12
06/12/2023,1249291,Westminster Society,,Bi-Borough Director of Integrated Care,1006.48
06/12/2023,1249291,Westminster Society,,Bi-Borough Director of Integrated Care,5540
06/12/2023,1249291,Westminster Society,,Bi-Borough Director of Integrated Care,7447.96
06/12/2023,1249291,Westminster Society,,Bi-Borough Director of Integrated Care,1024
06/12/2023,1249291,Westminster Society,,Bi-Borough Director of Integrated Care,5496.24
06/12/2023,1249291,Westminster Society,,Bi-Borough Director of Integrated Care,1024
06/12/2023,1249291,Westminster Society,,Bi-Borough Director of Integrated Care,2888.16
06/12/2023,1249291,Westminster Society,,Bi-Borough Director of Integrated Care,2888.16
06/12/2023,1249291,Westminster Society,,Bi-Borough Director of Integrated Care,2538.08
06/12/2023,1249291,Westminster Society,,Bi-Borough Director of Integrated Care,1225.28
06/12/2023,1249291,Westminster Society,,Bi-Borough Director of Integrated Care,7045.36
06/12/2023,1249291,Westminster Society,,Bi-Borough Director of Integrated Care,1531.6
06/12/2023,1249291,Westminster Society,,Bi-Borough Director of Integrated Care,5513.76
06/12/2023,1249291,Westminster Society,,Bi-Borough Director of Integrated Care,1024
06/12/2023,1249291,Westminster Society,,Bi-Borough Director of Integrated Care,4747.96
06/12/2023,1249291,Westminster Society,,Bi-Borough Director of Integrated Care,3133.65
06/12/2023,1249291,Westminster Society,,Bi-Borough Director of Integrated Care,18492.96
06/12/2023,1249291,Westminster Society,,Bi-Borough Director of Integrated Care,1597.6
06/12/2023,1249291,Westminster Society,,Bi-Borough Director of Integrated Care,829.47
06/12/2023,1249291,Westminster Society,,Bi-Borough Director of Integrated Care,4839.84
06/12/2023,1249291,Westminster Society,,Bi-Borough Director of Integrated Care,1024
06/12/2023,1249291,Westminster Society,,Bi-Borough Director of Integrated Care,599.08
06/12/2023,1249291,Westminster Society,,Bi-Borough Director of Integrated Care,6126.4
06/12/2023,1249291,Westminster Society,,Bi-Borough Director of Integrated Care,599.08
06/12/2023,1249291,Westminster Society,,Bi-Borough Director of Integrated Care,3325.76
06/12/2023,1249291,Westminster Society,,Bi-Borough Director of Integrated Care,17052.53
06/12/2023,1249291,Westminster Society,,Bi-Borough Director of Integrated Care,700.16
06/12/2023,1249291,Westminster Society,,Bi-Borough Director of Integrated Care,3413.28
06/12/2023,1249291,Westminster Society,,Bi-Borough Director of Integrated Care,1024
06/12/2023,1249291,Westminster Society,,Bi-Borough Director of Integrated Care,10414.88
06/12/2023,1249291,Westminster Society,,Bi-Borough Director of Integrated Care,7229.16
06/12/2023,1249291,Westminster Society,,Bi-Borough Director of Integrated Care,1024
06/12/2023,1249291,Westminster Society,,Bi-Borough Director of Integrated Care,1024
06/12/2023,1249291,Westminster Society,,Bi-Borough Director of Integrated Care,7421.68
13/12/2023,1249291,Westminster Society,B*Voluntary-Spot-V Dep-Enhanced - do not u,Bi-Borough Director of Integrated Care,1137.76
13/12/2023,1249291,Westminster Society,B*Voluntary-Spot-V Dep-Enhanced - do not u,Bi-Borough Director of Integrated Care,700.16
13/12/2023,1249291,Westminster Society,B*Voluntary-Spot-V Dep-Enhanced - do not u,Bi-Borough Director of Integrated Care,700.16
13/12/2023,1249291,Westminster Society,B*Voluntary-Spot-V Dep-Enhanced - do not u,Bi-Borough Director of Integrated Care,1750.4
13/12/2023,1249291,Westminster Society,B*Voluntary-Spot-V Dep-Enhanced - do not u,Bi-Borough Director of Integrated Care,700.16
13/12/2023,1249291,Westminster Society,B*Voluntary-Spot-V Dep-Enhanced - do not u,Bi-Borough Director of Integrated Care,787.68
13/12/2023,1249291,Westminster Society,B*Voluntary-Spot-V Dep-Enhanced - do not u,Bi-Borough Director of Integrated Care,2625.6
13/12/2023,1249291,Westminster Society,B*Voluntary-Spot-V Dep-Enhanced - do not u,Bi-Borough Director of Integrated Care,875.2
13/12/2023,1249291,Westminster Society,B*Voluntary-Spot-V Dep-Enhanced - do not u,Bi-Borough Director of Integrated Care,787.68
13/12/2023,1249291,Westminster Society,B*Voluntary-Spot-V Dep-Enhanced - do not u,Bi-Borough Director of Integrated Care,2188
13/12/2023,1249291,Westminster Society,B*Voluntary-Spot-V Dep-Enhanced - do not u,Bi-Borough Director of Integrated Care,1050.24
13/12/2023,1249291,Westminster Society,B*Voluntary-Spot-V Dep-Enhanced - do not u,Bi-Borough Director of Integrated Care,1662.88
21/12/2023,1249291,Westminster Society,,Bi-Borough Director of Integrated Care,4901.12
21/12/2023,1249291,Westminster Society,,Bi-Borough Director of Integrated Care,9539.68
21/12/2023,1249291,Westminster Society,,Bi-Borough Director of Integrated Care,1799.84
21/12/2023,1249291,Westminster Society,,Bi-Borough Director of Integrated Care,3238.24
21/12/2023,1249291,Westminster Society,,Bi-Borough Director of Integrated Care,2713.12
21/12/2023,1249291,Westminster Society,,Bi-Borough Director of Integrated Care,2975.68
21/12/2023,1249291,Westminster Society,,Bi-Borough Director of Integrated Care,612.64
21/12/2023,1249291,Westminster Society,,Bi-Borough Director of Integrated Care,1225.28
21/12/2023,1249291,Westminster Society,,Bi-Borough Director of Integrated Care,6935.96
21/12/2023,1249291,Westminster Society,,Bi-Borough Director of Integrated Care,1225.28
21/12/2023,1249291,Westminster Society,,Bi-Borough Director of Integrated Care,700.16
21/12/2023,1249291,Westminster Society,,Bi-Borough Director of Integrated Care,962.72
21/12/2023,1249291,Westminster Society,,Bi-Borough Director of Integrated Care,2450.56
21/12/2023,1249291,Westminster Society,,Bi-Borough Director of Integrated Care,1024
21/12/2023,1249291,Westminster Society,,Bi-Borough Director of Integrated Care,3194.48
21/12/2023,1249291,Westminster Society,,Bi-Borough Director of Integrated Care,2450.56
21/12/2023,1249291,Westminster Society,,Bi-Borough Director of Integrated Care,798.8
21/12/2023,1249291,Westminster Society,,Bi-Borough Director of Integrated Care,7089.12
21/12/2023,1249291,Westminster Society,,Bi-Borough Director of Integrated Care,3982.16
21/12/2023,1249291,Westminster Society,,Bi-Borough Director of Integrated Care,1024
21/12/2023,1249291,Westminster Society,,Bi-Borough Director of Integrated Care,2363.04
21/12/2023,1249291,Westminster Society,,Bi-Borough Director of Integrated Care,3728.36
21/12/2023,1249291,Westminster Society,,Bi-Borough Director of Integrated Care,899.92
21/12/2023,1249291,Westminster Society,,Bi-Borough Director of Integrated Care,1225.28
21/12/2023,1249291,Westminster Society,,Bi-Borough Director of Integrated Care,3150.72
21/12/2023,1249291,Westminster Society,,Bi-Borough Director of Integrated Care,3588.32
21/12/2023,1249291,Westminster Society,,Bi-Borough Director of Integrated Care,3982.16
21/12/2023,1249291,Westminster Society,,Bi-Borough Director of Integrated Care,4988.64
21/12/2023,1249291,Westminster Society,,Bi-Borough Director of Integrated Care,2450.56
21/12/2023,1249291,Westminster Society,,Bi-Borough Director of Integrated Care,7859.28
21/12/2023,1249291,Westminster Society,,Bi-Borough Director of Integrated Care,3063.2
21/12/2023,1249291,Westminster Society,,Bi-Borough Director of Integrated Care,514.24
21/12/2023,1249291,Westminster Society,,Bi-Borough Director of Integrated Care,3325.76
21/12/2023,1249291,Westminster Society,,Bi-Borough Director of Integrated Care,5426.24
21/12/2023,1249291,Westminster Society,,Bi-Borough Director of Integrated Care,4200.96
21/12/2023,1249291,Westminster Society,,Bi-Borough Director of Integrated Care,5601.28
21/12/2023,1249291,Westminster Society,,Bi-Borough Director of Integrated Care,1269.04
21/12/2023,1249291,Westminster Society,,Bi-Borough Director of Integrated Care,3063.2
21/12/2023,1249291,Westminster Society,,Bi-Borough Director of Integrated Care,7351.68
21/12/2023,1249291,Westminster Society,,Bi-Borough Director of Integrated Care,2450.56
21/12/2023,1249291,Westminster Society,,Bi-Borough Director of Integrated Care,798.8
21/12/2023,1249291,Westminster Society,,Bi-Borough Director of Integrated Care,10047.28
21/12/2023,1249291,Westminster Society,,Bi-Borough Director of Integrated Care,10572.4
21/12/2023,1249291,Westminster Society,,Bi-Borough Director of Integrated Care,798.8
21/12/2023,1249291,Westminster Society,,Bi-Borough Director of Integrated Care,2363.04
21/12/2023,1249291,Westminster Society,,Bi-Borough Director of Integrated Care,1531.6
21/12/2023,1249291,Westminster Society,,Bi-Borough Director of Integrated Care,9373.4
21/12/2023,1249291,Westminster Society,,Bi-Borough Director of Integrated Care,798.8
21/12/2023,1249291,Westminster Society,,Bi-Borough Director of Integrated Care,4463.52
21/12/2023,1249291,Westminster Society,,Bi-Borough Director of Integrated Care,1225.28
21/12/2023,1249291,Westminster Society,,Bi-Borough Director of Integrated Care,787.68
21/12/2023,1249291,Westminster Society,,Bi-Borough Director of Integrated Care,4656.08
21/12/2023,1249291,Westminster Society,,Bi-Borough Director of Integrated Care,1925.44
21/12/2023,1249291,Westminster Society,,Bi-Borough Director of Integrated Care,4909.88
21/12/2023,1249291,Westminster Society,,Bi-Borough Director of Integrated Care,1024
21/12/2023,1249291,Westminster Society,,Bi-Borough Director of Integrated Care,2188
21/12/2023,1249291,Westminster Society,,Bi-Borough Director of Integrated Care,599.08
21/12/2023,1249291,Westminster Society,,Bi-Borough Director of Integrated Care,599.08
21/12/2023,1249291,Westminster Society,,Bi-Borough Director of Integrated Care,2450.56
21/12/2023,1249291,Westminster Society,,Bi-Borough Director of Integrated Care,3369.52
21/12/2023,1249291,Westminster Society,,Bi-Borough Director of Integrated Care,3369.52
21/12/2023,1249291,Westminster Society,,Bi-Borough Director of Integrated Care,599.08
21/12/2023,1249291,Westminster Society,,Bi-Borough Director of Integrated Care,1601.6
21/12/2023,1249291,Westminster Society,,Bi-Borough Director of Integrated Care,612.64
21/12/2023,1249291,Westminster Society,,Bi-Borough Director of Integrated Care,4726.08
21/12/2023,1249291,Westminster Society,,Bi-Borough Director of Integrated Care,2450.56
21/12/2023,1249291,Westminster Society,,Bi-Borough Director of Integrated Care,9170.85
21/12/2023,1249291,Westminster Society,,Bi-Borough Director of Integrated Care,4534.86
21/12/2023,1249291,Westminster Society,,Bi-Borough Director of Integrated Care,1332.29
21/12/2023,1249291,Westminster Society,,Bi-Borough Director of Integrated Care,3325.76
21/12/2023,1249291,Westminster Society,,Bi-Borough Director of Integrated Care,514.24
21/12/2023,1249291,Westminster Society,,Bi-Borough Director of Integrated Care,4463.52
21/12/2023,1249291,Westminster Society,,Bi-Borough Director of Integrated Care,3500.8
21/12/2023,1249291,Westminster Society,,Bi-Borough Director of Integrated Care,3369.52
21/12/2023,1249291,Westminster Society,,Bi-Borough Director of Integrated Care,599.08
21/12/2023,1249291,Westminster Society,,Bi-Borough Director of Integrated Care,10852.48
21/12/2023,1249291,Westminster Society,,Bi-Borough Director of Integrated Care,1799.84
21/12/2023,1249291,Westminster Society,,Bi-Borough Director of Integrated Care,2450.56
21/12/2023,1249291,Westminster Society,,Bi-Borough Director of Integrated Care,700.16
21/12/2023,1249291,Westminster Society,,Bi-Borough Director of Integrated Care,2713.12
21/12/2023,1249291,Westminster Society,,Bi-Borough Director of Integrated Care,1006.48
21/12/2023,1249291,Westminster Society,,Bi-Borough Director of Integrated Care,5540
21/12/2023,1249291,Westminster Society,,Bi-Borough Director of Integrated Care,1024
21/12/2023,1249291,Westminster Society,,Bi-Borough Director of Integrated Care,7447.96
21/12/2023,1249291,Westminster Society,,Bi-Borough Director of Integrated Care,1024
21/12/2023,1249291,Westminster Society,,Bi-Borough Director of Integrated Care,5496.24
21/12/2023,1249291,Westminster Society,,Bi-Borough Director of Integrated Care,2888.16
21/12/2023,1249291,Westminster Society,,Bi-Borough Director of Integrated Care,2888.16
21/12/2023,1249291,Westminster Society,,Bi-Borough Director of Integrated Care,2538.08
21/12/2023,1249291,Westminster Society,,Bi-Borough Director of Integrated Care,7045.36
21/12/2023,1249291,Westminster Society,,Bi-Borough Director of Integrated Care,1225.28
21/12/2023,1249291,Westminster Society,,Bi-Borough Director of Integrated Care,1531.6
21/12/2023,1249291,Westminster Society,,Bi-Borough Director of Integrated Care,1024
21/12/2023,1249291,Westminster Society,,Bi-Borough Director of Integrated Care,5513.76
21/12/2023,1249291,Westminster Society,,Bi-Borough Director of Integrated Care,4747.96
21/12/2023,1249291,Westminster Society,,Bi-Borough Director of Integrated Care,9246.48
21/12/2023,1249291,Westminster Society,,Bi-Borough Director of Integrated Care,798.8
21/12/2023,1249291,Westminster Society,,Bi-Borough Director of Integrated Care,1531.6
21/12/2023,1249291,Westminster Society,,Bi-Borough Director of Integrated Care,1024
21/12/2023,1249291,Westminster Society,,Bi-Borough Director of Integrated Care,4839.84
21/12/2023,1249291,Westminster Society,,Bi-Borough Director of Integrated Care,6126.4
21/12/2023,1249291,Westminster Society,,Bi-Borough Director of Integrated Care,599.08
21/12/2023,1249291,Westminster Society,,Bi-Borough Director of Integrated Care,3325.76
21/12/2023,1249291,Westminster Society,,Bi-Borough Director of Integrated Care,599.08
21/12/2023,1249291,Westminster Society,,Bi-Borough Director of Integrated Care,2188
21/12/2023,1249291,Westminster Society,,Bi-Borough Director of Integrated Care,700.16
21/12/2023,1249291,Westminster Society,,Bi-Borough Director of Integrated Care,3413.28
21/12/2023,1249291,Westminster Society,,Bi-Borough Director of Integrated Care,10414.88
21/12/2023,1249291,Westminster Society,,Bi-Borough Director of Integrated Care,1024
21/12/2023,1249291,Westminster Society,,Bi-Borough Director of Integrated Care,1024
21/12/2023,1249291,Westminster Society,,Bi-Borough Director of Integrated Care,7229.16
21/12/2023,1249291,Westminster Society,,Bi-Borough Director of Integrated Care,1024
21/12/2023,1249291,Westminster Society,,Bi-Borough Director of Integrated Care,7421.68
12/10/2023,1246224,Whitmore Vale Housing Association,,Bi-Borough Director of Integrated Care,3557.06
08/11/2023,1246224,Whitmore Vale Housing Association,,Bi-Borough Director of Integrated Care,3688.8
06/12/2023,1246224,Whitmore Vale Housing Association,,Bi-Borough Director of Integrated Care,3688.8
21/12/2023,1246224,Whitmore Vale Housing Association,,Bi-Borough Director of Integrated Care,3688.8
12/10/2023,1243566,Yarrow Housing Ltd,,Bi-Borough Director of Integrated Care,5352.56
12/10/2023,1243566,Yarrow Housing Ltd,,Bi-Borough Director of Integrated Care,1751.76
12/10/2023,1243566,Yarrow Housing Ltd,,Bi-Borough Director of Integrated Care,1232.72
12/10/2023,1243566,Yarrow Housing Ltd,,Bi-Borough Director of Integrated Care,7036.93
12/10/2023,1243566,Yarrow Housing Ltd,,Bi-Borough Director of Integrated Care,11882.89
12/10/2023,1243566,Yarrow Housing Ltd,,Bi-Borough Director of Integrated Care,1231.52
12/10/2023,1243566,Yarrow Housing Ltd,,Bi-Borough Director of Integrated Care,1750.06
12/10/2023,1243566,Yarrow Housing Ltd,,Bi-Borough Director of Integrated Care,7570.8
12/10/2023,1243566,Yarrow Housing Ltd,,Bi-Borough Director of Integrated Care,8005.42
12/10/2023,1243566,Yarrow Housing Ltd,,Bi-Borough Director of Integrated Care,3750.26
18/10/2023,1243566,Yarrow Housing Ltd,,Bi-Borough Director of Integrated Care,7638.85
08/11/2023,1243566,Yarrow Housing Ltd,,Bi-Borough Director of Integrated Care,13556.28
08/11/2023,1243566,Yarrow Housing Ltd,,Bi-Borough Director of Integrated Care,1814.88
08/11/2023,1243566,Yarrow Housing Ltd,,Bi-Borough Director of Integrated Care,7851.2
08/11/2023,1243566,Yarrow Housing Ltd,,Bi-Borough Director of Integrated Care,23224.96
08/11/2023,1243566,Yarrow Housing Ltd,,Bi-Borough Director of Integrated Care,3889.16
08/11/2023,1243566,Yarrow Housing Ltd,,Bi-Borough Director of Integrated Care,7297.56
08/11/2023,1243566,Yarrow Housing Ltd,,Bi-Borough Director of Integrated Care,1816.64
08/11/2023,1243566,Yarrow Housing Ltd,,Bi-Borough Director of Integrated Care,5550.8
23/11/2023,1243566,Yarrow Housing Ltd,,Bi-Borough Director of Integrated Care,7921.77
06/12/2023,1243566,Yarrow Housing Ltd,,Bi-Borough Director of Integrated Care,3889.16
06/12/2023,1243566,Yarrow Housing Ltd,,Bi-Borough Director of Integrated Care,5550.8
06/12/2023,1243566,Yarrow Housing Ltd,,Bi-Borough Director of Integrated Care,7297.56
06/12/2023,1243566,Yarrow Housing Ltd,,Bi-Borough Director of Integrated Care,1816.64
06/12/2023,1243566,Yarrow Housing Ltd,,Bi-Borough Director of Integrated Care,12631.32
06/12/2023,1243566,Yarrow Housing Ltd,,Bi-Borough Director of Integrated Care,1814.88
06/12/2023,1243566,Yarrow Housing Ltd,,Bi-Borough Director of Integrated Care,7851.2
06/12/2023,1243566,Yarrow Housing Ltd,,Bi-Borough Director of Integrated Care,12032.68
14/12/2023,1243566,Yarrow Housing Ltd,,Bi-Borough Director of Integrated Care,7921.77
21/12/2023,1243566,Yarrow Housing Ltd,,Bi-Borough Director of Integrated Care,7851.2
21/12/2023,1243566,Yarrow Housing Ltd,,Bi-Borough Director of Integrated Care,12032.68
21/12/2023,1243566,Yarrow Housing Ltd,,Bi-Borough Director of Integrated Care,3889.16
21/12/2023,1243566,Yarrow Housing Ltd,,Bi-Borough Director of Integrated Care,7297.56
21/12/2023,1243566,Yarrow Housing Ltd,,Bi-Borough Director of Integrated Care,1816.64
21/12/2023,1243566,Yarrow Housing Ltd,,Bi-Borough Director of Integrated Care,5550.8
21/12/2023,1243566,Yarrow Housing Ltd,,Bi-Borough Director of Integrated Care,12631.32
21/12/2023,1243566,Yarrow Housing Ltd,,Bi-Borough Director of Integrated Care,1814.88
10/10/2023,1249318,Zodiac Arts Ltd,B*Voluntary-Spot-V Dep-Enhanced - do not u,Bi-Borough Director of Integrated Care,715.5
11/10/2023,1249318,Zodiac Arts Ltd,B*Voluntary-Spot-V Dep-Enhanced - do not u,Bi-Borough Director of Integrated Care,715.5
08/11/2023,1249318,Zodiac Arts Ltd,B*Voluntary-Spot-V Dep-Enhanced - do not u,Bi-Borough Director of Integrated Care,715.5
12/12/2023,1249318,Zodiac Arts Ltd,B*Voluntary-Spot-V Dep-Enhanced - do not u,Bi-Borough Director of Integrated Care,715.5
13/11/2023,1249020,Steven Carnaby Associates Ltd,Training related expenditure,Bi-Borough Director of Integrated Care,1750
11/10/2023,1249079,The Appropriate Adult Service Ltd,Training related expenditure,Bi-Borough Director of Integrated Care,1349.38
18/10/2023,1249079,The Appropriate Adult Service Ltd,Training related expenditure,Bi-Borough Director of Integrated Care,913.75
18/10/2023,D000000016,GENERAL,,Bi-Borough Director of Integrated Care,5000
12/10/2023,1247852,Look Ahead Care and Support Ltd,,Bi-Borough Director of Integrated Care,1211.76
12/10/2023,1247852,Look Ahead Care and Support Ltd,,Bi-Borough Director of Integrated Care,1362.54
12/10/2023,1247852,Look Ahead Care and Support Ltd,,Bi-Borough Director of Integrated Care,1211.76
12/10/2023,1247852,Look Ahead Care and Support Ltd,,Bi-Borough Director of Integrated Care,1540.62
12/10/2023,1247852,Look Ahead Care and Support Ltd,,Bi-Borough Director of Integrated Care,879.2
12/10/2023,1247852,Look Ahead Care and Support Ltd,,Bi-Borough Director of Integrated Care,865.85
08/11/2023,1247852,Look Ahead Care and Support Ltd,,Bi-Borough Director of Integrated Care,1256.64
08/11/2023,1247852,Look Ahead Care and Support Ltd,,Bi-Borough Director of Integrated Care,897.92
08/11/2023,1247852,Look Ahead Care and Support Ltd,,Bi-Borough Director of Integrated Care,1256.64
08/11/2023,1247852,Look Ahead Care and Support Ltd,,Bi-Borough Director of Integrated Care,1413
08/11/2023,1247852,Look Ahead Care and Support Ltd,,Bi-Borough Director of Integrated Care,1597.68
08/11/2023,1247852,Look Ahead Care and Support Ltd,,Bi-Borough Director of Integrated Care,911.76
06/12/2023,1247852,Look Ahead Care and Support Ltd,,Bi-Borough Director of Integrated Care,1256.64
06/12/2023,1247852,Look Ahead Care and Support Ltd,,Bi-Borough Director of Integrated Care,1413
06/12/2023,1247852,Look Ahead Care and Support Ltd,,Bi-Borough Director of Integrated Care,1597.68
06/12/2023,1247852,Look Ahead Care and Support Ltd,,Bi-Borough Director of Integrated Care,911.76
06/12/2023,1247852,Look Ahead Care and Support Ltd,,Bi-Borough Director of Integrated Care,1256.64
06/12/2023,1247852,Look Ahead Care and Support Ltd,,Bi-Borough Director of Integrated Care,897.92
21/12/2023,1247852,Look Ahead Care and Support Ltd,,Bi-Borough Director of Integrated Care,1256.64
21/12/2023,1247852,Look Ahead Care and Support Ltd,,Bi-Borough Director of Integrated Care,1413
21/12/2023,1247852,Look Ahead Care and Support Ltd,,Bi-Borough Director of Integrated Care,1597.68
21/12/2023,1247852,Look Ahead Care and Support Ltd,,Bi-Borough Director of Integrated Care,1256.64
21/12/2023,1247852,Look Ahead Care and Support Ltd,,Bi-Borough Director of Integrated Care,911.76
21/12/2023,1247852,Look Ahead Care and Support Ltd,,Bi-Borough Director of Integrated Care,897.92
12/10/2023,1244970,Octavia Housing & Care (Rent,,Bi-Borough Director of Integrated Care,908.16
08/11/2023,1244970,Octavia Housing & Care (Rent,,Bi-Borough Director of Integrated Care,941.8
06/12/2023,1244970,Octavia Housing & Care (Rent,,Bi-Borough Director of Integrated Care,941.8
12/10/2023,1248618,Riverside Echg,,Bi-Borough Director of Integrated Care,1513.08
12/10/2023,1248618,Riverside Echg,,Bi-Borough Director of Integrated Care,1257.89
12/10/2023,1248618,Riverside Echg,,Bi-Borough Director of Integrated Care,936.36
08/11/2023,1248618,Riverside Echg,,Bi-Borough Director of Integrated Care,1569.12
08/11/2023,1248618,Riverside Echg,,Bi-Borough Director of Integrated Care,1304.48
08/11/2023,1248618,Riverside Echg,,Bi-Borough Director of Integrated Care,971.04
06/12/2023,1248618,Riverside Echg,,Bi-Borough Director of Integrated Care,1569.12
06/12/2023,1248618,Riverside Echg,,Bi-Borough Director of Integrated Care,1304.48
06/12/2023,1248618,Riverside Echg,,Bi-Borough Director of Integrated Care,971.04
21/12/2023,1248618,Riverside Echg,,Bi-Borough Director of Integrated Care,1569.12
21/12/2023,1248618,Riverside Echg,,Bi-Borough Director of Integrated Care,1304.48
21/12/2023,1248618,Riverside Echg,,Bi-Borough Director of Integrated Care,971.04
21/12/2023,1248618,Riverside Echg,,Bi-Borough Director of Integrated Care,2000.05
12/10/2023,1245584,Single Homeless Project,,Bi-Borough Director of Integrated Care,1816.21
12/10/2023,1245584,Single Homeless Project,,Bi-Borough Director of Integrated Care,1813.13
08/11/2023,1245584,Single Homeless Project,,Bi-Borough Director of Integrated Care,1880.28
08/11/2023,1245584,Single Homeless Project,,Bi-Borough Director of Integrated Care,1883.48
06/12/2023,1245584,Single Homeless Project,,Bi-Borough Director of Integrated Care,1883.48
06/12/2023,1245584,Single Homeless Project,,Bi-Borough Director of Integrated Care,1880.28
21/12/2023,1245584,Single Homeless Project,,Bi-Borough Director of Integrated Care,1883.48
21/12/2023,1245584,Single Homeless Project,,Bi-Borough Director of Integrated Care,1880.28
19/12/2023,1246247,Blitz Home Environmental Cleaning,,Bi-Borough Director of Integrated Care,1000
08/12/2023,1305117,British Red Cross,Hired and Contracted Services,Bi-Borough Director of Integrated Care,24626
13/12/2023,1244190,Clouds End Services Ltd,,Bi-Borough Director of Integrated Care,2640
03/11/2023,1243776,Royal Borough of Kensington &,B*Payments to OLAs - Southampton City Co,Bi-Borough Director of Integrated Care,10947
18/10/2023,1255843,A.I. Care Services Ltd,,Bi-Borough Director of Integrated Care,1075.76
16/11/2023,1255843,A.I. Care Services Ltd,,Bi-Borough Director of Integrated Care,1075.76
12/12/2023,1255843,A.I. Care Services Ltd,,Bi-Borough Director of Integrated Care,1075.76
06/10/2023,1245929,ACHIEVE TOGETHER LIMITED,B*Voluntary-Spot-V Dep-Enhanced - do not u,Bi-Borough Director of Integrated Care,1484
12/12/2023,1245929,ACHIEVE TOGETHER LIMITED,B*Voluntary-Spot-V Dep-Enhanced - do not u,Bi-Borough Director of Integrated Care,1484
12/10/2023,1307987,ALAND HEALTHCARE CONSULTING LIMITED,,Bi-Borough Director of Integrated Care,1735.71
12/10/2023,1307987,ALAND HEALTHCARE CONSULTING LIMITED,,Bi-Borough Director of Integrated Care,1735.71
08/11/2023,1307987,ALAND HEALTHCARE CONSULTING LIMITED,,Bi-Borough Director of Integrated Care,1800
08/11/2023,1307987,ALAND HEALTHCARE CONSULTING LIMITED,,Bi-Borough Director of Integrated Care,1800
06/12/2023,1307987,ALAND HEALTHCARE CONSULTING LIMITED,,Bi-Borough Director of Integrated Care,1800
06/12/2023,1307987,ALAND HEALTHCARE CONSULTING LIMITED,,Bi-Borough Director of Integrated Care,1800
21/12/2023,1307987,ALAND HEALTHCARE CONSULTING LIMITED,,Bi-Borough Director of Integrated Care,1800
21/12/2023,1307987,ALAND HEALTHCARE CONSULTING LIMITED,,Bi-Borough Director of Integrated Care,1800
05/10/2023,1243931,Ashbourne Healthcare Services,,Bi-Borough Director of Integrated Care,1824.95
31/10/2023,1243931,Ashbourne Healthcare Services,,Bi-Borough Director of Integrated Care,1671.27
06/11/2023,1243931,Ashbourne Healthcare Services,,Bi-Borough Director of Integrated Care,1748.11
16/11/2023,1243931,Ashbourne Healthcare Services,,Bi-Borough Director of Integrated Care,1728.9
29/11/2023,1243931,Ashbourne Healthcare Services,,Bi-Borough Director of Integrated Care,1709.69
27/12/2023,1243931,Ashbourne Healthcare Services,,Bi-Borough Director of Integrated Care,1613.64
12/10/2023,1271022,BONZA CARE LTD,,Bi-Borough Director of Integrated Care,2102.14
12/10/2023,1271022,BONZA CARE LTD,,Bi-Borough Director of Integrated Care,2102.14
08/11/2023,1271022,BONZA CARE LTD,,Bi-Borough Director of Integrated Care,2180
08/11/2023,1271022,BONZA CARE LTD,,Bi-Borough Director of Integrated Care,2180
08/11/2023,1271022,BONZA CARE LTD,Rent,Bi-Borough Director of Integrated Care,9895.36
06/12/2023,1271022,BONZA CARE LTD,,Bi-Borough Director of Integrated Care,2180
06/12/2023,1271022,BONZA CARE LTD,,Bi-Borough Director of Integrated Care,2180
21/12/2023,1271022,BONZA CARE LTD,,Bi-Borough Director of Integrated Care,2180
21/12/2023,1271022,BONZA CARE LTD,,Bi-Borough Director of Integrated Care,2180
16/11/2023,1246066,PERSONAL PAYMENTS,B*Junior group rec activities,Bi-Borough Director of Integrated Care,760
12/10/2023,1302222,Bespoke Care Support Ltd,,Bi-Borough Director of Integrated Care,5187.86
08/11/2023,1302222,Bespoke Care Support Ltd,,Bi-Borough Director of Integrated Care,5380
06/12/2023,1302222,Bespoke Care Support Ltd,,Bi-Borough Director of Integrated Care,5380
21/12/2023,1302222,Bespoke Care Support Ltd,,Bi-Borough Director of Integrated Care,5380
08/11/2023,1246247,Blitz Home Environmental Cleaning,,Bi-Borough Director of Integrated Care,3050.61
08/11/2023,1246247,Blitz Home Environmental Cleaning,,Bi-Borough Director of Integrated Care,1704
08/11/2023,1246247,Blitz Home Environmental Cleaning,,Bi-Borough Director of Integrated Care,7312
08/11/2023,1246247,Blitz Home Environmental Cleaning,,Bi-Borough Director of Integrated Care,1459.96
08/11/2023,1246247,Blitz Home Environmental Cleaning,,Bi-Borough Director of Integrated Care,537.88
02/10/2023,1246261,Brent Wandsworth & Westminster,B*Voluntary-Spot-V Dep-Enhanced - do not u,Bi-Borough Director of Integrated Care,1103.78
24/10/2023,1246262,Brent Wandsworth & Westminster,B*Voluntary-Spot-V Dep-Enhanced - do not u,Bi-Borough Director of Integrated Care,720
24/10/2023,1246261,Brent Wandsworth & Westminster,,Bi-Borough Director of Integrated Care,2159.58
30/10/2023,1246261,Brent Wandsworth & Westminster,,Bi-Borough Director of Integrated Care,588.67
30/10/2023,1246261,Brent Wandsworth & Westminster,,Bi-Borough Director of Integrated Care,538.67
30/10/2023,1246261,Brent Wandsworth & Westminster,B*Voluntary-Spot-V Dep-Enhanced - do not u,Bi-Borough Director of Integrated Care,1040.83
30/10/2023,1246261,Brent Wandsworth & Westminster,B*Voluntary-Spot-V Dep-Enhanced - do not u,Bi-Borough Director of Integrated Care,1108.71
30/10/2023,1246261,Brent Wandsworth & Westminster,B*Voluntary-Spot-V Dep-Enhanced - do not u,Bi-Borough Director of Integrated Care,597.1
03/11/2023,1246261,Brent Wandsworth & Westminster,B*Voluntary-Spot-V Dep-Enhanced - do not u,Bi-Borough Director of Integrated Care,1011.41
03/11/2023,1246261,Brent Wandsworth & Westminster,B*Voluntary-Spot-V Dep-Enhanced - do not u,Bi-Borough Director of Integrated Care,510.54
03/11/2023,1246261,Brent Wandsworth & Westminster,,Bi-Borough Director of Integrated Care,531.04
14/11/2023,1246261,Brent Wandsworth & Westminster,,Bi-Borough Director of Integrated Care,1903.44
12/10/2023,1247482,PERSONAL PAYMENTS,,Bi-Borough Director of Integrated Care,803.52
08/11/2023,1247482,PERSONAL PAYMENTS,,Bi-Borough Director of Integrated Care,833.28
06/12/2023,1247482,PERSONAL PAYMENTS,,Bi-Borough Director of Integrated Care,833.28
21/12/2023,1247482,PERSONAL PAYMENTS,,Bi-Borough Director of Integrated Care,833.28
12/10/2023,1246321,Camphill Village Trust,,Bi-Borough Director of Integrated Care,1117.99
08/11/2023,1246321,Camphill Village Trust,,Bi-Borough Director of Integrated Care,1159.4
06/12/2023,1246321,Camphill Village Trust,,Bi-Borough Director of Integrated Care,1159.4
21/12/2023,1246321,Camphill Village Trust,,Bi-Borough Director of Integrated Care,1159.4
12/10/2023,1306723,Carefield Support Services Ltd,,Bi-Borough Director of Integrated Care,1890
12/10/2023,1306723,Carefield Support Services Ltd,,Bi-Borough Director of Integrated Care,1890
08/11/2023,1306723,Carefield Support Services Ltd,,Bi-Borough Director of Integrated Care,1960
08/11/2023,1306723,Carefield Support Services Ltd,,Bi-Borough Director of Integrated Care,1960
06/12/2023,1306723,Carefield Support Services Ltd,,Bi-Borough Director of Integrated Care,1960
06/12/2023,1306723,Carefield Support Services Ltd,,Bi-Borough Director of Integrated Care,1960
21/12/2023,1306723,Carefield Support Services Ltd,,Bi-Borough Director of Integrated Care,1960
21/12/2023,1306723,Carefield Support Services Ltd,,Bi-Borough Director of Integrated Care,1960
08/11/2023,1286484,City Winners Limited,,Bi-Borough Director of Integrated Care,1090
12/10/2023,1299671,Clear Sight Care Ltd,,Bi-Borough Director of Integrated Care,1662.43
12/10/2023,1299671,Clear Sight Care Ltd,,Bi-Borough Director of Integrated Care,1662.43
08/11/2023,1299671,Clear Sight Care Ltd,,Bi-Borough Director of Integrated Care,1724
08/11/2023,1299671,Clear Sight Care Ltd,,Bi-Borough Director of Integrated Care,1724
06/12/2023,1299671,Clear Sight Care Ltd,,Bi-Borough Director of Integrated Care,1724
06/12/2023,1299671,Clear Sight Care Ltd,,Bi-Borough Director of Integrated Care,1724
21/12/2023,1299671,Clear Sight Care Ltd,,Bi-Borough Director of Integrated Care,1724
21/12/2023,1299671,Clear Sight Care Ltd,,Bi-Borough Director of Integrated Care,1724
13/10/2023,1244190,Clouds End Services Ltd,,Bi-Borough Director of Integrated Care,950
01/12/2023,1244190,Clouds End Services Ltd,,Bi-Borough Director of Integrated Care,900
01/12/2023,1244190,Clouds End Services Ltd,,Bi-Borough Director of Integrated Care,800
06/12/2023,1285247,Cognithan Limited,,Bi-Borough Director of Integrated Care,15760.25
06/12/2023,1285247,Cognithan Limited,,Bi-Borough Director of Integrated Care,15760.25
21/12/2023,1285247,Cognithan Limited,,Bi-Borough Director of Integrated Care,21090.08
12/10/2023,1246602,Community Housing Therapy,,Bi-Borough Director of Integrated Care,1870.71
12/10/2023,1246602,Community Housing Therapy,,Bi-Borough Director of Integrated Care,1658.15
12/10/2023,1246602,Community Housing Therapy,,Bi-Borough Director of Integrated Care,1658.11
08/11/2023,1246602,Community Housing Therapy,,Bi-Borough Director of Integrated Care,1719.52
08/11/2023,1246602,Community Housing Therapy,,Bi-Borough Director of Integrated Care,1719.56
08/11/2023,1246602,Community Housing Therapy,,Bi-Borough Director of Integrated Care,1940
06/12/2023,1246602,Community Housing Therapy,,Bi-Borough Director of Integrated Care,1940
06/12/2023,1246602,Community Housing Therapy,,Bi-Borough Director of Integrated Care,1719.52
06/12/2023,1246602,Community Housing Therapy,,Bi-Borough Director of Integrated Care,1719.56
21/12/2023,1246602,Community Housing Therapy,,Bi-Borough Director of Integrated Care,1940
21/12/2023,1246602,Community Housing Therapy,,Bi-Borough Director of Integrated Care,1719.56
21/12/2023,1246602,Community Housing Therapy,,Bi-Borough Director of Integrated Care,1719.52
17/10/2023,1268176,Conquest Care and Support,,Bi-Borough Director of Integrated Care,1339.96
10/11/2023,1268176,Conquest Care and Support,,Bi-Borough Director of Integrated Care,1339.96
07/12/2023,1268176,Conquest Care and Support,,Bi-Borough Director of Integrated Care,1339.96
17/10/2023,1244225,Core Arts,B*Voluntary-Spot-V Dep-Enhanced - do not u,Bi-Borough Director of Integrated Care,650
12/10/2023,1301212,Diverse Services Ltd,,Bi-Borough Director of Integrated Care,1639.29
08/11/2023,1301212,Diverse Services Ltd,,Bi-Borough Director of Integrated Care,1700
06/12/2023,1301212,Diverse Services Ltd,,Bi-Borough Director of Integrated Care,980
06/12/2023,1301212,Diverse Services Ltd,,Bi-Borough Director of Integrated Care,1700
21/12/2023,1301212,Diverse Services Ltd,,Bi-Borough Director of Integrated Care,980
21/12/2023,1301212,Diverse Services Ltd,,Bi-Borough Director of Integrated Care,1700
27/10/2023,1292085,Doughty Street Chambers,Legal Costs,Bi-Borough Director of Integrated Care,980
29/11/2023,1292085,Doughty Street Chambers,Legal Costs,Bi-Borough Director of Integrated Care,980
07/12/2023,1292085,Doughty Street Chambers,Legal Costs,Bi-Borough Director of Integrated Care,960
06/12/2023,1243473,Drs Care Homes Ltd,,Bi-Borough Director of Integrated Care,6326.71
06/12/2023,1243473,Drs Care Homes Ltd,,Bi-Borough Director of Integrated Care,6326.71
21/12/2023,1243473,Drs Care Homes Ltd,,Bi-Borough Director of Integrated Care,2644
21/12/2023,1243473,Drs Care Homes Ltd,,Bi-Borough Director of Integrated Care,2644
17/10/2023,1259597,Ethica Services LTD,,Bi-Borough Director of Integrated Care,1479.17
27/11/2023,1259597,Ethica Services LTD,,Bi-Borough Director of Integrated Care,1479.17
12/12/2023,1259597,Ethica Services LTD,,Bi-Borough Director of Integrated Care,1479.17
20/10/2023,1247257,Health Vision Uk,,Bi-Borough Director of Integrated Care,1105.88
20/10/2023,1247257,Health Vision Uk,,Bi-Borough Director of Integrated Care,593.88
20/10/2023,1247257,Health Vision Uk,,Bi-Borough Director of Integrated Care,1187.76
20/10/2023,1247257,Health Vision Uk,,Bi-Borough Director of Integrated Care,596.84
20/10/2023,1247257,Health Vision Uk,,Bi-Borough Director of Integrated Care,1781.29
20/10/2023,1247257,Health Vision Uk,,Bi-Borough Director of Integrated Care,1180.18
20/10/2023,1247257,Health Vision Uk,,Bi-Borough Director of Integrated Care,884.6
20/10/2023,1247257,Health Vision Uk,,Bi-Borough Director of Integrated Care,1130.29
20/10/2023,1247257,Health Vision Uk,,Bi-Borough Director of Integrated Care,1603.06
20/10/2023,1247257,Health Vision Uk,,Bi-Borough Director of Integrated Care,1198.37
20/10/2023,1247257,Health Vision Uk,,Bi-Borough Director of Integrated Care,674.06
20/10/2023,1247257,Health Vision Uk,,Bi-Borough Director of Integrated Care,608.81
20/10/2023,1247257,Health Vision Uk,,Bi-Borough Director of Integrated Care,636.44
01/11/2023,1247257,Health Vision Uk,,Bi-Borough Director of Integrated Care,1108.85
01/11/2023,1247257,Health Vision Uk,,Bi-Borough Director of Integrated Care,500.55
01/11/2023,1247257,Health Vision Uk,,Bi-Borough Director of Integrated Care,593.88
01/11/2023,1247257,Health Vision Uk,,Bi-Borough Director of Integrated Care,1193.06
01/11/2023,1247257,Health Vision Uk,,Bi-Borough Director of Integrated Care,1465.13
01/11/2023,1247257,Health Vision Uk,,Bi-Borough Director of Integrated Care,574.91
01/11/2023,1247257,Health Vision Uk,,Bi-Borough Director of Integrated Care,1763.89
01/11/2023,1247257,Health Vision Uk,,Bi-Borough Director of Integrated Care,1188.32
01/11/2023,1247257,Health Vision Uk,,Bi-Borough Director of Integrated Care,885.65
01/11/2023,1247257,Health Vision Uk,,Bi-Borough Director of Integrated Care,2356.36
01/11/2023,1247257,Health Vision Uk,,Bi-Borough Director of Integrated Care,1581.49
01/11/2023,1247257,Health Vision Uk,,Bi-Borough Director of Integrated Care,1378.65
01/11/2023,1247257,Health Vision Uk,,Bi-Borough Director of Integrated Care,623.74
01/11/2023,1247257,Health Vision Uk,,Bi-Borough Director of Integrated Care,690.59
01/11/2023,1247257,Health Vision Uk,,Bi-Borough Director of Integrated Care,512.48
01/11/2023,1247257,Health Vision Uk,,Bi-Borough Director of Integrated Care,636.44
27/11/2023,1247257,Health Vision Uk,,Bi-Borough Director of Integrated Care,595.51
07/12/2023,1247257,Health Vision Uk,,Bi-Borough Director of Integrated Care,2375.52
07/12/2023,1247257,Health Vision Uk,,Bi-Borough Director of Integrated Care,1553.32
07/12/2023,1247257,Health Vision Uk,,Bi-Borough Director of Integrated Care,1094.79
07/12/2023,1247257,Health Vision Uk,,Bi-Borough Director of Integrated Care,619.05
07/12/2023,1247257,Health Vision Uk,,Bi-Borough Director of Integrated Care,685.39
07/12/2023,1247257,Health Vision Uk,,Bi-Borough Director of Integrated Care,502.58
07/12/2023,1247257,Health Vision Uk,,Bi-Borough Director of Integrated Care,636.44
07/12/2023,1247257,Health Vision Uk,,Bi-Borough Director of Integrated Care,1185.57
07/12/2023,1247257,Health Vision Uk,,Bi-Borough Director of Integrated Care,668.66
07/12/2023,1247257,Health Vision Uk,,Bi-Borough Director of Integrated Care,1104.55
07/12/2023,1247257,Health Vision Uk,,Bi-Borough Director of Integrated Care,509.04
07/12/2023,1247257,Health Vision Uk,,Bi-Borough Director of Integrated Care,577.97
07/12/2023,1247257,Health Vision Uk,,Bi-Borough Director of Integrated Care,1187.76
07/12/2023,1247257,Health Vision Uk,,Bi-Borough Director of Integrated Care,510.23
07/12/2023,1247257,Health Vision Uk,,Bi-Borough Director of Integrated Care,1781.64
07/12/2023,1247257,Health Vision Uk,,Bi-Borough Director of Integrated Care,1183.36
07/12/2023,1247257,Health Vision Uk,,Bi-Borough Director of Integrated Care,882.44
21/12/2023,1247257,Health Vision Uk,,Bi-Borough Director of Integrated Care,768.4
12/10/2023,1300210,Instant Care Solutions Ltd,,Bi-Borough Director of Integrated Care,2410.71
12/10/2023,1300210,Instant Care Solutions Ltd,,Bi-Borough Director of Integrated Care,2410.71
08/11/2023,1300210,Instant Care Solutions Ltd,,Bi-Borough Director of Integrated Care,2500
08/11/2023,1300210,Instant Care Solutions Ltd,,Bi-Borough Director of Integrated Care,2500
06/12/2023,1300210,Instant Care Solutions Ltd,,Bi-Borough Director of Integrated Care,2500
06/12/2023,1300210,Instant Care Solutions Ltd,,Bi-Borough Director of Integrated Care,2500
21/12/2023,1300210,Instant Care Solutions Ltd,,Bi-Borough Director of Integrated Care,2500
21/12/2023,1300210,Instant Care Solutions Ltd,,Bi-Borough Director of Integrated Care,2500
03/10/2023,1247526,Integrity Care and Support Ltd,,Bi-Borough Director of Integrated Care,1044.19
02/11/2023,1247526,Integrity Care and Support Ltd,,Bi-Borough Director of Integrated Care,1065.5
21/12/2023,1247526,Integrity Care and Support Ltd,,Bi-Borough Director of Integrated Care,1290.31
28/12/2023,1247526,Integrity Care and Support Ltd,,Bi-Borough Director of Integrated Care,1630.78
28/12/2023,1247526,Integrity Care and Support Ltd,,Bi-Borough Director of Integrated Care,831.09
28/12/2023,1247526,Integrity Care and Support Ltd,,Bi-Borough Director of Integrated Care,1219.32
28/12/2023,1247526,Integrity Care and Support Ltd,,Bi-Borough Director of Integrated Care,1467.7
17/10/2023,1256893,Kapital Care WCC,,Bi-Borough Director of Integrated Care,1075.76
09/11/2023,1256893,Kapital Care WCC,,Bi-Borough Director of Integrated Care,1075.76
07/12/2023,1256893,Kapital Care WCC,,Bi-Borough Director of Integrated Care,1114.19
21/11/2023,1250726,Klassic Maintenance Ltd,,Bi-Borough Director of Integrated Care,770.83
12/10/2023,1247650,London Care Ltd,,Bi-Borough Director of Integrated Care,812.68
12/10/2023,1247650,London Care Ltd,,Bi-Borough Director of Integrated Care,1606.98
12/10/2023,1247650,London Care Ltd,,Bi-Borough Director of Integrated Care,1118.88
12/10/2023,1247650,London Care Ltd,,Bi-Borough Director of Integrated Care,1205.69
12/10/2023,1247650,London Care Ltd,,Bi-Borough Director of Integrated Care,1186.98
12/10/2023,1247650,London Care Ltd,,Bi-Borough Director of Integrated Care,619.36
12/10/2023,1247650,London Care Ltd,,Bi-Borough Director of Integrated Care,804.57
12/10/2023,1247650,London Care Ltd,,Bi-Borough Director of Integrated Care,593.88
12/10/2023,1247650,London Care Ltd,,Bi-Borough Director of Integrated Care,600.94
12/10/2023,1247650,London Care Ltd,,Bi-Borough Director of Integrated Care,1940.72
12/10/2023,1247650,London Care Ltd,,Bi-Borough Director of Integrated Care,509.04
12/10/2023,1247650,London Care Ltd,,Bi-Borough Director of Integrated Care,678.72
03/11/2023,1247650,London Care Ltd,,Bi-Borough Director of Integrated Care,675.88
03/11/2023,1247650,London Care Ltd,,Bi-Borough Director of Integrated Care,584.69
03/11/2023,1247650,London Care Ltd,,Bi-Borough Director of Integrated Care,545.22
03/11/2023,1247650,London Care Ltd,,Bi-Borough Director of Integrated Care,1820.16
03/11/2023,1247650,London Care Ltd,,Bi-Borough Director of Integrated Care,672.01
03/11/2023,1247650,London Care Ltd,,Bi-Borough Director of Integrated Care,797.67
03/11/2023,1247650,London Care Ltd,,Bi-Borough Director of Integrated Care,1603.99
03/11/2023,1247650,London Care Ltd,,Bi-Borough Director of Integrated Care,1410.69
03/11/2023,1247650,London Care Ltd,,Bi-Borough Director of Integrated Care,1176.94
03/11/2023,1247650,London Care Ltd,,Bi-Borough Director of Integrated Care,1157.75
03/11/2023,1247650,London Care Ltd,,Bi-Borough Director of Integrated Care,802.41
07/12/2023,1247650,London Care Ltd,,Bi-Borough Director of Integrated Care,559.59
07/12/2023,1247650,London Care Ltd,,Bi-Borough Director of Integrated Care,575.18
07/12/2023,1247650,London Care Ltd,,Bi-Borough Director of Integrated Care,1939.3
07/12/2023,1247650,London Care Ltd,,Bi-Borough Director of Integrated Care,865.11
07/12/2023,1247650,London Care Ltd,,Bi-Borough Director of Integrated Care,1585.25
07/12/2023,1247650,London Care Ltd,,Bi-Borough Director of Integrated Care,701
07/12/2023,1247650,London Care Ltd,,Bi-Borough Director of Integrated Care,678.72
07/12/2023,1247650,London Care Ltd,,Bi-Borough Director of Integrated Care,1431.4
07/12/2023,1247650,London Care Ltd,,Bi-Borough Director of Integrated Care,1111.98
07/12/2023,1247650,London Care Ltd,,Bi-Borough Director of Integrated Care,1159.02
07/12/2023,1247650,London Care Ltd,,Bi-Borough Director of Integrated Care,832.41
22/12/2023,1247650,London Care Ltd,,Bi-Borough Director of Integrated Care,843.1
22/12/2023,1247650,London Care Ltd,,Bi-Borough Director of Integrated Care,775.58
22/12/2023,1247650,London Care Ltd,,Bi-Borough Director of Integrated Care,586.1
22/12/2023,1247650,London Care Ltd,,Bi-Borough Director of Integrated Care,1951.32
22/12/2023,1247650,London Care Ltd,,Bi-Borough Director of Integrated Care,509.04
22/12/2023,1247650,London Care Ltd,,Bi-Borough Director of Integrated Care,678.72
22/12/2023,1247650,London Care Ltd,,Bi-Borough Director of Integrated Care,890.96
22/12/2023,1247650,London Care Ltd,,Bi-Borough Director of Integrated Care,1607.31
22/12/2023,1247650,London Care Ltd,,Bi-Borough Director of Integrated Care,1474.2
22/12/2023,1247650,London Care Ltd,,Bi-Borough Director of Integrated Care,983.2
22/12/2023,1247650,London Care Ltd,,Bi-Borough Director of Integrated Care,1152.63
22/12/2023,1247650,London Care Ltd,,Bi-Borough Director of Integrated Care,715.45
22/12/2023,1247650,London Care Ltd,,Bi-Borough Director of Integrated Care,507.27
22/12/2023,1247650,London Care Ltd,,Bi-Borough Director of Integrated Care,509.04
12/10/2023,1247852,Look Ahead Care and Support Ltd,Rent,Bi-Borough Director of Integrated Care,1256.73
08/11/2023,1247852,Look Ahead Care and Support Ltd,Rent,Bi-Borough Director of Integrated Care,1303.28
06/12/2023,1247852,Look Ahead Care and Support Ltd,Rent,Bi-Borough Director of Integrated Care,1303.28
21/12/2023,1247852,Look Ahead Care and Support Ltd,Rent,Bi-Borough Director of Integrated Care,1303.28
12/10/2023,1262948,Lotus House,,Bi-Borough Director of Integrated Care,2823.43
08/11/2023,1262948,Lotus House,,Bi-Borough Director of Integrated Care,2928
06/12/2023,1262948,Lotus House,,Bi-Borough Director of Integrated Care,2928
21/12/2023,1262948,Lotus House,,Bi-Borough Director of Integrated Care,2928
12/10/2023,1259132,MMR Home Care LTD,,Bi-Borough Director of Integrated Care,768.4
12/10/2023,1259132,MMR Home Care LTD,,Bi-Borough Director of Integrated Care,12909.12
10/11/2023,1259132,MMR Home Care LTD,,Bi-Borough Director of Integrated Care,768.4
10/11/2023,1259132,MMR Home Care LTD,,Bi-Borough Director of Integrated Care,12909.12
12/12/2023,1259132,MMR Home Care LTD,,Bi-Borough Director of Integrated Care,778.01
12/12/2023,1259132,MMR Home Care LTD,,Bi-Borough Director of Integrated Care,12909.12
12/10/2023,1244866,Micado Community Living Services,,Bi-Borough Director of Integrated Care,2777.14
08/11/2023,1244866,Micado Community Living Services,,Bi-Borough Director of Integrated Care,2880
06/12/2023,1244866,Micado Community Living Services,,Bi-Borough Director of Integrated Care,2880
21/12/2023,1244866,Micado Community Living Services,,Bi-Borough Director of Integrated Care,2880
12/10/2023,1270326,New Directions Flexible Social Care,,Bi-Borough Director of Integrated Care,1350
08/11/2023,1270326,New Directions Flexible Social Care,,Bi-Borough Director of Integrated Care,1400
06/12/2023,1270326,New Directions Flexible Social Care,,Bi-Borough Director of Integrated Care,1400
21/12/2023,1270326,New Directions Flexible Social Care,,Bi-Borough Director of Integrated Care,1400
12/10/2023,1244970,Octavia Housing & Care (Rent,Rent,Bi-Borough Director of Integrated Care,27405
08/11/2023,1244970,Octavia Housing & Care (Rent,Rent,Bi-Borough Director of Integrated Care,2610
08/11/2023,1244970,Octavia Housing & Care (Rent,Rent,Bi-Borough Director of Integrated Care,913.5
06/12/2023,1244970,Octavia Housing & Care (Rent,Rent,Bi-Borough Director of Integrated Care,1218
21/12/2023,1244970,Octavia Housing & Care (Rent,Rent,Bi-Borough Director of Integrated Care,1218
12/10/2023,1269489,Optimum Support Ltd,,Bi-Borough Director of Integrated Care,2646.43
12/10/2023,1269489,Optimum Support Ltd,,Bi-Borough Director of Integrated Care,2646.43
08/11/2023,1269489,Optimum Support Ltd,,Bi-Borough Director of Integrated Care,1900
08/11/2023,1269489,Optimum Support Ltd,,Bi-Borough Director of Integrated Care,1900
06/12/2023,1269489,Optimum Support Ltd,,Bi-Borough Director of Integrated Care,1900
06/12/2023,1269489,Optimum Support Ltd,,Bi-Borough Director of Integrated Care,1900
21/12/2023,1269489,Optimum Support Ltd,,Bi-Borough Director of Integrated Care,1900
21/12/2023,1269489,Optimum Support Ltd,,Bi-Borough Director of Integrated Care,1900
19/10/2023,1259940,PERSONAL PAYMENTS,Adult Social Care - Other Transfer Pay,Bi-Borough Director of Integrated Care,2076.2
19/10/2023,1266895,PERSONAL PAYMENTS,Social Care - Direct Payments,Bi-Borough Director of Integrated Care,728
19/10/2023,1284661,PERSONAL PAYMENTS,Social Care - Direct Payments,Bi-Borough Director of Integrated Care,528
19/10/2023,1254334,PERSONAL PAYMENTS,Adult Social Care - Other Transfer Pay,Bi-Borough Director of Integrated Care,1500
19/10/2023,1246066,PERSONAL PAYMENTS,Adult Social Care - Other Transfer Pay,Bi-Borough Director of Integrated Care,937.88
19/10/2023,1246066,PERSONAL PAYMENTS,Adult Social Care - Other Transfer Pay,Bi-Borough Director of Integrated Care,2104.24
19/10/2023,1247479,PERSONAL PAYMENTS,Social Care - Direct Payments,Bi-Borough Director of Integrated Care,1639.08
19/10/2023,1247409,PERSONAL PAYMENTS,Social Care - Direct Payments,Bi-Borough Director of Integrated Care,508.84
19/10/2023,1314223,PERSONAL PAYMENTS,Social Care - Direct Payments,Bi-Borough Director of Integrated Care,832
20/10/2023,1315660,PERSONAL PAYMENTS,Social Care - Direct Payments,Bi-Borough Director of Integrated Care,519
16/11/2023,1266895,PERSONAL PAYMENTS,Social Care - Direct Payments,Bi-Borough Director of Integrated Care,728
16/11/2023,1284661,PERSONAL PAYMENTS,Social Care - Direct Payments,Bi-Borough Director of Integrated Care,528
16/11/2023,1254334,PERSONAL PAYMENTS,Adult Social Care - Other Transfer Pay,Bi-Borough Director of Integrated Care,1500
16/11/2023,1246066,PERSONAL PAYMENTS,Adult Social Care - Other Transfer Pay,Bi-Borough Director of Integrated Care,937.88
16/11/2023,1246066,PERSONAL PAYMENTS,Adult Social Care - Other Transfer Pay,Bi-Borough Director of Integrated Care,2104.24
16/11/2023,1247479,PERSONAL PAYMENTS,Social Care - Direct Payments,Bi-Borough Director of Integrated Care,1639.08
16/11/2023,1247409,PERSONAL PAYMENTS,Social Care - Direct Payments,Bi-Borough Director of Integrated Care,508.84
16/11/2023,1314223,PERSONAL PAYMENTS,Social Care - Direct Payments,Bi-Borough Director of Integrated Care,832
16/11/2023,1259940,PERSONAL PAYMENTS,Adult Social Care - Other Transfer Pay,Bi-Borough Director of Integrated Care,2076.2
14/12/2023,1259940,PERSONAL PAYMENTS,Adult Social Care - Other Transfer Pay,Bi-Borough Director of Integrated Care,2076.2
14/12/2023,1246066,PERSONAL PAYMENTS,Adult Social Care - Other Transfer Pay,Bi-Borough Director of Integrated Care,2946.59
14/12/2023,1266895,PERSONAL PAYMENTS,Social Care - Direct Payments,Bi-Borough Director of Integrated Care,728
14/12/2023,1284661,PERSONAL PAYMENTS,Social Care - Direct Payments,Bi-Borough Director of Integrated Care,528
14/12/2023,1254334,PERSONAL PAYMENTS,Adult Social Care - Other Transfer Pay,Bi-Borough Director of Integrated Care,1500
14/12/2023,1246066,PERSONAL PAYMENTS,Adult Social Care - Other Transfer Pay,Bi-Borough Director of Integrated Care,937.88
14/12/2023,1246066,PERSONAL PAYMENTS,Adult Social Care - Other Transfer Pay,Bi-Borough Director of Integrated Care,2104.24
14/12/2023,1247479,PERSONAL PAYMENTS,Social Care - Direct Payments,Bi-Borough Director of Integrated Care,1639.08
14/12/2023,1247409,PERSONAL PAYMENTS,Social Care - Direct Payments,Bi-Borough Director of Integrated Care,508.84
14/12/2023,1314223,PERSONAL PAYMENTS,Social Care - Direct Payments,Bi-Borough Director of Integrated Care,832
14/12/2023,1246066,PERSONAL PAYMENTS,Adult Social Care - Other Transfer Pay,Bi-Borough Director of Integrated Care,682.78
02/10/2023,1245316,Respect Care Services Ltd,,Bi-Borough Director of Integrated Care,634.73
02/10/2023,1245316,Respect Care Services Ltd,,Bi-Borough Director of Integrated Care,691.56
30/10/2023,1245316,Respect Care Services Ltd,,Bi-Borough Director of Integrated Care,634.73
30/10/2023,1245316,Respect Care Services Ltd,,Bi-Borough Director of Integrated Care,691.56
10/11/2023,1245316,Respect Care Services Ltd,,Bi-Borough Director of Integrated Care,634.73
10/11/2023,1245316,Respect Care Services Ltd,,Bi-Borough Director of Integrated Care,691.56
22/11/2023,1245316,Respect Care Services Ltd,,Bi-Borough Director of Integrated Care,634.73
22/11/2023,1245316,Respect Care Services Ltd,,Bi-Borough Director of Integrated Care,691.56
01/12/2023,1245316,Respect Care Services Ltd,,Bi-Borough Director of Integrated Care,634.73
01/12/2023,1245316,Respect Care Services Ltd,,Bi-Borough Director of Integrated Care,691.56
06/12/2023,1245316,Respect Care Services Ltd,,Bi-Borough Director of Integrated Care,634.73
06/12/2023,1245316,Respect Care Services Ltd,,Bi-Borough Director of Integrated Care,691.56
28/12/2023,1245316,Respect Care Services Ltd,,Bi-Borough Director of Integrated Care,634.73
28/12/2023,1245316,Respect Care Services Ltd,,Bi-Borough Director of Integrated Care,691.56
12/10/2023,1248618,Riverside Echg,Rent,Bi-Borough Director of Integrated Care,806.76
12/10/2023,1248618,Riverside Echg,Rent,Bi-Borough Director of Integrated Care,1437.87
12/10/2023,1248618,Riverside Echg,Rent,Bi-Borough Director of Integrated Care,1307.87
12/10/2023,1248618,Riverside Echg,,Bi-Borough Director of Integrated Care,638.2
08/11/2023,1248618,Riverside Echg,,Bi-Borough Director of Integrated Care,661.84
08/11/2023,1248618,Riverside Echg,Rent,Bi-Borough Director of Integrated Care,1451.12
08/11/2023,1248618,Riverside Echg,Rent,Bi-Borough Director of Integrated Care,836.64
08/11/2023,1248618,Riverside Echg,Rent,Bi-Borough Director of Integrated Care,1491.12
06/12/2023,1248618,Riverside Echg,Rent,Bi-Borough Director of Integrated Care,836.64
06/12/2023,1248618,Riverside Echg,Rent,Bi-Borough Director of Integrated Care,1491.12
06/12/2023,1248618,Riverside Echg,Rent,Bi-Borough Director of Integrated Care,1451.12
06/12/2023,1248618,Riverside Echg,,Bi-Borough Director of Integrated Care,661.84
21/12/2023,1248618,Riverside Echg,Rent,Bi-Borough Director of Integrated Care,836.64
21/12/2023,1248618,Riverside Echg,Rent,Bi-Borough Director of Integrated Care,1491.12
21/12/2023,1248618,Riverside Echg,Rent,Bi-Borough Director of Integrated Care,1451.12
21/12/2023,1248618,Riverside Echg,,Bi-Borough Director of Integrated Care,661.84
06/10/2023,1274076,Royal Association for Deaf People,,Bi-Borough Director of Integrated Care,840
30/10/2023,1274076,Royal Association for Deaf People,,Bi-Borough Director of Integrated Care,840
10/11/2023,1274076,Royal Association for Deaf People,,Bi-Borough Director of Integrated Care,525
13/12/2023,1274076,Royal Association for Deaf People,,Bi-Borough Director of Integrated Care,840
13/12/2023,1274076,Royal Association for Deaf People,,Bi-Borough Director of Integrated Care,840
12/10/2023,1272438,ST GEORGES SUPPORTED LIVING LTD,,Bi-Borough Director of Integrated Care,1639.29
08/11/2023,1272438,ST GEORGES SUPPORTED LIVING LTD,,Bi-Borough Director of Integrated Care,1700
06/12/2023,1272438,ST GEORGES SUPPORTED LIVING LTD,,Bi-Borough Director of Integrated Care,1700
21/12/2023,1272438,ST GEORGES SUPPORTED LIVING LTD,,Bi-Borough Director of Integrated Care,1700
13/10/2023,1248843,Sage Care Ltd,,Bi-Borough Director of Integrated Care,1175.56
13/10/2023,1248843,Sage Care Ltd,,Bi-Borough Director of Integrated Care,1175.57
13/10/2023,1248843,Sage Care Ltd,,Bi-Borough Director of Integrated Care,1811.09
13/10/2023,1248843,Sage Care Ltd,,Bi-Borough Director of Integrated Care,562.54
30/11/2023,1248843,Sage Care Ltd,,Bi-Borough Director of Integrated Care,1612.07
30/11/2023,1248843,Sage Care Ltd,,Bi-Borough Director of Integrated Care,532.86
12/10/2023,1278139,Serenity Point  Limited,,Bi-Borough Director of Integrated Care,11928
12/10/2023,1278139,Serenity Point  Limited,,Bi-Borough Director of Integrated Care,11928
08/11/2023,1278139,Serenity Point  Limited,,Bi-Borough Director of Integrated Care,3408
08/11/2023,1278139,Serenity Point  Limited,,Bi-Borough Director of Integrated Care,3408
06/12/2023,1278139,Serenity Point  Limited,,Bi-Borough Director of Integrated Care,3408
06/12/2023,1278139,Serenity Point  Limited,,Bi-Borough Director of Integrated Care,3408
21/12/2023,1278139,Serenity Point  Limited,,Bi-Borough Director of Integrated Care,3408
21/12/2023,1278139,Serenity Point  Limited,,Bi-Borough Director of Integrated Care,3408
30/10/2023,1248878,Sevacare (Uk) Ltd,,Bi-Borough Director of Integrated Care,1320.16
24/11/2023,1248878,Sevacare (Uk) Ltd,,Bi-Borough Director of Integrated Care,1320.16
22/12/2023,1248878,Sevacare (Uk) Ltd,,Bi-Borough Director of Integrated Care,1320.16
12/10/2023,1245584,Single Homeless Project,Rent,Bi-Borough Director of Integrated Care,20806.05
11/10/2023,1248913,Smithfield Health & Social Care,,Bi-Borough Director of Integrated Care,782.27
06/11/2023,1248913,Smithfield Health & Social Care,,Bi-Borough Director of Integrated Care,790.5
05/12/2023,1248913,Smithfield Health & Social Care,,Bi-Borough Director of Integrated Care,790.5
12/10/2023,1248970,St Martin Of Tours Ha Ltd (Use,,Bi-Borough Director of Integrated Care,1870.71
12/10/2023,1248970,St Martin Of Tours Ha Ltd (Use,,Bi-Borough Director of Integrated Care,1870.71
12/10/2023,1248970,St Martin Of Tours Ha Ltd (Use,,Bi-Borough Director of Integrated Care,3664.29
12/10/2023,1248970,St Martin Of Tours Ha Ltd (Use,,Bi-Borough Director of Integrated Care,1475.36
12/10/2023,1248970,St Martin Of Tours Ha Ltd (Use,,Bi-Borough Director of Integrated Care,1475.36
08/11/2023,1248970,St Martin Of Tours Ha Ltd (Use,,Bi-Borough Director of Integrated Care,1940
08/11/2023,1248970,St Martin Of Tours Ha Ltd (Use,,Bi-Borough Director of Integrated Care,1940
08/11/2023,1248970,St Martin Of Tours Ha Ltd (Use,,Bi-Borough Director of Integrated Care,1530
08/11/2023,1248970,St Martin Of Tours Ha Ltd (Use,,Bi-Borough Director of Integrated Care,1530
08/11/2023,1248970,St Martin Of Tours Ha Ltd (Use,,Bi-Borough Director of Integrated Care,3800
06/12/2023,1248970,St Martin Of Tours Ha Ltd (Use,,Bi-Borough Director of Integrated Care,3800
06/12/2023,1248970,St Martin Of Tours Ha Ltd (Use,,Bi-Borough Director of Integrated Care,1940
06/12/2023,1248970,St Martin Of Tours Ha Ltd (Use,,Bi-Borough Director of Integrated Care,1940
06/12/2023,1248970,St Martin Of Tours Ha Ltd (Use,,Bi-Borough Director of Integrated Care,1530
06/12/2023,1248970,St Martin Of Tours Ha Ltd (Use,,Bi-Borough Director of Integrated Care,1530
21/12/2023,1248970,St Martin Of Tours Ha Ltd (Use,,Bi-Borough Director of Integrated Care,1530
21/12/2023,1248970,St Martin Of Tours Ha Ltd (Use,,Bi-Borough Director of Integrated Care,1530
21/12/2023,1248970,St Martin Of Tours Ha Ltd (Use,,Bi-Borough Director of Integrated Care,3800
21/12/2023,1248970,St Martin Of Tours Ha Ltd (Use,,Bi-Borough Director of Integrated Care,1940
21/12/2023,1248970,St Martin Of Tours Ha Ltd (Use,,Bi-Borough Director of Integrated Care,1940
12/10/2023,1245636,St Mungos Broadway (Grants &,Rent,Bi-Borough Director of Integrated Care,1928.96
08/11/2023,1245636,St Mungos Broadway (Grants &,Rent,Bi-Borough Director of Integrated Care,2000.4
06/12/2023,1245636,St Mungos Broadway (Grants &,Rent,Bi-Borough Director of Integrated Care,2000.4
21/12/2023,1245636,St Mungos Broadway (Grants &,Rent,Bi-Borough Director of Integrated Care,2000.4
21/10/2023,1245182,Supporting Care Ltd,,Bi-Borough Director of Integrated Care,3611.48
09/11/2023,1245182,Supporting Care Ltd,,Bi-Borough Director of Integrated Care,3573.06
12/12/2023,1245182,Supporting Care Ltd,,Bi-Borough Director of Integrated Care,3573.06
12/10/2023,1246095,Theana Ltd T/a Enlighten Homes,,Bi-Borough Director of Integrated Care,2285.36
12/10/2023,1246095,Theana Ltd T/a Enlighten Homes,,Bi-Borough Director of Integrated Care,2285.36
08/11/2023,1246095,Theana Ltd T/a Enlighten Homes,,Bi-Borough Director of Integrated Care,2370
08/11/2023,1246095,Theana Ltd T/a Enlighten Homes,,Bi-Borough Director of Integrated Care,2370
06/12/2023,1246095,Theana Ltd T/a Enlighten Homes,,Bi-Borough Director of Integrated Care,2370
06/12/2023,1246095,Theana Ltd T/a Enlighten Homes,,Bi-Borough Director of Integrated Care,2370
21/12/2023,1246095,Theana Ltd T/a Enlighten Homes,,Bi-Borough Director of Integrated Care,2370
21/12/2023,1246095,Theana Ltd T/a Enlighten Homes,,Bi-Borough Director of Integrated Care,2370
12/10/2023,1251428,Uniq Care & Support Ltd,,Bi-Borough Director of Integrated Care,1633.11
08/11/2023,1251428,Uniq Care & Support Ltd,,Bi-Borough Director of Integrated Care,1693.6
06/12/2023,1251428,Uniq Care & Support Ltd,,Bi-Borough Director of Integrated Care,1693.6
21/12/2023,1251428,Uniq Care & Support Ltd,,Bi-Borough Director of Integrated Care,1693.6
04/10/2023,1249232,Vincentian Care Plus,,Bi-Borough Director of Integrated Care,509.04
04/10/2023,1249232,Vincentian Care Plus,,Bi-Borough Director of Integrated Care,1718.28
04/10/2023,1249232,Vincentian Care Plus,,Bi-Borough Director of Integrated Care,636.4
04/10/2023,1249232,Vincentian Care Plus,,Bi-Borough Director of Integrated Care,593.88
04/10/2023,1249232,Vincentian Care Plus,,Bi-Borough Director of Integrated Care,2052.01
04/10/2023,1249232,Vincentian Care Plus,,Bi-Borough Director of Integrated Care,2794.53
19/10/2023,1249232,Vincentian Care Plus,,Bi-Borough Director of Integrated Care,3212.13
19/10/2023,1249232,Vincentian Care Plus,,Bi-Borough Director of Integrated Care,764.75
19/10/2023,1249232,Vincentian Care Plus,,Bi-Borough Director of Integrated Care,1177.16
19/10/2023,1249232,Vincentian Care Plus,,Bi-Borough Director of Integrated Care,1866.48
19/10/2023,1249232,Vincentian Care Plus,,Bi-Borough Director of Integrated Care,1189.35
19/10/2023,1249232,Vincentian Care Plus,,Bi-Borough Director of Integrated Care,2969.4
19/10/2023,1249232,Vincentian Care Plus,,Bi-Borough Director of Integrated Care,2437.38
19/10/2023,1249232,Vincentian Care Plus,,Bi-Borough Director of Integrated Care,899.91
19/10/2023,1249232,Vincentian Care Plus,,Bi-Borough Director of Integrated Care,2357.52
19/10/2023,1249232,Vincentian Care Plus,,Bi-Borough Director of Integrated Care,593.88
19/10/2023,1249232,Vincentian Care Plus,,Bi-Borough Director of Integrated Care,593.88
19/10/2023,1249232,Vincentian Care Plus,,Bi-Borough Director of Integrated Care,593.88
19/10/2023,1249232,Vincentian Care Plus,,Bi-Borough Director of Integrated Care,593.88
19/10/2023,1249232,Vincentian Care Plus,,Bi-Borough Director of Integrated Care,558.93
19/10/2023,1249232,Vincentian Care Plus,,Bi-Borough Director of Integrated Care,509.04
19/10/2023,1249232,Vincentian Care Plus,,Bi-Borough Director of Integrated Care,1357.44
19/10/2023,1249232,Vincentian Care Plus,,Bi-Borough Director of Integrated Care,1266.96
19/10/2023,1249232,Vincentian Care Plus,,Bi-Borough Director of Integrated Care,1167.96
19/10/2023,1249232,Vincentian Care Plus,,Bi-Borough Director of Integrated Care,540.86
19/10/2023,1249232,Vincentian Care Plus,,Bi-Borough Director of Integrated Care,593.88
19/10/2023,1249232,Vincentian Care Plus,,Bi-Borough Director of Integrated Care,890.8
19/10/2023,1249232,Vincentian Care Plus,,Bi-Borough Director of Integrated Care,1187.76
19/10/2023,1249232,Vincentian Care Plus,,Bi-Borough Director of Integrated Care,593.88
19/10/2023,1249232,Vincentian Care Plus,,Bi-Borough Director of Integrated Care,593.88
30/10/2023,1249232,Vincentian Care Plus,,Bi-Borough Director of Integrated Care,1781.92
30/10/2023,1249232,Vincentian Care Plus,,Bi-Borough Director of Integrated Care,774.28
30/10/2023,1249232,Vincentian Care Plus,,Bi-Borough Director of Integrated Care,593.88
30/10/2023,1249232,Vincentian Care Plus,,Bi-Borough Director of Integrated Care,2883.8
30/10/2023,1249232,Vincentian Care Plus,,Bi-Borough Director of Integrated Care,1002.96
03/11/2023,1249232,Vincentian Care Plus,,Bi-Borough Director of Integrated Care,1197.77
03/11/2023,1249232,Vincentian Care Plus,,Bi-Borough Director of Integrated Care,2969.4
03/11/2023,1249232,Vincentian Care Plus,,Bi-Borough Director of Integrated Care,2333.1
03/11/2023,1249232,Vincentian Care Plus,,Bi-Borough Director of Integrated Care,879.08
